Department Family,Entity,Date of Payment,Expense Type,Expense Area,Supplier,Voluntary & Community Sector,SME Class,Sole Trader,D-U-N-S Number,Transaction number,PSPES Level 2,Narrative,Postal Code,Amount in Sterling,Grant?
Communities & Local Government,DCLG,03/10/2016,Advertising,"Strategy, Communications and Private Office",CARAT LTD,,Large,,211589882,5106223852,Advertising,Right to Buy Media Buying -Radio,NW1 3BF,"180,435.33",
Communities & Local Government,DCLG,03/10/2016,Catering,Decentralisation and Local Growth,BOUYGUES E&S FM UK LTD (CATERING),,Large,,,2100267995,Business Support,Consolidated Monthly Catering Sept 2016,SE1 7EU,15.9,
Communities & Local Government,DCLG,03/10/2016,Catering,Decentralisation and Local Growth,BOUYGUES E&S FM UK LTD (CATERING),,Large,,,2100267995,Business Support,Consolidated Monthly Catering Sept 2016,SE1 7EU,39.9,
Communities & Local Government,DCLG,03/10/2016,Catering,Housing & Planning,BOUYGUES E&S FM UK LTD (CATERING),,Large,,,2100267995,Business Support,Consolidated Monthly Catering Sept 2016,SE1 7EU,33,
Communities & Local Government,DCLG,03/10/2016,Catering,Housing & Planning,BOUYGUES E&S FM UK LTD (CATERING),,Large,,,2100267995,Business Support,Consolidated Monthly Catering Sept 2016,SE1 7EU,172.05,
Communities & Local Government,DCLG,03/10/2016,Catering,Housing & Planning,BOUYGUES E&S FM UK LTD (CATERING),,Large,,,2100267995,Business Support,Consolidated Monthly Catering Sept 2016,SE1 7EU,111.6,
Communities & Local Government,DCLG,03/10/2016,Catering,Local Government & Public Services,BOUYGUES E&S FM UK LTD (CATERING),,Large,,,2100267995,Business Support,Consolidated Monthly Catering Sept 2016,SE1 7EU,53,
Communities & Local Government,DCLG,03/10/2016,Catering,"Strategy, Communications and Private Office",BOUYGUES E&S FM UK LTD (CATERING),,Large,,,2100267995,Business Support,Consolidated Monthly Catering Sept 2016,SE1 7EU,35.1,
Communities & Local Government,DCLG,03/10/2016,Current (non AEF) Grants to Local Authorities,Local Government & Public Services,SOUTH LAKELAND DC,,Large,,236445466,2600061997,,Bellwin scheme payment,LA9 4DQ,"177,581.00",Yes
Communities & Local Government,DCLG,03/10/2016,IT - Service Contracts,Finance,ARCUS GLOBAL LIMITED,,Medium,,,5106223891,IT Managed / Outsourced Services,MCIS/TESA Cloud Hosting Support 16/17,CB4 2HY,"11,780.19",
Communities & Local Government,DCLG,03/10/2016,Office Machinery (<5000),Local Government & Public Services,BANNER BUSINESS SUPPLIES LTD,,Large,,236638362,5106223049,Office machines,DELWEEKLY Clensa Bactericidal Telephone,S9 1XU,8.28,
Communities & Local Government,DCLG,03/10/2016,Office Supplies,Local Government & Public Services,BANNER BUSINESS SUPPLIES LTD,,Large,,236638362,5106223049,Office Supplies,DELWEEKLY BANNER A4 SPIRAL SIDEBOUND NOT,S9 1XU,258.77,
Communities & Local Government,DCLG,03/10/2016,Office Supplies,Local Government & Public Services,BANNER BUSINESS SUPPLIES LTD,,Large,,236638362,5106223049,Office Supplies,DELWEEKLY BANNER ABS FULL STRIP STAPLER,S9 1XU,5.98,
Communities & Local Government,DCLG,03/10/2016,Office Supplies,Local Government & Public Services,BANNER BUSINESS SUPPLIES LTD,,Large,,236638362,5106223049,Office Supplies,DELWEEKLY BANNER CHISEL TIP DRYWIPE MARK,S9 1XU,19.08,
Communities & Local Government,DCLG,03/10/2016,Office Supplies,Local Government & Public Services,BANNER BUSINESS SUPPLIES LTD,,Large,,236638362,5106223049,Office Supplies,DELWEEKLY BANNER OFFICE PENCIL 2B,S9 1XU,9.24,
Communities & Local Government,DCLG,03/10/2016,Office Supplies,Local Government & Public Services,BANNER BUSINESS SUPPLIES LTD,,Large,,236638362,5106223049,Office Supplies,DELWEEKLY BANNER PERMANENT BULLET MARKER,S9 1XU,11.26,
Communities & Local Government,DCLG,03/10/2016,Office Supplies,Local Government & Public Services,BANNER BUSINESS SUPPLIES LTD,,Large,,236638362,5106223049,Office Supplies,DELWEEKLY Banner A4 Cut Flush Polypropyl,S9 1XU,24.12,
Communities & Local Government,DCLG,03/10/2016,Office Supplies,Local Government & Public Services,BANNER BUSINESS SUPPLIES LTD,,Large,,236638362,5106223049,Office Supplies,DELWEEKLY Banner A4 Punched File Cover 3,S9 1XU,114,
Communities & Local Government,DCLG,03/10/2016,Office Supplies,Local Government & Public Services,BANNER BUSINESS SUPPLIES LTD,,Large,,236638362,5106223049,Office Supplies,DELWEEKLY Banner A5 Recycled Notebook,S9 1XU,15.96,
Communities & Local Government,DCLG,03/10/2016,Office Supplies,Local Government & Public Services,BANNER BUSINESS SUPPLIES LTD,,Large,,236638362,5106223049,Office Supplies,DELWEEKLY Banner Bar Tag 25mm Red,S9 1XU,1.08,
Communities & Local Government,DCLG,03/10/2016,Office Supplies,Local Government & Public Services,BANNER BUSINESS SUPPLIES LTD,,Large,,236638362,5106223049,Office Supplies,DELWEEKLY Banner Fine Ballpoint Pen Blue,S9 1XU,16.08,
Communities & Local Government,DCLG,03/10/2016,Office Supplies,Local Government & Public Services,BANNER BUSINESS SUPPLIES LTD,,Large,,236638362,5106223049,Office Supplies,DELWEEKLY Banner Gst Env C4 140G Wdw P&S,S9 1XU,15.86,
Communities & Local Government,DCLG,03/10/2016,Office Supplies,Local Government & Public Services,BANNER BUSINESS SUPPLIES LTD,,Large,,236638362,5106223049,Office Supplies,DELWEEKLY Banner Liquid Ink Rollerball B,S9 1XU,32.16,
Communities & Local Government,DCLG,03/10/2016,Office Supplies,Local Government & Public Services,BANNER BUSINESS SUPPLIES LTD,,Large,,236638362,5106223049,Office Supplies,DELWEEKLY Banner Office Pencil HB,S9 1XU,0.38,
Communities & Local Government,DCLG,03/10/2016,Office Supplies,Local Government & Public Services,BANNER BUSINESS SUPPLIES LTD,,Large,,236638362,5106223049,Office Supplies,DELWEEKLY Banner Rubber Grip Gel Ink Pen,S9 1XU,55.69,
Communities & Local Government,DCLG,03/10/2016,Office Supplies,Local Government & Public Services,BANNER BUSINESS SUPPLIES LTD,,Large,,236638362,5106223049,Office Supplies,DELWEEKLY Bright Id Wallets A4 Assorted,S9 1XU,5.94,
Communities & Local Government,DCLG,03/10/2016,Office Supplies,Local Government & Public Services,BANNER BUSINESS SUPPLIES LTD,,Large,,236638362,5106223049,Office Supplies,DELWEEKLY COUNSEL NOTEBOOKS A4 96 PAGE R,S9 1XU,47.16,
Communities & Local Government,DCLG,03/10/2016,Office Supplies,Local Government & Public Services,BANNER BUSINESS SUPPLIES LTD,,Large,,236638362,5106223049,Office Supplies,DELWEEKLY Easy Tear Adhesive Tape 24mmx6,S9 1XU,4.9,
Communities & Local Government,DCLG,03/10/2016,Office Supplies,Local Government & Public Services,BANNER BUSINESS SUPPLIES LTD,,Large,,236638362,5106223049,Office Supplies,DELWEEKLY Envelope 240 x 165mm Pocket Gu,S9 1XU,10.21,
Communities & Local Government,DCLG,03/10/2016,Office Supplies,Local Government & Public Services,BANNER BUSINESS SUPPLIES LTD,,Large,,236638362,5106223049,Office Supplies,DELWEEKLY Envelope 305 x 250mm Pocket Gu,S9 1XU,9.92,
Communities & Local Government,DCLG,03/10/2016,Office Supplies,Local Government & Public Services,BANNER BUSINESS SUPPLIES LTD,,Large,,236638362,5106223049,Office Supplies,DELWEEKLY Graffico A5 Polypropylene Note,S9 1XU,6.96,
Communities & Local Government,DCLG,03/10/2016,Office Supplies,Local Government & Public Services,BANNER BUSINESS SUPPLIES LTD,,Large,,236638362,5106223049,Office Supplies,DELWEEKLY HIMARK HIGHLIGHTER BLUE,S9 1XU,2.59,
Communities & Local Government,DCLG,03/10/2016,Office Supplies,Local Government & Public Services,BANNER BUSINESS SUPPLIES LTD,,Large,,236638362,5106223049,Office Supplies,DELWEEKLY HIMARK HIGHLIGHTER GREEN,S9 1XU,2.59,
Communities & Local Government,DCLG,03/10/2016,Office Supplies,Local Government & Public Services,BANNER BUSINESS SUPPLIES LTD,,Large,,236638362,5106223049,Office Supplies,DELWEEKLY HIMARK HIGHLIGHTER ORANGE,S9 1XU,6.48,
Communities & Local Government,DCLG,03/10/2016,Office Supplies,Local Government & Public Services,BANNER BUSINESS SUPPLIES LTD,,Large,,236638362,5106223049,Office Supplies,DELWEEKLY HIMARK HIGHLIGHTER PINK,S9 1XU,2.59,
Communities & Local Government,DCLG,03/10/2016,Office Supplies,Local Government & Public Services,BANNER BUSINESS SUPPLIES LTD,,Large,,236638362,5106223049,Office Supplies,DELWEEKLY HIMARK HIGHLIGHTER YELLOW,S9 1XU,9.07,
Communities & Local Government,DCLG,03/10/2016,Office Supplies,Local Government & Public Services,BANNER BUSINESS SUPPLIES LTD,,Large,,236638362,5106223049,Office Supplies,DELWEEKLY Himark Dry Wipe Bullet Tip Mar,S9 1XU,2.46,
Communities & Local Government,DCLG,03/10/2016,Office Supplies,Local Government & Public Services,BANNER BUSINESS SUPPLIES LTD,,Large,,236638362,5106223049,Office Supplies,DELWEEKLY Himark Highlighter Assorted,S9 1XU,2.76,
Communities & Local Government,DCLG,03/10/2016,Office Supplies,Local Government & Public Services,BANNER BUSINESS SUPPLIES LTD,,Large,,236638362,5106223049,Office Supplies,DELWEEKLY Ikon Ohp Non-Perm Marker Fine,S9 1XU,11.58,
Communities & Local Government,DCLG,03/10/2016,Office Supplies,Local Government & Public Services,BANNER BUSINESS SUPPLIES LTD,,Large,,236638362,5106223049,Office Supplies,DELWEEKLY Ikon Ohp Non-Perm Marker Mediu,S9 1XU,3.86,
Communities & Local Government,DCLG,03/10/2016,Office Supplies,Local Government & Public Services,BANNER BUSINESS SUPPLIES LTD,,Large,,236638362,5106223049,Office Supplies,DELWEEKLY Pavo Recycled Scissors 152mm,S9 1XU,0.77,
Communities & Local Government,DCLG,03/10/2016,Office Supplies,Local Government & Public Services,BANNER BUSINESS SUPPLIES LTD,,Large,,236638362,5106223049,Office Supplies,DELWEEKLY Q-Connect A4 Lever Arch File P,S9 1XU,10.16,
Communities & Local Government,DCLG,03/10/2016,Office Supplies,Local Government & Public Services,BANNER BUSINESS SUPPLIES LTD,,Large,,236638362,5106223049,Office Supplies,DELWEEKLY Q-Connect Rubber Bands 100g As,S9 1XU,1.7,
Communities & Local Government,DCLG,03/10/2016,Office Supplies,Local Government & Public Services,BANNER BUSINESS SUPPLIES LTD,,Large,,236638362,5106223049,Office Supplies,DELWEEKLY Rapesco 790 Long Arm Stapler 5,S9 1XU,30.98,
Communities & Local Government,DCLG,03/10/2016,Office Supplies,Local Government & Public Services,BANNER BUSINESS SUPPLIES LTD,,Large,,236638362,5106223049,Office Supplies,DELWEEKLY Rapesco Foldback Clip 32mm,S9 1XU,1.38,
Communities & Local Government,DCLG,03/10/2016,Office Supplies,Local Government & Public Services,BANNER BUSINESS SUPPLIES LTD,,Large,,236638362,5106223049,Office Supplies,DELWEEKLY Rapesco Foldback Clip 51mm,S9 1XU,3.54,
Communities & Local Government,DCLG,03/10/2016,Office Supplies,Local Government & Public Services,BANNER BUSINESS SUPPLIES LTD,,Large,,236638362,5106223049,Office Supplies,DELWEEKLY Rapesco Staple Extractor Assor,S9 1XU,1.83,
Communities & Local Government,DCLG,03/10/2016,Office Supplies,Local Government & Public Services,BANNER BUSINESS SUPPLIES LTD,,Large,,236638362,5106223049,Office Supplies,DELWEEKLY STYLO STIK2 BALLPOINT PEN BLAC,S9 1XU,1.98,
Communities & Local Government,DCLG,03/10/2016,Office Supplies,Local Government & Public Services,BANNER BUSINESS SUPPLIES LTD,,Large,,236638362,5106223049,Office Supplies,DELWEEKLY STYLO STIK2 BALLPOINT PEN BLUE,S9 1XU,19.8,
Communities & Local Government,DCLG,03/10/2016,Office Supplies,Local Government & Public Services,BANNER BUSINESS SUPPLIES LTD,,Large,,236638362,5106223049,Office Supplies,DELWEEKLY Sharpie China Marker Black,S9 1XU,7.9,
Communities & Local Government,DCLG,03/10/2016,Office Supplies,Local Government & Public Services,BANNER BUSINESS SUPPLIES LTD,,Large,,236638362,5106223049,Office Supplies,DELWEEKLY Suspension File Foolscap 30mm,S9 1XU,14.71,
Communities & Local Government,DCLG,03/10/2016,Printing,"Strategy, Communications and Private Office",STATIONERY OFFICE LTD,,Large,,779375633,5106223896,Printing Services,Statutory Instruments Print: Non-Vatable,NR3 1PD,165,
Communities & Local Government,DCLG,03/10/2016,Printing,"Strategy, Communications and Private Office",STATIONERY OFFICE LTD,,Large,,779375633,5106223896,Printing Services,Statutory Instruments Print: Vatable,NR3 1PD,130,
Communities & Local Government,DCLG,03/10/2016,Printing,"Strategy, Communications and Private Office",STATIONERY OFFICE LTD,,Large,,779375633,5106223897,Printing Services,Statutory Instruments Print: Non-Vatable,NR3 1PD,165,
Communities & Local Government,DCLG,03/10/2016,Printing,"Strategy, Communications and Private Office",STATIONERY OFFICE LTD,,Large,,779375633,5106223897,Printing Services,Statutory Instruments Print: Vatable,NR3 1PD,130,
Communities & Local Government,DCLG,03/10/2016,Publications,Finance,DCLG GOVERNMENT PROCUREMENT CARD,,,,,1000004150,Learning and Development Materials,IT Equipment,TN37 7GA,337.59,
Communities & Local Government,DCLG,03/10/2016,Repayments of Private Sect Grant (Cap),Decentralisation and Local Growth,THARSUS ENGINEERING LTD,,,,,2300002616,,Clawback of Regional Growth Fund,NE24 5TG,"-17,620.35",
Communities & Local Government,DCLG,03/10/2016,Research,Housing & Planning,NORTHUMBERLAND CC,,Large,,228141644,5106223902,Research,Lot 9 (N East) Fixed Fee/expenses 16/17,NE61 2EF,"2,680.00",
Communities & Local Government,DCLG,03/10/2016,Training,Finance,OXFORD BROOKES UNIVERSITY,,Large,,,5106223901,Development and Training,Civil Service Training,OX3 0BP,"1,800.00",
Communities & Local Government,DCLG,03/10/2016,Utilisation of Unfunded Pension Scheme,Finance,LONDON PENSIONS FUND AUTHORITY,,Public Bodies,,236915880,5106223892,Financial,Pension fund management,SE1 0LL,372.79,
Communities & Local Government,DCLG,03/10/2016,Web Services,"Strategy, Communications and Private Office",DEXTROUS WEB LTD,,Micro,,211267270,5106223898,ICT Services,Intranet Service Enhancements,N1 7NG,874.18,
Communities & Local Government,DCLG,04/10/2016,Agency Staff,Finance,BROOK STREET UK LTD,,Large,,364940028,5106223920,Contingent Labour,Interim Admin support,AL1 4JB,493.64,
Communities & Local Government,DCLG,04/10/2016,Current (non AEF) Grants to Local Authorities,Finance, CO DURHAM & DARLINGTON FIRE RESCUE,,Public Bodies,,211684266,2100268056,,Regional Control Centre,DH1 1TW,"75,725.67",Yes
Communities & Local Government,DCLG,04/10/2016,Current (non AEF) Grants to Local Authorities,Finance,GREATER LONDON AUTHORITY,,Large,,225353416,2100268055,,Regional Control Centre,SE10 1AP,"160,743.58",Yes
Communities & Local Government,DCLG,04/10/2016,Current (non AEF) Grants to Local Authorities,Finance,GREATER MANCHESTER FIRE & RESCUE,,Public Bodies,,424873172,2100268054,,Regional Control Centre,M27 8US,"74,517.33",Yes
Communities & Local Government,DCLG,04/10/2016,EXP � PURCHASE OF GOODS /SERVICES R & D,Local Government & Public Services,INSTITUTE FOR JEWISH POLICY RESEARC,Yes,Micro,,,2100268057,,Survey of antisemitic attitudes in the UK,NW1 7NE,"37,500.00",
Communities & Local Government,DCLG,04/10/2016,IT - Service Contracts,Finance,ARCUS GLOBAL LIMITED,,Medium,,,5106223925,IT Managed / Outsourced Services,DataMart Hosting charges 2016/17,CB4 2HY,"30,290.17",
Communities & Local Government,DCLG,04/10/2016,IT - Service Contracts,Finance,ARCUS GLOBAL LIMITED,,Medium,,,5106223926,IT Managed / Outsourced Services,DataMart Hosting charges 2016/17,CB4 2HY,339.9,
Communities & Local Government,DCLG,04/10/2016,IT - Service Contracts,Finance,ARCUS GLOBAL LIMITED,,Medium,,,5106223927,IT Managed / Outsourced Services,DataMart Hosting charges 2016/17,CB4 2HY,"1,325.09",
Communities & Local Government,DCLG,04/10/2016,IT - Service Contracts,Finance,FUJITSU SERVICES LTD,,Large,,423375062,5106223940,IT Managed / Outsourced Services,NR0269 Estate Wide Switch Implementation,WA3 6GD,"10,595.95",
Communities & Local Government,DCLG,04/10/2016,IT - Service Contracts,Finance,FUJITSU SERVICES LTD,,Large,,423375062,5106223941,IT Managed / Outsourced Services,New Requirements FY 16/17,WA3 6GD,"3,859.00",
Communities & Local Government,DCLG,04/10/2016,Legal Fees,Finance,GOVERNMENT LEGAL DEPARTMENT,,Public Bodies,,215580680,5106223913,Legal,Legal Advice,WC2B 4TS,909,
Communities & Local Government,DCLG,04/10/2016,Legal Fees,Finance,GOVERNMENT LEGAL DEPARTMENT,,Public Bodies,,215580680,5106223913,Legal,Legal Advice,WC2B 4TS,"107,246.66",
Communities & Local Government,DCLG,04/10/2016,Legal Fees,Finance,GOVERNMENT LEGAL DEPARTMENT,,Public Bodies,,215580680,5106223916,Legal,Legal Advice,WC2B 4TS,794.17,
Communities & Local Government,DCLG,04/10/2016,Professional services,Local Government & Public Services,GOVT ACTUARYS DEPARTMENT,,Public Bodies,,217789766,5106223912,Financial,GAD Advice 2016-17,EC4A 1AB,"82,232.57",
Communities & Local Government,DCLG,04/10/2016,Publicity,"Strategy, Communications and Private Office",JONES YARRELL LEADENHALL LTD,,Large,,505670265,5106223930,Advertising,Printed Publications ,E3 3JH,364.89,
Communities & Local Government,DCLG,04/10/2016,Services provided by other Govt Orgs,Housing & Planning,VALUATION OFFICE AGENCY,,Public Bodies,,215253886,5106223928,Financial,Valuation Office Agency for Right to Build revaluations,W1D 5BU,"138,786.78",Yes
Communities & Local Government,DCLG,04/10/2016,Steady State Service Provision,Finance,CGI IT UK LIMITED,,Large,,239881618,5106223919,Business Process Outsourcing Services,Payroll Services & Licences 15/17,CF31 9AP,"6,989.85",
Communities & Local Government,DCLG,04/10/2016,Steady State Service Provision,Finance,CGI IT UK LIMITED,,Large,,239881618,5106223934,Business Process Outsourcing Services,Payroll Services & Licences 15/17,CF31 9AP,211.62,
Communities & Local Government,DCLG,04/10/2016,Steady State Service Provision,Housing & Planning,GL HEARN LTD,,Large,,,5106223914,Not Addressable,Estates Regeneration Secondment Support,WC1V 7EE,"5,887.20",
Communities & Local Government,DCLG,05/10/2016,IT - Service Contracts,Finance,STATIONERY OFFICE LTD,,Large,,779375633,5106223992,IT Managed / Outsourced Services,3rd Line App Support 12mths,NR3 1PD,"9,317.00",
Communities & Local Government,DCLG,05/10/2016,IT - Service Contracts,Local Government & Public Services,SWIRRL IT LIMITED,,Micro,,211074993,5106223977,IT Managed / Outsourced Services,DCLG Dashboard ,FK7 7WT,"12,074.36",
Communities & Local Government,DCLG,05/10/2016,IT - Service Contracts,Local Government & Public Services,SWIRRL IT LIMITED,,Micro,,211074993,5106223977,IT Managed / Outsourced Services,DCLG Dashboard ,FK7 7WT,300,
Communities & Local Government,DCLG,05/10/2016,Printing,"Strategy, Communications and Private Office",STATIONERY OFFICE LTD,,Large,,779375633,5106223981,Printing Services,Statutory Instruments Print: Non-Vatable,NR3 1PD,165,
Communities & Local Government,DCLG,05/10/2016,Printing,"Strategy, Communications and Private Office",STATIONERY OFFICE LTD,,Large,,779375633,5106223981,Printing Services,Statutory Instruments Print: Vatable,NR3 1PD,130,
Communities & Local Government,DCLG,05/10/2016,Printing,"Strategy, Communications and Private Office",STATIONERY OFFICE LTD,,Large,,779375633,5106223982,Printing Services,Statutory Instruments Print: Non-Vatable,NR3 1PD,165,
Communities & Local Government,DCLG,05/10/2016,Printing,"Strategy, Communications and Private Office",STATIONERY OFFICE LTD,,Large,,779375633,5106223982,Printing Services,Statutory Instruments Print: Vatable,NR3 1PD,130,
Communities & Local Government,DCLG,05/10/2016,Professional services,Local Government & Public Services,MALCOLM READING CONSULTANTS,,Micro,,424223282,5106223917,Financial,Technical Contract Management  Support,EC1N 6RY,"14,820.00",
Communities & Local Government,DCLG,05/10/2016,Publications,Finance,JONES YARRELL LEADENHALL LTD,,Large,,505670265,5106223980,Learning and Development Materials,Journal and Newspaper Supply 2016-17,E3 3JH,252.15,
Communities & Local Government,DCLG,05/10/2016,Training,Finance,BRANDWATCH,,Medium,,,5106223949,Development and Training,Civil Service Training,BN1 1UJ,365,
Communities & Local Government,DCLG,05/10/2016,Training,Finance,CAPITA BUS. SERV. LTD (CSL),,Large,,215580993,5106223614,Development and Training,Civil Service Training,DL1 9HB,"-14,634.15",
Communities & Local Government,DCLG,05/10/2016,Training,Finance,CAPITA BUS. SERV. LTD (CSL),,Large,,215580993,5106223618,Development and Training,Civil Service Training,DL1 9HB,"-12,378.05",
Communities & Local Government,DCLG,05/10/2016,Training,Finance,CAPITA BUS. SERV. LTD (CSL),,Large,,215580993,5106223965,Development and Training,Civil Service Training,DL1 9HB,"6,768.30",
Communities & Local Government,DCLG,05/10/2016,Training,Finance,CAPITA BUS. SERV. LTD (CSL),,Large,,215580993,5106223967,Development and Training,Civil Service Training,DL1 9HB,"7,439.03",
Communities & Local Government,DCLG,05/10/2016,Training,Finance,CAPITA BUS. SERV. LTD (CSL),,Large,,215580993,5106223968,Development and Training,Civil Service Training,DL1 9HB,"9,024.40",
Communities & Local Government,DCLG,05/10/2016,Training,Finance,CAPITA BUS. SERV. LTD (CSL),,Large,,215580993,5106223969,Development and Training,Civil Service Training,DL1 9HB,"5,060.98",
Communities & Local Government,DCLG,05/10/2016,Training,Finance,CAPITA BUS. SERV. LTD (CSL),,Large,,215580993,5106223970,Development and Training,Civil Service Training,DL1 9HB,"4,024.39",
Communities & Local Government,DCLG,05/10/2016,Training,Finance,CAPITA BUS. SERV. LTD (CSL),,Large,,215580993,5106223971,Development and Training,Civil Service Training,DL1 9HB,"4,512.20",
Communities & Local Government,DCLG,05/10/2016,Training,Finance,CAPITA BUS. SERV. LTD (CSL),,Large,,215580993,5106223972,Development and Training,Civil Service Training,DL1 9HB,"2,256.10",
Communities & Local Government,DCLG,05/10/2016,Training,Finance,CAPITA BUS. SERV. LTD (CSL),,Large,,215580993,5106223973,Development and Training,Civil Service Training,DL1 9HB,"5,060.98",
Communities & Local Government,DCLG,05/10/2016,Training,Finance,MYCSP LIMITED,,Large,,217279092,5106223990,Development and Training,Civil Service Training,SK3 0XN,980,
Communities & Local Government,DCLG,05/10/2016,Training,Finance,MYCSP LIMITED,,Large,,217279092,5106223991,Development and Training,Civil Service Training,SK3 0XN,980,
Communities & Local Government,DCLG,05/10/2016,Travel and Subsistence Account,Decentralisation and Local Growth,MR GORDON SCOTT,,,,,2100268084,Business Travel,Official Travel & Subsistence,,432.3,
Communities & Local Government,DCLG,05/10/2016,Travel and Subsistence Account,"Strategy, Communications and Private Office",DIAL A CAB,,Medium,,225338235,2100268087,Business Travel,Official Travel & Subsistence,N1 6AH,270.4,
Communities & Local Government,DCLG,06/10/2016,Current Grants to Non Profit Bodies,Housing & Planning,LOCALITY,,Medium,,347998312,2300002643,,Return of unused funding,N1 6DR,"-51,976.38",Yes
Communities & Local Government,DCLG,06/10/2016,IT - Service Contracts,Housing & Planning,DEXTROUS WEB LTD,,Micro,,211267270,5106223890,IT Managed / Outsourced Services,Hosting 9 months to 31.12.16,N1 7NG,868.8,
Communities & Local Government,DCLG,06/10/2016,Legal Fees,Housing & Planning,LEASEHOLD ADVISORY SERVICE,,Small,,378000152,5106224003,Legal,Legal Advice,WT1 7BN,"21,978.88",
Communities & Local Government,DCLG,06/10/2016,Physical Storage,Finance,IRON MOUNTAIN (UK) LIMITED,,Large,,501338354,5106224019,Warehousing and Storage,Off-site Storage Tapes 2016,EH54 7DF,456.07,
Communities & Local Government,DCLG,06/10/2016,Recruitment,Decentralisation and Local Growth,GATENBYSANDERSON LTD,,Medium,,,5106222966,Business Process Outsourcing Services,SSI & South Tees Headhunter,LS1 2HL,"5,880.00",
Communities & Local Government,DCLG,06/10/2016,Training,Finance,EDINBURGH UNIVERSITY,,Large,,,5106224004,Development and Training,Civil Service Training,EH8 9YL,"1,445.00",
Communities & Local Government,DCLG,06/10/2016,Training,Finance,LSR TRAINING AND DEVELOPMENT,,Micro,,,5106223961,Development and Training,Civil Service Training,S44 6UQ,640,
Communities & Local Government,DCLG,06/10/2016,Training,Finance,MYCSP LIMITED,,Large,,217279092,5106223950,Development and Training,Civil Service Training,SK3 0XN,"1,150.00",
Communities & Local Government,DCLG,06/10/2016,Training,Local Government & Public Services,LSR TRAINING AND DEVELOPMENT,,Micro,,,5106223947,Development and Training,Civil Service Training,S44 6UQ,640,
Communities & Local Government,DCLG,06/10/2016,Work In Progress Pre-Cert 40373 Spend,Decentralisation and Local Growth,BIRMINGHAM CITY COUNCIL (NOT RATES),,Large,,,2300002622,,"A16 Audit Visit - 26th   28th July, 3rd & 17th Aug",B1 1BB,"-3,053.14",Yes
Communities & Local Government,DCLG,06/10/2016,Work In Progress Pre-Cert 40373 Spend,Decentralisation and Local Growth,BRISTOL CITY COUNCIL,,Public Bodies,,,7600015470,,Revenue Grant To Be Paid,BS1 5TR,"63,906.38",Yes
Communities & Local Government,DCLG,06/10/2016,Work In Progress Pre-Cert 40467 Spend,Decentralisation and Local Growth,BIRMINGHAM CITY COUNCIL (NOT RATES),,Large,,,2300002622,,A16 Audit Visit,B1 1BB,"-2,784.54",Yes
Communities & Local Government,DCLG,06/10/2016,Work In Progress Pre-Cert 40467 Spend,Decentralisation and Local Growth,BRISTOL CITY COUNCIL,,Public Bodies,,,7600015470,,Capital Grant Clawback Offset,BS1 5TR,"-29,808.24",Yes
Communities & Local Government,DCLG,06/10/2016,Work In Progress Pre-Cert 40467 Spend,Decentralisation and Local Growth,BRISTOL CITY COUNCIL,,Public Bodies,,,7600015470,,Capital Grant To Be Paid,BS1 5TR,"276,623.92",Yes
Communities & Local Government,DCLG,06/10/2016,Work In Progress Pre-Cert 40467 Spend,Decentralisation and Local Growth,OXFORD INNOVATION SERVICES LTD,,Medium,,,7700000010,,Revenue grant payment,OX1 1BY,"262,750.45",Yes
Communities & Local Government,DCLG,06/10/2016,Work In Progress Pre-Cert 40467 Spend,Decentralisation and Local Growth,OXFORD INNOVATION SERVICES LTD,,Medium,,,7700000011,,Revenue grant payment,OX1 1BY,"446,491.25",Yes
Communities & Local Government,DCLG,07/10/2016,Accommodation,"Strategy, Communications and Private Office",DCLG GOVERNMENT PROCUREMENT CARD,,,,,1000004152,,Official Travel & Subsistence,TN37 7GA,575.88,
Communities & Local Government,DCLG,07/10/2016,Accommodation - actuals,Decentralisation and Local Growth,REDFERN TRAVEL LIMITED,,Small,,213089972,2100268132,Business Travel Accommodation,Consolidated Monthly Travel September Hotels,BD1 3AZ,622.72,
Communities & Local Government,DCLG,07/10/2016,Accommodation - actuals,Decentralisation and Local Growth,REDFERN TRAVEL LIMITED,,Small,,213089972,2100268132,Business Travel Accommodation,Consolidated Monthly Travel September Hotels,BD1 3AZ,620.4,
Communities & Local Government,DCLG,07/10/2016,Accommodation - actuals,Decentralisation and Local Growth,REDFERN TRAVEL LIMITED,,Small,,213089972,2100268132,Business Travel Accommodation,Consolidated Monthly Travel September Hotels,BD1 3AZ,965.73,
Communities & Local Government,DCLG,07/10/2016,Accommodation - actuals,Decentralisation and Local Growth,REDFERN TRAVEL LIMITED,,Small,,213089972,2100268132,Business Travel Accommodation,Consolidated Monthly Travel September Hotels,BD1 3AZ,"2,022.82",
Communities & Local Government,DCLG,07/10/2016,Accommodation - actuals,Decentralisation and Local Growth,REDFERN TRAVEL LIMITED,,Small,,213089972,2100268132,Business Travel Accommodation,Consolidated Monthly Travel September Hotels,BD1 3AZ,671.95,
Communities & Local Government,DCLG,07/10/2016,Accommodation - actuals,Decentralisation and Local Growth,REDFERN TRAVEL LIMITED,,Small,,213089972,2100268132,Business Travel Accommodation,Consolidated Monthly Travel September Hotels,BD1 3AZ,"1,322.60",
Communities & Local Government,DCLG,07/10/2016,Accommodation - actuals,Decentralisation and Local Growth,REDFERN TRAVEL LIMITED,,Small,,213089972,2100268132,Business Travel Accommodation,Consolidated Monthly Travel September Hotels,BD1 3AZ,454.04,
Communities & Local Government,DCLG,07/10/2016,Accommodation - actuals,Decentralisation and Local Growth,REDFERN TRAVEL LIMITED,,Small,,213089972,2100268132,Business Travel Accommodation,Consolidated Monthly Travel September Hotels,BD1 3AZ,"1,989.87",
Communities & Local Government,DCLG,07/10/2016,Accommodation - actuals,Finance,REDFERN TRAVEL LIMITED,,Small,,213089972,2100268132,Business Travel Accommodation,Consolidated Monthly Travel September Hotels,BD1 3AZ,"1,484.70",
Communities & Local Government,DCLG,07/10/2016,Accommodation - actuals,Finance,REDFERN TRAVEL LIMITED,,Small,,213089972,2100268132,Business Travel Accommodation,Consolidated Monthly Travel September Hotels,BD1 3AZ,575.5,
Communities & Local Government,DCLG,07/10/2016,Accommodation - actuals,Finance,REDFERN TRAVEL LIMITED,,Small,,213089972,2100268132,Business Travel Accommodation,Consolidated Monthly Travel September Hotels,BD1 3AZ,"1,161.00",
Communities & Local Government,DCLG,07/10/2016,Accommodation - actuals,Housing & Planning,REDFERN TRAVEL LIMITED,,Small,,213089972,2100268132,Business Travel Accommodation,Consolidated Monthly Travel September Hotels,BD1 3AZ,672.12,
Communities & Local Government,DCLG,07/10/2016,Accommodation - actuals,Housing & Planning,REDFERN TRAVEL LIMITED,,Small,,213089972,2100268132,Business Travel Accommodation,Consolidated Monthly Travel September Hotels,BD1 3AZ,635.66,
Communities & Local Government,DCLG,07/10/2016,Accommodation - actuals,Housing & Planning,REDFERN TRAVEL LIMITED,,Small,,213089972,2100268132,Business Travel Accommodation,Consolidated Monthly Travel September Hotels,BD1 3AZ,973.01,
Communities & Local Government,DCLG,07/10/2016,Accommodation - actuals,Housing & Planning,REDFERN TRAVEL LIMITED,,Small,,213089972,2100268132,Business Travel Accommodation,Consolidated Monthly Travel September Hotels,BD1 3AZ,"1,107.94",
Communities & Local Government,DCLG,07/10/2016,Accommodation - actuals,Local Government & Public Services,REDFERN TRAVEL LIMITED,,Small,,213089972,2100268132,Business Travel Accommodation,Consolidated Monthly Travel September Hotels,BD1 3AZ,356.28,
Communities & Local Government,DCLG,07/10/2016,Accommodation - actuals,Local Government & Public Services,REDFERN TRAVEL LIMITED,,Small,,213089972,2100268132,Business Travel Accommodation,Consolidated Monthly Travel September Hotels,BD1 3AZ,470.93,
Communities & Local Government,DCLG,07/10/2016,Accommodation - actuals,Local Government & Public Services,REDFERN TRAVEL LIMITED,,Small,,213089972,2100268132,Business Travel Accommodation,Consolidated Monthly Travel September Hotels,BD1 3AZ,690.5,
Communities & Local Government,DCLG,07/10/2016,Accommodation - actuals,Local Government & Public Services,REDFERN TRAVEL LIMITED,,Small,,213089972,2100268132,Business Travel Accommodation,Consolidated Monthly Travel September Hotels,BD1 3AZ,290.35,
Communities & Local Government,DCLG,07/10/2016,Accommodation - actuals,Local Government & Public Services,REDFERN TRAVEL LIMITED,,Small,,213089972,2100268132,Business Travel Accommodation,Consolidated Monthly Travel September Hotels,BD1 3AZ,373.23,
Communities & Local Government,DCLG,07/10/2016,Accommodation - actuals,Local Government & Public Services,REDFERN TRAVEL LIMITED,,Small,,213089972,2100268132,Business Travel Accommodation,Consolidated Monthly Travel September Hotels,BD1 3AZ,419.83,
Communities & Local Government,DCLG,07/10/2016,Accommodation - actuals,Local Government & Public Services,REDFERN TRAVEL LIMITED,,Small,,213089972,2100268132,Business Travel Accommodation,Consolidated Monthly Travel September Hotels,BD1 3AZ,504.74,
Communities & Local Government,DCLG,07/10/2016,Accommodation - actuals,"Strategy, Communications and Private Office",REDFERN TRAVEL LIMITED,,Small,,213089972,2100268132,Business Travel Accommodation,Consolidated Monthly Travel September Hotels,BD1 3AZ,339.73,
Communities & Local Government,DCLG,07/10/2016,Accommodation - actuals,"Strategy, Communications and Private Office",REDFERN TRAVEL LIMITED,,Small,,213089972,2100268132,Business Travel Accommodation,Consolidated Monthly Travel September Hotels,BD1 3AZ,830.82,
Communities & Local Government,DCLG,07/10/2016,Agency Staff,Finance,BROOK STREET UK LTD,,Large,,364940028,5106224034,Contingent Labour,Support worker for staff interim measure,AL1 4JB,431.17,
Communities & Local Government,DCLG,07/10/2016,Agency Staff,Finance,BROOK STREET UK LTD,,Large,,364940028,5106224039,Contingent Labour,Interim Admin support,AL1 4JB,493.64,
Communities & Local Government,DCLG,07/10/2016,Agency Staff,Finance,CAPITA BUS. SERV. LTD (CON LAB),,Large,,,5106224037,Contingent Labour,Interim Manager,DL1 9HB,"8,436.10",
Communities & Local Government,DCLG,07/10/2016,Agency Staff,Housing & Planning,CAPITA BUS. SERV. LTD (CON LAB),,Large,,,5106224029,Contingent Labour,Interim Manager,DL1 9HB,"6,268.32",
Communities & Local Government,DCLG,07/10/2016,Agency Staff,Housing & Planning,CAPITA BUS. SERV. LTD (CON LAB),,Large,,,5106224031,Contingent Labour,Interim Manager,DL1 9HB,"7,670.83",
Communities & Local Government,DCLG,07/10/2016,Agency Staff,Housing & Planning,HAYS SPECIALIST RECRUITMENT LTD,,Large,,227170826,5106224024,Contingent Labour,Interim PA to cover sick PA,NW1 2AF,799.2,
Communities & Local Government,DCLG,07/10/2016,Agency Staff,Housing & Planning,HAYS SPECIALIST RECRUITMENT LTD,,Large,,227170826,5106224026,Contingent Labour,Interim PA to cover sick PA,NW1 2AF,842.4,
Communities & Local Government,DCLG,07/10/2016,Agency Staff,Housing & Planning,HAYS SPECIALIST RECRUITMENT LTD,,Large,,227170826,5106224027,Contingent Labour,Interim PA to cover sick PA,NW1 2AF,831.6,
Communities & Local Government,DCLG,07/10/2016,Agency Staff,Housing & Planning,HAYS SPECIALIST RECRUITMENT LTD,,Large,,227170826,5106224028,Contingent Labour,Interim PA to cover sick PA,NW1 2AF,799.2,
Communities & Local Government,DCLG,07/10/2016,Agency Staff,Housing & Planning,HAYS SPECIALIST RECRUITMENT LTD,,Large,,227170826,5106224030,Contingent Labour,Interim PA to cover sick PA,NW1 2AF,777.6,
Communities & Local Government,DCLG,07/10/2016,Agency Staff,Housing & Planning,HAYS SPECIALIST RECRUITMENT LTD,,Large,,227170826,5106224032,Contingent Labour,Interim PA to cover sick PA,NW1 2AF,734.4,
Communities & Local Government,DCLG,07/10/2016,Agency Staff,Housing & Planning,HAYS SPECIALIST RECRUITMENT LTD,,Large,,227170826,5106224035,Contingent Labour,Interim PA to cover sick PA,NW1 2AF,799.2,
Communities & Local Government,DCLG,07/10/2016,Agency Staff,Local Government & Public Services,CAPITA BUS. SERV. LTD (CON LAB),,Large,,,5106224036,Contingent Labour,Interim Manager,DL1 9HB,"1,211.18",
Communities & Local Government,DCLG,07/10/2016,Air Travel,Decentralisation and Local Growth,REDFERN TRAVEL LIMITED,,Small,,213089972,2100268132,Air,Consolidated Monthly Travel September Air Tickets,BD1 3AZ,"3,398.84",
Communities & Local Government,DCLG,07/10/2016,Air Travel,Local Government & Public Services,REDFERN TRAVEL LIMITED,,Small,,213089972,2100268132,Air,Consolidated Monthly Travel September Air Tickets,BD1 3AZ,557,
Communities & Local Government,DCLG,07/10/2016,Air Travel,"Strategy, Communications and Private Office",REDFERN TRAVEL LIMITED,,Small,,213089972,2100268132,Air,Consolidated Monthly Travel September Air Tickets,BD1 3AZ,"9,059.83",
Communities & Local Government,DCLG,07/10/2016,Air Travel,"Strategy, Communications and Private Office",REDFERN TRAVEL LIMITED,,Small,,213089972,2100268132,Air,Consolidated Monthly Travel September Air Tickets,BD1 3AZ,493.94,
Communities & Local Government,DCLG,07/10/2016,Air Travel,"Strategy, Communications and Private Office",REDFERN TRAVEL LIMITED,,Small,,213089972,2100268132,Air,Consolidated Monthly Travel September Air Tickets,BD1 3AZ,872.92,
Communities & Local Government,DCLG,07/10/2016,Current Grants to Non Profit Bodies,Housing & Planning,VALUATION OFFICE AGENCY,,Public Bodies,,215253886,2100268085,,Rent Officer Services - 3rd quarterly payment,W1D 5BU,"575,000.00",Yes
Communities & Local Government,DCLG,07/10/2016,Current Grants to Non Profit Bodies,Local Government & Public Services,ANNE FRANK TRUST UK LTD,,Small,,,2100268128,,Create resilient communities,NW5 4B4,"84,285.00",Yes
Communities & Local Government,DCLG,07/10/2016,Current Grants to Non Profit Bodies,Local Government & Public Services,CO-OPERATIVES UK,,Small,,,2100268127,,Support for Community Shares,M60 0AS,"100,000.00",Yes
Communities & Local Government,DCLG,07/10/2016,Grant in Aid to NDPBs (non budget),Finance,COMMISSION LOCAL ADMINISTRATION,,,,215271508,2100268059,,DCLG budget contribution for October 2016,SW1P 4QP,"825,000.00",Yes
Communities & Local Government,DCLG,07/10/2016,Grant in Aid to NDPBs (non budget),Finance,VALUATION TRIBUNAL SERVICE,,,,211218366,2100268131,,Grant in Aid to VTS for non domestic rates appeals,E1 8EU,"500,000.00",Yes
Communities & Local Government,DCLG,07/10/2016,Grant in Aid to NDPBs (non budget),Housing & Planning,EBBSFLEET DEVELOPMENT CORPORATION,,,,,2100268058,,DCLG budget contribution for October 2016,DA11 8DB,"900,000.00",Yes
Communities & Local Government,DCLG,07/10/2016,IT - Service Contracts,Finance,FUJITSU SERVICES LTD,,Large,,423375062,5106224023,IT Managed / Outsourced Services,LOGASnet Change Budget FY16/17,WA3 6GD,631.2,
Communities & Local Government,DCLG,07/10/2016,IT - Service Contracts,Finance,KAINOS SOFTWARE,,Medium,,,5106224013,IT Managed / Outsourced Services,Meridio Export Assistance,BT7 1NT,"1,387.00",
Communities & Local Government,DCLG,07/10/2016,IT - Service Contracts,Housing & Planning,ICON SOFTWARE LIMITED,,Micro,,,5106223948,IT Managed / Outsourced Services,Online Planning tool,LE14 3EN,"2,872.24",
Communities & Local Government,DCLG,07/10/2016,IT Consultancy,Local Government & Public Services,CAPITA BUS. SERV. LTD (CON LAB),,Large,,,5106224033,Contingent Labour,Specialist Expertise,DL1 9HB,"4,276.44",
Communities & Local Government,DCLG,07/10/2016,Legal Fees,Housing & Planning,MINISTRY OF JUSTICE,,,,211860841,5106223722,Legal,Legal Advice,NP10 8ZF,"45,000.00",
Communities & Local Government,DCLG,07/10/2016,Printing,"Strategy, Communications and Private Office",WILLIAMS LEA LIMITED,,Large,,393456413,5106224002,Printing Services,Year 3 Print services,NR3 1PD,"1,240.45",
Communities & Local Government,DCLG,07/10/2016,Printing,"Strategy, Communications and Private Office",WILLIAMS LEA LIMITED,,Large,,393456413,5106224014,Printing Services,Year 3 Print services (0% VAT),NR3 1PD,735.91,
Communities & Local Government,DCLG,07/10/2016,Printing,"Strategy, Communications and Private Office",WILLIAMS LEA LIMITED,,Large,,393456413,5106224045,Printing Services,Year 3 Print services (0% VAT),NR3 1PD,735.91,
Communities & Local Government,DCLG,07/10/2016,Publicity,"Strategy, Communications and Private Office",PRESS ASSOCIATION,,Large,,217191704,5106224011,Advertising,PRESS ASSOCIATION (PA) 2014-17,DN14 7YH,"1,339.66",
Communities & Local Government,DCLG,07/10/2016,"Rail, Underground and Eurostar",Casey Review,REDFERN TRAVEL LIMITED,,Small,,213089972,2100268132,Rail,Consolidated Monthly Travel September Rail,BD1 3AZ,313.6,
Communities & Local Government,DCLG,07/10/2016,"Rail, Underground and Eurostar",Decentralisation and Local Growth,REDFERN TRAVEL LIMITED,,Small,,213089972,2100268132,Rail,Consolidated Monthly Travel September Rail,BD1 3AZ,552.75,
Communities & Local Government,DCLG,07/10/2016,"Rail, Underground and Eurostar",Decentralisation and Local Growth,REDFERN TRAVEL LIMITED,,Small,,213089972,2100268132,Rail,Consolidated Monthly Travel September Rail,BD1 3AZ,"1,615.55",
Communities & Local Government,DCLG,07/10/2016,"Rail, Underground and Eurostar",Decentralisation and Local Growth,REDFERN TRAVEL LIMITED,,Small,,213089972,2100268132,Rail,Consolidated Monthly Travel September Rail,BD1 3AZ,"3,635.25",
Communities & Local Government,DCLG,07/10/2016,"Rail, Underground and Eurostar",Decentralisation and Local Growth,REDFERN TRAVEL LIMITED,,Small,,213089972,2100268132,Rail,Consolidated Monthly Travel September Rail,BD1 3AZ,"1,805.91",
Communities & Local Government,DCLG,07/10/2016,"Rail, Underground and Eurostar",Decentralisation and Local Growth,REDFERN TRAVEL LIMITED,,Small,,213089972,2100268132,Rail,Consolidated Monthly Travel September Rail,BD1 3AZ,"4,927.27",
Communities & Local Government,DCLG,07/10/2016,"Rail, Underground and Eurostar",Decentralisation and Local Growth,REDFERN TRAVEL LIMITED,,Small,,213089972,2100268132,Rail,Consolidated Monthly Travel September Rail,BD1 3AZ,"2,070.20",
Communities & Local Government,DCLG,07/10/2016,"Rail, Underground and Eurostar",Decentralisation and Local Growth,REDFERN TRAVEL LIMITED,,Small,,213089972,2100268132,Rail,Consolidated Monthly Travel September Rail,BD1 3AZ,"1,079.90",
Communities & Local Government,DCLG,07/10/2016,"Rail, Underground and Eurostar",Decentralisation and Local Growth,REDFERN TRAVEL LIMITED,,Small,,213089972,2100268132,Rail,Consolidated Monthly Travel September Rail,BD1 3AZ,"1,350.90",
Communities & Local Government,DCLG,07/10/2016,"Rail, Underground and Eurostar",Decentralisation and Local Growth,REDFERN TRAVEL LIMITED,,Small,,213089972,2100268132,Rail,Consolidated Monthly Travel September Rail,BD1 3AZ,755.16,
Communities & Local Government,DCLG,07/10/2016,"Rail, Underground and Eurostar",Decentralisation and Local Growth,REDFERN TRAVEL LIMITED,,Small,,213089972,2100268132,Rail,Consolidated Monthly Travel September Rail,BD1 3AZ,"2,155.40",
Communities & Local Government,DCLG,07/10/2016,"Rail, Underground and Eurostar",Decentralisation and Local Growth,REDFERN TRAVEL LIMITED,,Small,,213089972,2100268132,Rail,Consolidated Monthly Travel September Rail,BD1 3AZ,"1,489.90",
Communities & Local Government,DCLG,07/10/2016,"Rail, Underground and Eurostar",Decentralisation and Local Growth,REDFERN TRAVEL LIMITED,,Small,,213089972,2100268132,Rail,Consolidated Monthly Travel September Rail,BD1 3AZ,"1,734.72",
Communities & Local Government,DCLG,07/10/2016,"Rail, Underground and Eurostar",Decentralisation and Local Growth,REDFERN TRAVEL LIMITED,,Small,,213089972,2100268132,Rail,Consolidated Monthly Travel September Rail,BD1 3AZ,743.5,
Communities & Local Government,DCLG,07/10/2016,"Rail, Underground and Eurostar",Decentralisation and Local Growth,REDFERN TRAVEL LIMITED,,Small,,213089972,2100268132,Rail,Consolidated Monthly Travel September Rail,BD1 3AZ,598.1,
Communities & Local Government,DCLG,07/10/2016,"Rail, Underground and Eurostar",Decentralisation and Local Growth,REDFERN TRAVEL LIMITED,,Small,,213089972,2100268132,Rail,Consolidated Monthly Travel September Rail,BD1 3AZ,"2,021.90",
Communities & Local Government,DCLG,07/10/2016,"Rail, Underground and Eurostar",Decentralisation and Local Growth,REDFERN TRAVEL LIMITED,,Small,,213089972,2100268132,Rail,Consolidated Monthly Travel September Rail,BD1 3AZ,"7,130.27",
Communities & Local Government,DCLG,07/10/2016,"Rail, Underground and Eurostar",Decentralisation and Local Growth,REDFERN TRAVEL LIMITED,,Small,,213089972,2100268132,Rail,Consolidated Monthly Travel September Rail,BD1 3AZ,"1,495.40",
Communities & Local Government,DCLG,07/10/2016,"Rail, Underground and Eurostar",Decentralisation and Local Growth,REDFERN TRAVEL LIMITED,,Small,,213089972,2100268132,Rail,Consolidated Monthly Travel September Rail,BD1 3AZ,"1,727.65",
Communities & Local Government,DCLG,07/10/2016,"Rail, Underground and Eurostar",Decentralisation and Local Growth,REDFERN TRAVEL LIMITED,,Small,,213089972,2100268132,Rail,Consolidated Monthly Travel September Rail,BD1 3AZ,"5,565.75",
Communities & Local Government,DCLG,07/10/2016,"Rail, Underground and Eurostar",Decentralisation and Local Growth,REDFERN TRAVEL LIMITED,,Small,,213089972,2100268132,Rail,Consolidated Monthly Travel September Rail,BD1 3AZ,"3,198.90",
Communities & Local Government,DCLG,07/10/2016,"Rail, Underground and Eurostar",Finance,REDFERN TRAVEL LIMITED,,Small,,213089972,2100268132,Rail,Consolidated Monthly Travel September Rail,BD1 3AZ,"1,218.65",
Communities & Local Government,DCLG,07/10/2016,"Rail, Underground and Eurostar",Finance,REDFERN TRAVEL LIMITED,,Small,,213089972,2100268132,Rail,Consolidated Monthly Travel September Rail,BD1 3AZ,251.3,
Communities & Local Government,DCLG,07/10/2016,"Rail, Underground and Eurostar",Finance,REDFERN TRAVEL LIMITED,,Small,,213089972,2100268132,Rail,Consolidated Monthly Travel September Rail,BD1 3AZ,"6,297.15",
Communities & Local Government,DCLG,07/10/2016,"Rail, Underground and Eurostar",Finance,REDFERN TRAVEL LIMITED,,Small,,213089972,2100268132,Rail,Consolidated Monthly Travel September Rail,BD1 3AZ,516.2,
Communities & Local Government,DCLG,07/10/2016,"Rail, Underground and Eurostar",Finance,REDFERN TRAVEL LIMITED,,Small,,213089972,2100268132,Rail,Consolidated Monthly Travel September Rail,BD1 3AZ,318.1,
Communities & Local Government,DCLG,07/10/2016,"Rail, Underground and Eurostar",Finance,REDFERN TRAVEL LIMITED,,Small,,213089972,2100268132,Rail,Consolidated Monthly Travel September Rail,BD1 3AZ,406.3,
Communities & Local Government,DCLG,07/10/2016,"Rail, Underground and Eurostar",Finance,REDFERN TRAVEL LIMITED,,Small,,213089972,2100268132,Rail,Consolidated Monthly Travel September Rail,BD1 3AZ,271.2,
Communities & Local Government,DCLG,07/10/2016,"Rail, Underground and Eurostar",Finance,REDFERN TRAVEL LIMITED,,Small,,213089972,2100268132,Rail,Consolidated Monthly Travel September Rail,BD1 3AZ,316.2,
Communities & Local Government,DCLG,07/10/2016,"Rail, Underground and Eurostar",Finance,REDFERN TRAVEL LIMITED,,Small,,213089972,2100268132,Rail,Consolidated Monthly Travel September Rail,BD1 3AZ,532.3,
Communities & Local Government,DCLG,07/10/2016,"Rail, Underground and Eurostar",Housing & Planning,REDFERN TRAVEL LIMITED,,Small,,213089972,2100268132,Rail,Consolidated Monthly Travel September Rail,BD1 3AZ,466.15,
Communities & Local Government,DCLG,07/10/2016,"Rail, Underground and Eurostar",Housing & Planning,REDFERN TRAVEL LIMITED,,Small,,213089972,2100268132,Rail,Consolidated Monthly Travel September Rail,BD1 3AZ,249.95,
Communities & Local Government,DCLG,07/10/2016,"Rail, Underground and Eurostar",Housing & Planning,REDFERN TRAVEL LIMITED,,Small,,213089972,2100268132,Rail,Consolidated Monthly Travel September Rail,BD1 3AZ,"2,980.30",
Communities & Local Government,DCLG,07/10/2016,"Rail, Underground and Eurostar",Housing & Planning,REDFERN TRAVEL LIMITED,,Small,,213089972,2100268132,Rail,Consolidated Monthly Travel September Rail,BD1 3AZ,715.9,
Communities & Local Government,DCLG,07/10/2016,"Rail, Underground and Eurostar",Housing & Planning,REDFERN TRAVEL LIMITED,,Small,,213089972,2100268132,Rail,Consolidated Monthly Travel September Rail,BD1 3AZ,"3,100.90",
Communities & Local Government,DCLG,07/10/2016,"Rail, Underground and Eurostar",Housing & Planning,REDFERN TRAVEL LIMITED,,Small,,213089972,2100268132,Rail,Consolidated Monthly Travel September Rail,BD1 3AZ,"3,011.40",
Communities & Local Government,DCLG,07/10/2016,"Rail, Underground and Eurostar",Housing & Planning,REDFERN TRAVEL LIMITED,,Small,,213089972,2100268132,Rail,Consolidated Monthly Travel September Rail,BD1 3AZ,"4,909.70",
Communities & Local Government,DCLG,07/10/2016,"Rail, Underground and Eurostar",Housing & Planning,REDFERN TRAVEL LIMITED,,Small,,213089972,2100268132,Rail,Consolidated Monthly Travel September Rail,BD1 3AZ,"1,846.95",
Communities & Local Government,DCLG,07/10/2016,"Rail, Underground and Eurostar",Local Government & Public Services,REDFERN TRAVEL LIMITED,,Small,,213089972,2100268132,Rail,Consolidated Monthly Travel September Rail,BD1 3AZ,"2,054.90",
Communities & Local Government,DCLG,07/10/2016,"Rail, Underground and Eurostar",Local Government & Public Services,REDFERN TRAVEL LIMITED,,Small,,213089972,2100268132,Rail,Consolidated Monthly Travel September Rail,BD1 3AZ,448,
Communities & Local Government,DCLG,07/10/2016,"Rail, Underground and Eurostar",Local Government & Public Services,REDFERN TRAVEL LIMITED,,Small,,213089972,2100268132,Rail,Consolidated Monthly Travel September Rail,BD1 3AZ,627.9,
Communities & Local Government,DCLG,07/10/2016,"Rail, Underground and Eurostar",Local Government & Public Services,REDFERN TRAVEL LIMITED,,Small,,213089972,2100268132,Rail,Consolidated Monthly Travel September Rail,BD1 3AZ,"2,610.20",
Communities & Local Government,DCLG,07/10/2016,"Rail, Underground and Eurostar",Local Government & Public Services,REDFERN TRAVEL LIMITED,,Small,,213089972,2100268132,Rail,Consolidated Monthly Travel September Rail,BD1 3AZ,659.84,
Communities & Local Government,DCLG,07/10/2016,"Rail, Underground and Eurostar",Local Government & Public Services,REDFERN TRAVEL LIMITED,,Small,,213089972,2100268132,Rail,Consolidated Monthly Travel September Rail,BD1 3AZ,353.6,
Communities & Local Government,DCLG,07/10/2016,"Rail, Underground and Eurostar",Local Government & Public Services,REDFERN TRAVEL LIMITED,,Small,,213089972,2100268132,Rail,Consolidated Monthly Travel September Rail,BD1 3AZ,"1,248.57",
Communities & Local Government,DCLG,07/10/2016,"Rail, Underground and Eurostar",Local Government & Public Services,REDFERN TRAVEL LIMITED,,Small,,213089972,2100268132,Rail,Consolidated Monthly Travel September Rail,BD1 3AZ,943.6,
Communities & Local Government,DCLG,07/10/2016,"Rail, Underground and Eurostar",Local Government & Public Services,REDFERN TRAVEL LIMITED,,Small,,213089972,2100268132,Rail,Consolidated Monthly Travel September Rail,BD1 3AZ,"1,917.05",
Communities & Local Government,DCLG,07/10/2016,"Rail, Underground and Eurostar",Local Government & Public Services,REDFERN TRAVEL LIMITED,,Small,,213089972,2100268132,Rail,Consolidated Monthly Travel September Rail,BD1 3AZ,"1,089.00",
Communities & Local Government,DCLG,07/10/2016,"Rail, Underground and Eurostar",Local Government & Public Services,REDFERN TRAVEL LIMITED,,Small,,213089972,2100268132,Rail,Consolidated Monthly Travel September Rail,BD1 3AZ,"1,264.60",
Communities & Local Government,DCLG,07/10/2016,"Rail, Underground and Eurostar",Local Government & Public Services,REDFERN TRAVEL LIMITED,,Small,,213089972,2100268132,Rail,Consolidated Monthly Travel September Rail,BD1 3AZ,"1,145.80",
Communities & Local Government,DCLG,07/10/2016,"Rail, Underground and Eurostar",Local Government & Public Services,REDFERN TRAVEL LIMITED,,Small,,213089972,2100268132,Rail,Consolidated Monthly Travel September Rail,BD1 3AZ,"5,741.85",
Communities & Local Government,DCLG,07/10/2016,"Rail, Underground and Eurostar","Strategy, Communications and Private Office",REDFERN TRAVEL LIMITED,,Small,,213089972,2100268132,Rail,Consolidated Monthly Travel September Rail,BD1 3AZ,"1,235.80",
Communities & Local Government,DCLG,07/10/2016,"Rail, Underground and Eurostar","Strategy, Communications and Private Office",REDFERN TRAVEL LIMITED,,Small,,213089972,2100268132,Rail,Consolidated Monthly Travel September Rail,BD1 3AZ,378.8,
Communities & Local Government,DCLG,07/10/2016,"Rail, Underground and Eurostar","Strategy, Communications and Private Office",REDFERN TRAVEL LIMITED,,Small,,213089972,2100268132,Rail,Consolidated Monthly Travel September Rail,BD1 3AZ,"1,040.10",
Communities & Local Government,DCLG,07/10/2016,"Rail, Underground and Eurostar","Strategy, Communications and Private Office",REDFERN TRAVEL LIMITED,,Small,,213089972,2100268132,Rail,Consolidated Monthly Travel September Rail,BD1 3AZ,870.4,
Communities & Local Government,DCLG,07/10/2016,"Rail, Underground and Eurostar","Strategy, Communications and Private Office",REDFERN TRAVEL LIMITED,,Small,,213089972,2100268132,Rail,Consolidated Monthly Travel September Rail,BD1 3AZ,"1,272.95",
Communities & Local Government,DCLG,07/10/2016,"Rail, Underground and Eurostar","Strategy, Communications and Private Office",REDFERN TRAVEL LIMITED,,Small,,213089972,2100268132,Rail,Consolidated Monthly Travel September Rail,BD1 3AZ,732.5,
Communities & Local Government,DCLG,07/10/2016,"Rail, Underground and Eurostar",Local Government & Public Services,REDFERN TRAVEL LIMITED,,Small,,213089972,2100268132,Rail,Consolidated Monthly Travel September Rail,BD1 3AZ,536.6,
Communities & Local Government,DCLG,07/10/2016,Steady State Service Provision,Finance,VODAFONE LTD FORMELY CABLE  & WIREL,,Large,,239869688,5106224041,Business Process Outsourcing Services,FY 16/17 GSI-GCF Service Cgs,MK3 5JP,"85,457.98",
Communities & Local Government,DCLG,07/10/2016,Steady State Service Provision,Housing & Planning,LOCALITY,,Medium,,347998312,5106223946,Business Process Outsourcing Services,Neighbourhood Planning & CRTB,N1 6DR,"36,792.88",
Communities & Local Government,DCLG,07/10/2016,Steady State Service Provision,Local Government & Public Services,CO-OPERATIVES UK,,Small,,,5106223945,Business Process Outsourcing Services,Community Economic Development � Contract Variation,M60 0AS,"32,236.94",
Communities & Local Government,DCLG,07/10/2016,Training,Finance,CAPITA BUS. SERV. LTD (CSL),,Large,,215580993,5106223988,Development and Training,Civil Service Training,DL1 9HB,"5,060.98",
Communities & Local Government,DCLG,07/10/2016,Training,Finance,SCT CONSULTANTS LTD,,Micro,,,5106224025,Development and Training,Civil Service Training,W8 5RL,"9,750.00",
Communities & Local Government,DCLG,07/10/2016,Travel and Subsistence Account,Decentralisation and Local Growth,REDFERN TRAVEL LIMITED,,Small,,213089972,2100268132,Business Travel,Consolidated Monthly Travel September Misc T&S,BD1 3AZ,327.07,
Communities & Local Government,DCLG,07/10/2016,Vehicle hire,"Strategy, Communications and Private Office",GOVERNMENT CAR & DESPATCH AGENCY,,Public Bodies,,,5106223828,Vehicle Hire and Lease,Ministerial Duty Car (Non-VAT),SW8 5AX,189.01,
Communities & Local Government,DCLG,07/10/2016,Vehicle hire,"Strategy, Communications and Private Office",GOVERNMENT CAR & DESPATCH AGENCY,,Public Bodies,,,5106223828,Vehicle Hire and Lease,Ministerial Duty Car 2(LT206) 2016-17,SW8 5AX,"6,866.90",
Communities & Local Government,DCLG,07/10/2016,Vehicle hire,"Strategy, Communications and Private Office",GOVERNMENT CAR & DESPATCH AGENCY,,Public Bodies,,,5106223829,Vehicle Hire and Lease,Ministerial Duty Car (Non-VAT),SW8 5AX,378.01,
Communities & Local Government,DCLG,07/10/2016,Vehicle hire,"Strategy, Communications and Private Office",GOVERNMENT CAR & DESPATCH AGENCY,,Public Bodies,,,5106223829,Vehicle Hire and Lease,Ministerial Duty Car 2(LT206) 2016-17,SW8 5AX,"6,916.65",
Communities & Local Government,DCLG,07/10/2016,Work In Progress Pre-Cert 40467 Spend,Decentralisation and Local Growth,NOTTINGHAM UNIVERSITY,,Large,,,2300002487,,Recovery of grant,NG7 2RD,"-55,049.02",Yes
Communities & Local Government,DCLG,07/10/2016,Work In Progress Pre-Cert 40467 Spend,Decentralisation and Local Growth,NOTTINGHAM UNIVERSITY,,Large,,,2300002487,,Recovery of grant,NG7 2RD,"-15,059.06",Yes
Communities & Local Government,DCLG,10/10/2016,Current Grants to Non Profit Bodies,Local Government & Public Services,UMMA HELP,,,,,2100268159,,Project about genocide and intolerence,B16 8UA,"81,304.00",Yes
Communities & Local Government,DCLG,10/10/2016,Grant in Aid to NDPBs (non budget),Housing & Planning,LEASEHOLD ADVISORY SERVICE,,Small,,378000152,2100268161,,Grant in aid claim for Qrt 3 (Oct-Dec 2016),WT1 7BN,"236,822.00",Yes
Communities & Local Government,DCLG,10/10/2016,IT - Service Contracts,Finance,KAIZEN ASSOCIATES LTD,,Micro,,217482430,5106224056,IT Managed / Outsourced Services,DataMart SAP Application Support,SE1 6SW,"2,319.77",
Communities & Local Government,DCLG,10/10/2016,IT - Software Maintenance,Finance,KAIZEN ASSOCIATES LTD,,Micro,,217482430,5106224056,IT Managed / Outsourced Services,SAP Application Support 2015-17,SE1 6SW,"4,287.73",
Communities & Local Government,DCLG,10/10/2016,Services provided by other Govt Orgs,Finance,CABINET OFFICE,,Public Bodies,,232159186,2100268157,Financial,250015547 - 75% OF OPC FUNDING CHARGES FOR 2016/17,FY5 3TA,"208,212.00",Yes
Communities & Local Government,DCLG,10/10/2016,Steady State Service Provision,Finance,MYCSP LIMITED,,Large,,217279092,5106224057,Business Process Outsourcing Services,Administration Charge,SK3 0XN,507.07,
Communities & Local Government,DCLG,10/10/2016,Steady State Service Provision,Local Government & Public Services,VODAFONE LTD FORMELY CABLE  & WIREL,,Large,,239869688,5106224054,Business Process Outsourcing Services,Managed Internet Access Line,MK3 5JP,582.58,
Communities & Local Government,DCLG,11/10/2016,Agency Staff,Finance,INTERQUEST GROUP UK LIMITED,,Large,,423935241,5106224061,IT Managed / Outsourced Services,SAP Support Services,EC1N 8UA,"17,871.67",
Communities & Local Government,DCLG,11/10/2016,Current Grants to Non Profit Bodies,Housing & Planning,CEL GROUP,,Medium,,394794614,5106224063,Technical Services,Home Improvement Agencies 01.04.16 - 31.03.18,WA2 0YL,"68,870.86",Yes
Communities & Local Government,DCLG,11/10/2016,EXP � PURCHASE OF GOODS /SERVICES R & D,Housing & Planning,INNOVATE AT PRP LTD,,Large,,,5106224062,Research,Simplified Rules re Building Standards,KT7 0QJ,"10,938.00",
Communities & Local Government,DCLG,11/10/2016,IT - Service Contracts,Finance,FUJITSU SERVICES LTD,,Large,,423375062,5106224038,IT Managed / Outsourced Services,NR     PAMU Office Move Project,WA3 6GD,701,
Communities & Local Government,DCLG,11/10/2016,Recruitment,Finance,DISCLOSURE SCOTLAND,,Micro,,210312811,5106224069,Business Process Outsourcing Services,Security Checks 15/16,G51 1YU,250,
Communities & Local Government,DCLG,11/10/2016,Software Licences,Finance,BYTES SOFTWARE SERVICES LTD,,Medium,,225273754,5106224071,Software,Microsoft  Prjct 2016 SNGL MVL,KT22 7TW,374.54,
Communities & Local Government,DCLG,11/10/2016,Training,Finance,CAPITA BUS. SERV. LTD (CON LAB),,Large,,,5106224064,Development and Training,Civil Service Training,DL1 9HB,611.89,
Communities & Local Government,DCLG,11/10/2016,Work In Progress Pre-Cert 40373 Spend,Decentralisation and Local Growth,NORFOLK&WAVENEY ENTERPRISE SERV'S,,,,,7700000012,,Revenue grant payment,NR2 1JH,"68,053.74",Yes
Communities & Local Government,DCLG,11/10/2016,Work In Progress Pre-Cert 40467 Spend,Decentralisation and Local Growth,INDIANA DEVELOPMENTS LLP,,Micro,,,7600015471,,Capital Grant Clawback Offset,EX21 5PU,"-16,381.01",Yes
Communities & Local Government,DCLG,11/10/2016,Work In Progress Pre-Cert 40467 Spend,Decentralisation and Local Growth,INDIANA DEVELOPMENTS LLP,,Micro,,,7600015471,,Capital Grant To Be Paid,EX21 5PU,"43,888.81",Yes
Communities & Local Government,DCLG,12/10/2016,Grant in Aid to NDPBs (non budget),Housing & Planning,HOMES & COMMUNITIES AGENCY,,Public Bodies,,215576860,2100268238,,Monthly HCA Grant in Aid Claim - October 2016,NE11 0NA,"202,579,172.00",Yes
Communities & Local Government,DCLG,12/10/2016,IT - Service Contracts,Finance,ICASEWORK LTD,,Large,,,5106224108,IT Managed / Outsourced Services,DispatchBox Year 1 Service Charges,NW6 7SG,"5,060.00",
Communities & Local Government,DCLG,12/10/2016,Professional services,Local Government & Public Services,VALUATION OFFICE AGENCY,,Public Bodies,,215253886,2100268112,Environmental Services,Payment for work on NNDR and Council Tax - OCT,W1D 5BU,"13,325,000.00",
Communities & Local Government,DCLG,12/10/2016,Steady State Service Provision,Finance,MYCSP LIMITED,,Large,,217279092,5106223915,Business Process Outsourcing Services,Administration Charge,SK3 0XN,772,
Communities & Local Government,DCLG,12/10/2016,Training,Finance,BUSINESS INNOVATION & SKILLS,,Public Bodies,,228450383,5106224101,Development and Training,Civil Service Training,NP10 8QQ,"5,361.50",
Communities & Local Government,DCLG,12/10/2016,Training,Finance,CAPITA BUS. SERV. LTD (CON LAB),,Large,,,5106224092,Development and Training,Civil Service Training,DL1 9HB,721.75,
Communities & Local Government,DCLG,12/10/2016,Training,Finance,CAPITA BUS. SERV. LTD (CSL),,Large,,215580993,5106224090,Development and Training,Civil Service Training,DL1 9HB,690,
Communities & Local Government,DCLG,12/10/2016,Training,Finance,CAPITA BUS. SERV. LTD (CSL),,Large,,215580993,5106224093,Development and Training,Civil Service Training,DL1 9HB,690,
Communities & Local Government,DCLG,12/10/2016,Training,Finance,CAPITA BUS. SERV. LTD (CSL),,Large,,215580993,5106224093,Development and Training,Civil Service Training,DL1 9HB,"1,860.00",
Communities & Local Government,DCLG,12/10/2016,Training,Finance,CAPITA BUS. SERV. LTD (CSL),,Large,,215580993,5106224111,Development and Training,Civil Service Training,DL1 9HB,315.48,
Communities & Local Government,DCLG,12/10/2016,Training,Finance,DODS PARLIAMENTARY COMM  LTD,,Large,,290673748,5106224102,Development and Training,Civil Service Training,SE1 9SG,295,
Communities & Local Government,DCLG,12/10/2016,Training,Finance,LSR TRAINING AND DEVELOPMENT,,Micro,,,5106224106,Development and Training,Civil Service Training,S44 6UQ,640,
Communities & Local Government,DCLG,12/10/2016,Training,Finance,PLAIN ENGLISH CAMPAIGN LTD,,Small,Yes,764826095,5106224103,Development and Training,Civil Service Training,,300,
Communities & Local Government,DCLG,12/10/2016,Training,Housing & Planning,DODS PARLIAMENTARY COMM  LTD,,Large,,290673748,5106224105,Development and Training,Civil Service Training,SE1 9SG,235,
Communities & Local Government,DCLG,12/10/2016,Work In Progress Pre-Cert 40373 Spend,Decentralisation and Local Growth,SHEFFIELD  CC,,,,,2300002594,,ERDF funded project within the YH ERDF Programme 2,S1 2SH,-880.73,Yes
Communities & Local Government,DCLG,12/10/2016,Work In Progress Pre-Cert 40467 Spend,Decentralisation and Local Growth,ALLIA LTD,Yes,Micro,,,2300002480,,Recovery of grant,CB1 2QF,"-75,169.27",Yes
Communities & Local Government,DCLG,13/10/2016,Current (non AEF) Grants to Local Authorities,Housing & Planning,GREATER LONDON AUTHORITY,,,,,5000347261,,Preventing Homelessness Grant (LAs),SE10 1AJ,"69,189.00",Yes
Communities & Local Government,DCLG,13/10/2016,Current Grants to Non Profit Bodies,Housing & Planning,ELDERLY ACCOMMODATION COUNSEL,Yes,,,,5000347257,,Preventing Homelessness Grant (VOL),SE1 7TP,"75,304.00",Yes
Communities & Local Government,DCLG,13/10/2016,Current Grants to Non Profit Bodies,Housing & Planning,HOMELESS LINK,Yes,,,,5000347259,,Preventing Homelessness Grant (VOL),SE11 4AP,"279,544.00",Yes
Communities & Local Government,DCLG,13/10/2016,IT - Service Contracts,Finance,FUJITSU SERVICES LTD,,Large,,423375062,5106224124,IT Managed / Outsourced Services,Telephony Fujitsu (resource)FY16/17,WA3 6GD,"9,128.88",
Communities & Local Government,DCLG,13/10/2016,IT - Service Contracts,Finance,MARKLOGIC CORPORATION,,Large,,,5106224125,IT Managed / Outsourced Services,Beta Development Charges,CA 94070,"263,465.65",
Communities & Local Government,DCLG,13/10/2016,IT - Software Maintenance,Finance,LOCKHEED MARTIN BUSINESS TECH SOLUT,,Large,,399909910,5106224118,IT Managed / Outsourced Services,MCIS/TESA support services FY16/17,G3 8EP,"48,108.00",
Communities & Local Government,DCLG,13/10/2016,Physical Storage,Finance,TNT UK LIMITED,,Large,,,5106224072,Warehousing and Storage,Offsite Records Storage FYR 16/17,BL10 9GR,"32,715.19",
Communities & Local Government,DCLG,13/10/2016,Physical Storage,Finance,TNT UK LIMITED,,Large,,,5106224114,Warehousing and Storage,Offsite Records Storage FYR 16/17,BL10 9GR,"4,027.98",
Communities & Local Government,DCLG,13/10/2016,Physical Storage,Finance,TNT UK LIMITED,,Large,,,5106224129,Warehousing and Storage,Offsite Records Storage FYR 16/17,BL10 9GR,876.52,
Communities & Local Government,DCLG,13/10/2016,Physical Storage,Finance,TNT UK LIMITED,,Large,,,5106224131,Warehousing and Storage,Offsite Records Storage FYR 16/17,BL10 9GR,"1,555.37",
Communities & Local Government,DCLG,13/10/2016,Safety equipment,Finance,CYCLESCHEME LTD,,Large,,345537935,5106224047,Clothing and Textiles,Salaried Cycle to work scheme accessorie,BA1 2LN,19.99,
Communities & Local Government,DCLG,13/10/2016,Services provided by other Govt Orgs,Housing & Planning,HOMES & COMMUNITIES AGENCY,,Public Bodies,,215576860,2100268309,Financial,Fund compensation payments for VRtB Pilot,NE11 0NA,"2,894,188.00",Yes
Communities & Local Government,DCLG,13/10/2016,Training,Finance,CAPITA BUS. SERV. LTD (CSL),,Large,,215580993,5106224121,Development and Training,Civil Service Training,DL1 9HB,592.12,
Communities & Local Government,DCLG,13/10/2016,Training,Finance,SHARED SERVICES CONNECTED LTD,,Public Bodies,,,5106224120,Development and Training,Civil Service Training,FY5 3TA,"4,755.00",
Communities & Local Government,DCLG,13/10/2016,Vehicle hire,Finance,CYCLESCHEME LTD,,Large,,345537935,5106224047,Vehicle Hire and Lease,16-17 Cycle to work Costs,BA1 2LN,"1,824.97",
Communities & Local Government,DCLG,13/10/2016,Web Services,"Strategy, Communications and Private Office",HELPFUL TECHNOLOGY LTD,,Micro,,216608694,5106224117,ICT Services,Intranet set up/content migration,BR3 4EY,"15,408.00",
Communities & Local Government,DCLG,14/10/2016,Agency Staff,Decentralisation and Local Growth,CAPITA BUS. SERV. LTD (CON LAB),,Large,,,5106224136,Contingent Labour,Interim Manager,DL1 9HB,"1,766.94",
Communities & Local Government,DCLG,14/10/2016,Agency Staff,Decentralisation and Local Growth,CAPITA BUS. SERV. LTD (CON LAB),,Large,,,5106224137,Contingent Labour,Interim Manager,DL1 9HB,"11,808.50",
Communities & Local Government,DCLG,14/10/2016,Agency Staff,Decentralisation and Local Growth,CAPITA BUS. SERV. LTD (CON LAB),,Large,,,5106224141,Contingent Labour,Interim Manager,DL1 9HB,"1,700.28",
Communities & Local Government,DCLG,14/10/2016,Agency Staff,Finance,BROOK STREET UK LTD,,Large,,364940028,5106224142,Contingent Labour,Support worker for staff interim measure,AL1 4JB,431.17,
Communities & Local Government,DCLG,14/10/2016,Agency Staff,Finance,BROOK STREET UK LTD,,Large,,364940028,5106224144,Contingent Labour,Interim Admin support,AL1 4JB,513.4,
Communities & Local Government,DCLG,14/10/2016,Agency Staff,Finance,CAPITA BUS. SERV. LTD (CON LAB),,Large,,,5106224147,Contingent Labour,Interim Manager,DL1 9HB,"3,068.28",
Communities & Local Government,DCLG,14/10/2016,Current (non AEF) Grants to Local Authorities,Housing & Planning,GREATER LONDON AUTHORITY,,Large,,,2100268240,,Fund compensation payments for VRtB Pilot Qtr 3,SE1 2AA,"4,510,800.00",Yes
Communities & Local Government,DCLG,14/10/2016,Current (non AEF) Grants to Local Authorities,Local Government & Public Services,ALLERDALE BOROUGH COUNCIL,,,,230824120,2600061999,,Bellwin scheme payment,CA14 3YJ,"218,274.00",Yes
Communities & Local Government,DCLG,14/10/2016,Current (non AEF) Grants to Local Authorities,Local Government & Public Services,BURY MBC,,,,236491114,2600061998,,Bellwin scheme payment,BL9 0SP,"111,490.00",Yes
Communities & Local Government,DCLG,14/10/2016,Current (non AEF) Grants to Local Authorities,Local Government & Public Services,ROCHDALE MBC,,,,,2600062000,,Bellwin scheme payment,OL16 1YG,"139,674.00",Yes
Communities & Local Government,DCLG,14/10/2016,Current (non AEF) Grants to Local Authorities,Local Government & Public Services,WYRE BC,,,,236646493,2600062001,,Bellwin scheme payment,FY6 7PU,"15,701.00",Yes
Communities & Local Government,DCLG,14/10/2016,Current (non AEF) Grants to Local Authorities,Local Government & Public Services,YORK CITY CNCL,,,,,2600062002,,Bellwin scheme payment,YO1 1XH,"144,413.00",Yes
Communities & Local Government,DCLG,14/10/2016,IT - Service Contracts,Finance,ARCUS GLOBAL LIMITED,,Medium,,,5106224154,IT Managed / Outsourced Services,T&M wks FY16-17,CB4 2HY,"14,758.31",
Communities & Local Government,DCLG,14/10/2016,IT - Service Contracts,Local Government & Public Services,CAPITA BUS. SERV. LTD (CON LAB),,Large,,,5106224145,Contingent Labour,Specialist Expertise,DL1 9HB,"4,276.44",
Communities & Local Government,DCLG,14/10/2016,Publications,"Strategy, Communications and Private Office",JONES YARRELL LEADENHALL LTD,,Large,,505670265,5106224135,Learning and Development Materials,JYL Printed Publications,E3 3JH,393.87,
Communities & Local Government,DCLG,14/10/2016,Web Services,"Strategy, Communications and Private Office",HELPFUL TECHNOLOGY LTD,,Micro,,216608694,5106224152,ICT Services,Support/Hosting costs 2yrs,BR3 4EY,"2,520.00",
Communities & Local Government,DCLG,14/10/2016,Work In Progress Pre-Cert 40373 Spend,Decentralisation and Local Growth,NORTH EAST ENTERPRISE AGENCY LTD,,,,,7700000016,,Revenue grant payment,SR5 2TA,"61,865.08",Yes
Communities & Local Government,DCLG,14/10/2016,Work In Progress Pre-Cert 40373 Spend,Decentralisation and Local Growth,NORTH EAST ENTERPRISE AGENCY LTD,,,,,7700000017,,Revenue grant payment,SR5 2TA,"63,325.12",Yes
Communities & Local Government,DCLG,14/10/2016,Work In Progress Pre-Cert 40373 Spend,Decentralisation and Local Growth,NORTH EAST ENTERPRISE AGENCY LTD,,,,,7700000017,,Revenue grant payment,SR5 2TA,"38,853.35",Yes
Communities & Local Government,DCLG,14/10/2016,Work In Progress Pre-Cert 40373 Spend,Decentralisation and Local Growth,RTC NORTH,,Small,,,7700000014,,Revenue grant payment,SR5 3XB,"67,842.41",Yes
Communities & Local Government,DCLG,14/10/2016,Work In Progress Pre-Cert 40373 Spend,Decentralisation and Local Growth,RTC NORTH,,Small,,,7700000014,,Revenue grant payment,SR5 3XB,"75,943.36",Yes
Communities & Local Government,DCLG,14/10/2016,Work In Progress Pre-Cert 40373 Spend,Decentralisation and Local Growth,RTC NORTH,,Small,,,7700000015,,Revenue grant payment,SR5 3XB,"68,405.63",Yes
Communities & Local Government,DCLG,14/10/2016,Work In Progress Pre-Cert 40373 Spend,Decentralisation and Local Growth,STAFFORDSHIRE & BLACK COUNTRY,,,,,7700000013,,Revenue grant payment,ST3 4HY,"75,910.51",Yes
Communities & Local Government,DCLG,14/10/2016,Work In Progress Pre-Cert 40373 Spend,Decentralisation and Local Growth,UNIVERSITY OF NORTHUMBRIA,,Large,,,7700000018,,Revenue grant payment,NE 8ST,"13,099.68",Yes
Communities & Local Government,DCLG,17/10/2016,Advertising,"Strategy, Communications and Private Office",CARAT LTD,,Large,,211589882,5106224138,Advertising,Right to Buy Media Buying -Radio,NW1 3BF,"63,209.64",
Communities & Local Government,DCLG,17/10/2016,Advertising,"Strategy, Communications and Private Office",CARAT LTD,,Large,,211589882,5106224143,Advertising,Zero VAT Line,NW1 3BF,29.05,
Communities & Local Government,DCLG,17/10/2016,Advertising,"Strategy, Communications and Private Office",CARAT LTD,,Large,,211589882,5106224143,Advertising,Own your Own home Digital Advertising ,NW1 3BF,"37,856.64",
Communities & Local Government,DCLG,17/10/2016,Advertising,"Strategy, Communications and Private Office",CARAT LTD,,Large,,211589882,5106224146,Advertising,Right to Buy Media Buying -Radio,NW1 3BF,"8,561.93",
Communities & Local Government,DCLG,17/10/2016,Advertising,"Strategy, Communications and Private Office",CARAT LTD,,Large,,211589882,5106224151,Advertising,Right to Buy Media Buying -Radio,NW1 3BF,"8,485.25",
Communities & Local Government,DCLG,17/10/2016,Advertising,"Strategy, Communications and Private Office",CARAT LTD,,Large,,211589882,5106224153,Advertising,Own Your Home Campaign,NW1 3BF,"-73,486.78",
Communities & Local Government,DCLG,17/10/2016,Advertising,"Strategy, Communications and Private Office",CARAT SCOTLAND,,Large,,519820302,5106224167,Advertising,wn Your Own Home Planning Svcs,EH1 3HU,817.09,
Communities & Local Government,DCLG,17/10/2016,Advertising,"Strategy, Communications and Private Office",TULLO MARSHALL WARREN LTD,,Medium,,,5106224050,Advertising,Right to Buy Marketing Contract 16/17,W1F 9NB,"6,264.75",
Communities & Local Government,DCLG,17/10/2016,Advertising,"Strategy, Communications and Private Office",TULLO MARSHALL WARREN LTD,,Medium,,,5106224162,Advertising,Right to Buy Marketing Contract 16/17,W1F 9NB,"4,650.50",
Communities & Local Government,DCLG,17/10/2016,Advertising,"Strategy, Communications and Private Office",TULLO MARSHALL WARREN LTD,,Medium,,,5106224163,Advertising,Right to Buy Marketing Contract 16/17,W1F 9NB,"3,982.00",
Communities & Local Government,DCLG,17/10/2016,Advertising,"Strategy, Communications and Private Office",TULLO MARSHALL WARREN LTD,,Medium,,,5106224165,Advertising,Right to Buy Marketing Contract 16/17,W1F 9NB,"1,416.50",
Communities & Local Government,DCLG,17/10/2016,Current (non AEF) Grants to Local Authorities,Local Government & Public Services,BARKING & DAGENHAM LB (HSG),,,,217142293,5000347093,,Lead Local Flood Authority Grant,RM10 7BY,445,Yes
Communities & Local Government,DCLG,17/10/2016,Current (non AEF) Grants to Local Authorities,Local Government & Public Services,BARNSLEY MBC,,,,211178595,5000347118,,Lead Local Flood Authority Grant,S70 2AQ,291,Yes
Communities & Local Government,DCLG,17/10/2016,Current (non AEF) Grants to Local Authorities,Local Government & Public Services,BATH & NE SOMERSET DC (HSG),,,,214502499,5000347094,,Lead Local Flood Authority Grant,BA1 5AW,603,Yes
Communities & Local Government,DCLG,17/10/2016,Current (non AEF) Grants to Local Authorities,Local Government & Public Services,BEDFORD UNITARY AUTHORITY,,,,225682160,5000347241,,Lead Local Flood Authority Grant,MK40 1SJ,581,Yes
Communities & Local Government,DCLG,17/10/2016,Current (non AEF) Grants to Local Authorities,Local Government & Public Services,BEXLEY LB (HSG),,,,,5000347095,,Lead Local Flood Authority Grant,DA8 1TL,783,Yes
Communities & Local Government,DCLG,17/10/2016,Current (non AEF) Grants to Local Authorities,Local Government & Public Services,BIRMINGHAM CITY CNCL,,,,213780559,5000347119,,Lead Local Flood Authority Grant,B2 2AJ,"1,771.00",Yes
Communities & Local Government,DCLG,17/10/2016,Current (non AEF) Grants to Local Authorities,Local Government & Public Services,BLACKBURN WITH DARWEN BC,,,,,5000347120,,Lead Local Flood Authority Grant,BB1 7DY,339,Yes
Communities & Local Government,DCLG,17/10/2016,Current (non AEF) Grants to Local Authorities,Local Government & Public Services,BLACKPOOL BC,,,,,5000347121,,Lead Local Flood Authority Grant,FY1 1NA,251,Yes
Communities & Local Government,DCLG,17/10/2016,Current (non AEF) Grants to Local Authorities,Local Government & Public Services,BOLTON MBC,,,,,5000347122,,Lead Local Flood Authority Grant,BL1 1RU,373,Yes
Communities & Local Government,DCLG,17/10/2016,Current (non AEF) Grants to Local Authorities,Local Government & Public Services,BRACKNELL FOREST DC,,,,236184867,5000347124,,Lead Local Flood Authority Grant,RG12 1AQ,360,Yes
Communities & Local Government,DCLG,17/10/2016,Current (non AEF) Grants to Local Authorities,Local Government & Public Services,BRADFORD MBC,,,,,5000347125,,Lead Local Flood Authority Grant,BD1 1HX,828,Yes
Communities & Local Government,DCLG,17/10/2016,Current (non AEF) Grants to Local Authorities,Local Government & Public Services,BRENT LB (HSG),,,,,5000347096,,Lead Local Flood Authority Grant,HA9 9HD,888,Yes
Communities & Local Government,DCLG,17/10/2016,Current (non AEF) Grants to Local Authorities,Local Government & Public Services,BRIGHTON & HOVE CITY COUNCIL,,Large,,228455218,5000347126,,Lead Local Flood Authority Grant,BN3 2LS,"1,161.00",Yes
Communities & Local Government,DCLG,17/10/2016,Current (non AEF) Grants to Local Authorities,Local Government & Public Services,BRISTOL CITY CNCL (HSG),,,,211103882,5000347097,,Lead Local Flood Authority Grant,BS99 7BL,998,Yes
Communities & Local Government,DCLG,17/10/2016,Current (non AEF) Grants to Local Authorities,Local Government & Public Services,BROMLEY LB,,,,211331954,5000347127,,Lead Local Flood Authority Grant,BR1 3UH,"1,194.00",Yes
Communities & Local Government,DCLG,17/10/2016,Current (non AEF) Grants to Local Authorities,Local Government & Public Services,BUCKINGHAMSHIRE CC,,,,293750923,5000347128,,Lead Local Flood Authority Grant,HP20 1UD,"1,939.00",Yes
Communities & Local Government,DCLG,17/10/2016,Current (non AEF) Grants to Local Authorities,Local Government & Public Services,BURY MBC,,,,,5000347129,,Lead Local Flood Authority Grant,BL9 0SW,436,Yes
Communities & Local Government,DCLG,17/10/2016,Current (non AEF) Grants to Local Authorities,Local Government & Public Services,CALDERDALE MBC,,,,,5000347130,,Lead Local Flood Authority Grant,HX1 1YP,"1,008.00",Yes
Communities & Local Government,DCLG,17/10/2016,Current (non AEF) Grants to Local Authorities,Local Government & Public Services,CAMBRIDGESHIRE COUNTY CNCL,,,,219047347,5000347131,,Lead Local Flood Authority Grant,CB3 0AP,"1,983.00",Yes
Communities & Local Government,DCLG,17/10/2016,Current (non AEF) Grants to Local Authorities,Local Government & Public Services,CAMDEN LB,,,,211651836,5000347132,,Lead Local Flood Authority Grant,WC1H 8NG,922,Yes
Communities & Local Government,DCLG,17/10/2016,Current (non AEF) Grants to Local Authorities,Local Government & Public Services,CENTRAL BEDFORDSHIRE COUNCIL,,,,232624882,5000347238,,Lead Local Flood Authority Grant,SG17 5TQ,708,Yes
Communities & Local Government,DCLG,17/10/2016,Current (non AEF) Grants to Local Authorities,Local Government & Public Services,CHESHIRE EAST COUNCIL,,Large,,,5000347239,,Lead Local Flood Authority Grant,CW11 1HZ,556,Yes
Communities & Local Government,DCLG,17/10/2016,Current (non AEF) Grants to Local Authorities,Local Government & Public Services,CHESHIRE WEST & CHESTER UA,,Large,,215584383,5000347240,,Lead Local Flood Authority Grant,CH1 2NP,699,Yes
Communities & Local Government,DCLG,17/10/2016,Current (non AEF) Grants to Local Authorities,Local Government & Public Services,CITY OF LONDON,,Large,,217471460,2100268347,,Community Based English Language Programme,EC2P 2EJ,"200,266.66",Yes
Communities & Local Government,DCLG,17/10/2016,Current (non AEF) Grants to Local Authorities,Local Government & Public Services,CITY OF SUNDERLAND (HSG),,,,215599312,5000347099,,Lead Local Flood Authority Grant,SR2 7DN,401,Yes
Communities & Local Government,DCLG,17/10/2016,Current (non AEF) Grants to Local Authorities,Local Government & Public Services,CITY OF WAKEFIELD MDC,,,,,5000347221,,Lead Local Flood Authority Grant,WF1 2QW,688,Yes
Communities & Local Government,DCLG,17/10/2016,Current (non AEF) Grants to Local Authorities,Local Government & Public Services,CORNWALL UNITARY AUTHORITY,,,,211334404,5000347243,,Lead Local Flood Authority Grant,TR1 3AY,"1,727.00",Yes
Communities & Local Government,DCLG,17/10/2016,Current (non AEF) Grants to Local Authorities,Local Government & Public Services,COVENTRY CITY CNCL,,,,210384802,5000347133,,Lead Local Flood Authority Grant,CV1 2QL,660,Yes
Communities & Local Government,DCLG,17/10/2016,Current (non AEF) Grants to Local Authorities,Local Government & Public Services,CROYDON LB,,,,212419973,5000347134,,Lead Local Flood Authority Grant,CR9 3JS,"1,201.00",Yes
Communities & Local Government,DCLG,17/10/2016,Current (non AEF) Grants to Local Authorities,Local Government & Public Services,CUMBRIA COUNTY CNCL,,,,211316542,5000347135,,Lead Local Flood Authority Grant,CA3 8NA,"1,914.00",Yes
Communities & Local Government,DCLG,17/10/2016,Current (non AEF) Grants to Local Authorities,Local Government & Public Services,DERBY CITY CNCL,,,,229641378,5000347137,,Lead Local Flood Authority Grant,DE1 2FS,551,Yes
Communities & Local Government,DCLG,17/10/2016,Current (non AEF) Grants to Local Authorities,Local Government & Public Services,DERBYSHIRE COUNTYCOUNCIL,,,,232152967,5000347138,,Lead Local Flood Authority Grant,DE4 3AG,"2,231.00",Yes
Communities & Local Government,DCLG,17/10/2016,Current (non AEF) Grants to Local Authorities,Local Government & Public Services,DEVON COUNTY CNCL,,,,213754018,5000347139,,Lead Local Flood Authority Grant,EX2 4QJ,"3,665.00",Yes
Communities & Local Government,DCLG,17/10/2016,Current (non AEF) Grants to Local Authorities,Local Government & Public Services,DONCASTER MBC,,,,,5000347140,,Lead Local Flood Authority Grant,DN1 3QA,"1,157.00",Yes
Communities & Local Government,DCLG,17/10/2016,Current (non AEF) Grants to Local Authorities,Local Government & Public Services,DORSET COUNTY CNCL,,,,225431279,5000347141,,Lead Local Flood Authority Grant,DT1 1XJ,"1,644.00",Yes
Communities & Local Government,DCLG,17/10/2016,Current (non AEF) Grants to Local Authorities,Local Government & Public Services,DUDLEY MBC,,,,,5000347142,,Lead Local Flood Authority Grant,DY1 1HF,493,Yes
Communities & Local Government,DCLG,17/10/2016,Current (non AEF) Grants to Local Authorities,Local Government & Public Services,DURHAM COUNTY COUNCIL,,,,224004882,5000347244,,Lead Local Flood Authority Grant,DH1 5UE,757,Yes
Communities & Local Government,DCLG,17/10/2016,Current (non AEF) Grants to Local Authorities,Local Government & Public Services,EALING LB,,,,,5000347143,,Lead Local Flood Authority Grant,W5 2HL,625,Yes
Communities & Local Government,DCLG,17/10/2016,Current (non AEF) Grants to Local Authorities,Local Government & Public Services,EAST RIDING OF YORKS (HSG),,,,423159987,5000347100,,Lead Local Flood Authority Grant,HU17 9BA,"1,978.00",Yes
Communities & Local Government,DCLG,17/10/2016,Current (non AEF) Grants to Local Authorities,Local Government & Public Services,EAST SUSSEX COUNTY CNCL,,,,,5000347144,,Lead Local Flood Authority Grant,BN7 1SF,"1,809.00",Yes
Communities & Local Government,DCLG,17/10/2016,Current (non AEF) Grants to Local Authorities,Local Government & Public Services,ENFIELD LB,,,,,5000347145,,Lead Local Flood Authority Grant,EN1 3XF,923,Yes
Communities & Local Government,DCLG,17/10/2016,Current (non AEF) Grants to Local Authorities,Local Government & Public Services,ESSEX COUNTY CNCL,,,,233572986,5000347146,,Lead Local Flood Authority Grant,CM1 1JZ,"4,088.00",Yes
Communities & Local Government,DCLG,17/10/2016,Current (non AEF) Grants to Local Authorities,Local Government & Public Services,GLOUCESTERSHIRE COUNTY CNCL,,,,211272067,5000347148,,Lead Local Flood Authority Grant,GL1 2TG,"1,974.00",Yes
Communities & Local Government,DCLG,17/10/2016,Current (non AEF) Grants to Local Authorities,Local Government & Public Services,GREENWICH LB,,,,,5000347149,,Lead Local Flood Authority Grant,SE18 6HQ,"1,216.00",Yes
Communities & Local Government,DCLG,17/10/2016,Current (non AEF) Grants to Local Authorities,Local Government & Public Services,HAMMERSMITH & FULHAM LB,,,,216929489,5000347151,,Lead Local Flood Authority Grant,W6 9JU,"1,851.00",Yes
Communities & Local Government,DCLG,17/10/2016,Current (non AEF) Grants to Local Authorities,Local Government & Public Services,HAMPSHIRE COUNTY COUNCIL,,,,211325832,5000347152,,Lead Local Flood Authority Grant,SO23 8UB,"3,702.00",Yes
Communities & Local Government,DCLG,17/10/2016,Current (non AEF) Grants to Local Authorities,Local Government & Public Services,HARINGEY LB,,,,217471767,5000347153,,Lead Local Flood Authority Grant,N22 4TR,809,Yes
Communities & Local Government,DCLG,17/10/2016,Current (non AEF) Grants to Local Authorities,Local Government & Public Services,HARROW LB,,,,,5000347154,,Lead Local Flood Authority Grant,HA1 2UZ,547,Yes
Communities & Local Government,DCLG,17/10/2016,Current (non AEF) Grants to Local Authorities,Local Government & Public Services,HAVERING LB,,,,211209770,5000347156,,Lead Local Flood Authority Grant,RM1 3BB,833,Yes
Communities & Local Government,DCLG,17/10/2016,Current (non AEF) Grants to Local Authorities,Local Government & Public Services,HEREFORDSHIRE COUNCIL,,,,,5000347102,,Lead Local Flood Authority Grant,HR4 0XH,750,Yes
Communities & Local Government,DCLG,17/10/2016,Current (non AEF) Grants to Local Authorities,Local Government & Public Services,HERTFORDSHIRE COUNTY CNCL,,,,210659897,5000347157,,Lead Local Flood Authority Grant,SG13 8DQ,"3,664.00",Yes
Communities & Local Government,DCLG,17/10/2016,Current (non AEF) Grants to Local Authorities,Local Government & Public Services,HILLINGDON LB,,,,211198585,5000347158,,Lead Local Flood Authority Grant,UB8 1UW,622,Yes
Communities & Local Government,DCLG,17/10/2016,Current (non AEF) Grants to Local Authorities,Local Government & Public Services,HOUNSLOW LB,,Public Bodies,,210388999,5000347159,,Lead Local Flood Authority Grant,TW3 4DN,777,Yes
Communities & Local Government,DCLG,17/10/2016,Current (non AEF) Grants to Local Authorities,Local Government & Public Services,HULL CITY COUNCIL,,,,217460984,5000347165,,Lead Local Flood Authority Grant,HU1 2AA,"3,154.00",Yes
Communities & Local Government,DCLG,17/10/2016,Current (non AEF) Grants to Local Authorities,Local Government & Public Services,ISLE OF WIGHT CNCL,,,,236431730,5000347160,,Lead Local Flood Authority Grant,PO30 1UD,381,Yes
Communities & Local Government,DCLG,17/10/2016,Current (non AEF) Grants to Local Authorities,Local Government & Public Services,ISLINGTON LB,,,,225716729,5000347162,,Lead Local Flood Authority Grant,N1 1XR,900,Yes
Communities & Local Government,DCLG,17/10/2016,Current (non AEF) Grants to Local Authorities,Local Government & Public Services,KENT COUNTY CNCL,,,,211334420,5000347164,,Lead Local Flood Authority Grant,ME14 1RF,"5,267.00",Yes
Communities & Local Government,DCLG,17/10/2016,Current (non AEF) Grants to Local Authorities,Local Government & Public Services,KINGSTON UPON THAMES  (HSG),,,,211379941,5000347103,,Lead Local Flood Authority Grant,KT1 1EU,398,Yes
Communities & Local Government,DCLG,17/10/2016,Current (non AEF) Grants to Local Authorities,Local Government & Public Services,KIRKLEES COUNCIL (HSG),,,,,5000347104,,Lead Local Flood Authority Grant,HD1 2YU,"1,073.00",Yes
Communities & Local Government,DCLG,17/10/2016,Current (non AEF) Grants to Local Authorities,Local Government & Public Services,LANCASHIRE COUNTY CNCL,,,,233136584,5000347168,,Lead Local Flood Authority Grant,PR1 8RD,"3,398.00",Yes
Communities & Local Government,DCLG,17/10/2016,Current (non AEF) Grants to Local Authorities,Local Government & Public Services,LEEDS CITY CNCL,,Micro,,,5000347169,,Lead Local Flood Authority Grant,LS1 1JF,"1,342.00",Yes
Communities & Local Government,DCLG,17/10/2016,Current (non AEF) Grants to Local Authorities,Local Government & Public Services,LEICESTER CITY CNCL,,,,228219960,5000347105,,Lead Local Flood Authority Grant,LE1 1FZ,"1,053.00",Yes
Communities & Local Government,DCLG,17/10/2016,Current (non AEF) Grants to Local Authorities,Local Government & Public Services,LEICESTERSHIRE COUNTY CNCL,,,,423679836,5000347170,,Lead Local Flood Authority Grant,LE3 8RB,"1,627.00",Yes
Communities & Local Government,DCLG,17/10/2016,Current (non AEF) Grants to Local Authorities,Local Government & Public Services,LEWISHAM LB (HSG),,Large,,235653300,5000347106,,Lead Local Flood Authority Grant,SE6 4RU,"1,264.00",Yes
Communities & Local Government,DCLG,17/10/2016,Current (non AEF) Grants to Local Authorities,Local Government & Public Services,LINCOLNSHIRE COUNTY COUNCIL,,,,,5000347171,,Lead Local Flood Authority Grant,LN2 1DY,"4,845.00",Yes
Communities & Local Government,DCLG,17/10/2016,Current (non AEF) Grants to Local Authorities,Local Government & Public Services,LIVERPOOL CITY COUNCIL,,,,,5000347172,,Lead Local Flood Authority Grant,L2 2DH,721,Yes
Communities & Local Government,DCLG,17/10/2016,Current (non AEF) Grants to Local Authorities,Local Government & Public Services,LONDON BOROUGH OF BARNET,,,,211049507,5000347117,,Lead Local Flood Authority Grant,NN1 1NP,841,Yes
Communities & Local Government,DCLG,17/10/2016,Current (non AEF) Grants to Local Authorities,Local Government & Public Services,LONDON BOROUGH OF HACKNEY,,,,225221597,5000347150,,Lead Local Flood Authority Grant,E8 4RU,786,Yes
Communities & Local Government,DCLG,17/10/2016,Current (non AEF) Grants to Local Authorities,Local Government & Public Services,LONDON BOROUGH OF LAMBETH,,,,228216479,5000347167,,Lead Local Flood Authority Grant,SW2 1RL,"1,514.00",Yes
Communities & Local Government,DCLG,17/10/2016,Current (non AEF) Grants to Local Authorities,Local Government & Public Services,LONDON BOROUGH OF NEWHAM,,,,211381004,5000347178,,Lead Local Flood Authority Grant,E16 2QU,"1,389.00",Yes
Communities & Local Government,DCLG,17/10/2016,Current (non AEF) Grants to Local Authorities,Local Government & Public Services,LONDON BOROUGH OF REDBRIDGE,,,,211341417,5000347192,,Lead Local Flood Authority Grant,IG1 1NN,552,Yes
Communities & Local Government,DCLG,17/10/2016,Current (non AEF) Grants to Local Authorities,Local Government & Public Services,LUTON BC,,,,365112155,5000347173,,Lead Local Flood Authority Grant,LU1 2BQ,548,Yes
Communities & Local Government,DCLG,17/10/2016,Current (non AEF) Grants to Local Authorities,Local Government & Public Services,MANCHESTER CITY CNCL (HSG),,,,211241393,5000347107,,Lead Local Flood Authority Grant,M60 2JR,899,Yes
Communities & Local Government,DCLG,17/10/2016,Current (non AEF) Grants to Local Authorities,Local Government & Public Services,MEDWAY TOWNS D C (HSG),,,,,5000347108,,Lead Local Flood Authority Grant,ME4 4TR,825,Yes
Communities & Local Government,DCLG,17/10/2016,Current (non AEF) Grants to Local Authorities,Local Government & Public Services,MERTON LB,,,,,5000347174,,Lead Local Flood Authority Grant,SM4 5DX,658,Yes
Communities & Local Government,DCLG,17/10/2016,Current (non AEF) Grants to Local Authorities,Local Government & Public Services,MILTON KEYNES BC,,,,,5000347176,,Lead Local Flood Authority Grant,MK9 3WJ,398,Yes
Communities & Local Government,DCLG,17/10/2016,Current (non AEF) Grants to Local Authorities,Local Government & Public Services,NEWCASTLE UPON TYNE DC,,,,239154040,5000347177,,Lead Local Flood Authority Grant,NE99 2BN,321,Yes
Communities & Local Government,DCLG,17/10/2016,Current (non AEF) Grants to Local Authorities,Local Government & Public Services,NORFOLK COUNTY COUNCIL,,,,232602789,5000347179,,Lead Local Flood Authority Grant,NR1 2DW,"3,339.00",Yes
Communities & Local Government,DCLG,17/10/2016,Current (non AEF) Grants to Local Authorities,Local Government & Public Services,NORTH EAST LINCOLN DC (HSG),,,,211242737,5000347109,,Lead Local Flood Authority Grant,DN35 8LN,"1,223.00",Yes
Communities & Local Government,DCLG,17/10/2016,Current (non AEF) Grants to Local Authorities,Local Government & Public Services,NORTH LINCOLNSHIRE DC (HSG),,Public Bodies,,424005502,5000347110,,Lead Local Flood Authority Grant,DN16 1AB,808,Yes
Communities & Local Government,DCLG,17/10/2016,Current (non AEF) Grants to Local Authorities,Local Government & Public Services,NORTH SOMERSET COUNCIL,,Large,,,5000347180,,Lead Local Flood Authority Grant,BS23 1UJ,"1,300.00",Yes
Communities & Local Government,DCLG,17/10/2016,Current (non AEF) Grants to Local Authorities,Local Government & Public Services,NORTH YORKSHIRE CC (DL7 8AL),,,,,5000347182,,Lead Local Flood Authority Grant,DL7 8AL,"2,189.00",Yes
Communities & Local Government,DCLG,17/10/2016,Current (non AEF) Grants to Local Authorities,Local Government & Public Services,NORTHAMPTONSHIRE COUNTY COUNCIL,,,,,5000347183,,Lead Local Flood Authority Grant,CB3 0AP,"1,506.00",Yes
Communities & Local Government,DCLG,17/10/2016,Current (non AEF) Grants to Local Authorities,Local Government & Public Services,NORTHUMBERLAND COUNTY COUNCIL,,,,210308905,5000347237,,Lead Local Flood Authority Grant,NE61 2EF,767,Yes
Communities & Local Government,DCLG,17/10/2016,Current (non AEF) Grants to Local Authorities,Local Government & Public Services,NOTTINGHAM CITY COUNCIL,,,,214495447,5000347184,,Lead Local Flood Authority Grant,NG2 3NG,854,Yes
Communities & Local Government,DCLG,17/10/2016,Current (non AEF) Grants to Local Authorities,Local Government & Public Services,NOTTINGHAMSHIRE COUNTY CNCL,,,,,5000347185,,Lead Local Flood Authority Grant,NG1 4BU,"2,453.00",Yes
Communities & Local Government,DCLG,17/10/2016,Current (non AEF) Grants to Local Authorities,Local Government & Public Services,OLDHAM MBC,,,,213015574,5000347186,,Lead Local Flood Authority Grant,OL1 1UH,418,Yes
Communities & Local Government,DCLG,17/10/2016,Current (non AEF) Grants to Local Authorities,Local Government & Public Services,OXFORDSHIRE CC,,,,228216438,5000347187,,Lead Local Flood Authority Grant,OX1 1TH,"1,798.00",Yes
Communities & Local Government,DCLG,17/10/2016,Current (non AEF) Grants to Local Authorities,Local Government & Public Services,PETERBOROUGH CITY CNCL,,,,,5000347188,,Lead Local Flood Authority Grant,PE1 1HG,324,Yes
Communities & Local Government,DCLG,17/10/2016,Current (non AEF) Grants to Local Authorities,Local Government & Public Services,PLYMOUTH CITY CNCL,,Public Bodies,,236416095,5000347189,,Lead Local Flood Authority Grant,PL1 2AA,370,Yes
Communities & Local Government,DCLG,17/10/2016,Current (non AEF) Grants to Local Authorities,Local Government & Public Services,PORTSMOUTH CITY COUNCIL,,Large,,211183082,5000347190,,Lead Local Flood Authority Grant,PO1 2AR,714,Yes
Communities & Local Government,DCLG,17/10/2016,Current (non AEF) Grants to Local Authorities,Local Government & Public Services,READING BC,,,,210220399,5000347191,,Lead Local Flood Authority Grant,RG1 7TD,530,Yes
Communities & Local Government,DCLG,17/10/2016,Current (non AEF) Grants to Local Authorities,Local Government & Public Services,REDCAR & CLEVELAND BOROUGH COUNCIL,,,,215175196,5000347193,,Lead Local Flood Authority Grant,TS10 1RT,280,Yes
Communities & Local Government,DCLG,17/10/2016,Current (non AEF) Grants to Local Authorities,Local Government & Public Services,RICHMOND UPON THAMES LB,,,,228868535,5000347194,,Lead Local Flood Authority Grant,TW1 3BZ,766,Yes
Communities & Local Government,DCLG,17/10/2016,Current (non AEF) Grants to Local Authorities,Local Government & Public Services,ROCHDALE MBC,,,,,5000347195,,Lead Local Flood Authority Grant,OL16 1YG,538,Yes
Communities & Local Government,DCLG,17/10/2016,Current (non AEF) Grants to Local Authorities,Local Government & Public Services,ROTHERHAM MBC,,,,211266937,5000347196,,Lead Local Flood Authority Grant,S60 1AE,388,Yes
Communities & Local Government,DCLG,17/10/2016,Current (non AEF) Grants to Local Authorities,Local Government & Public Services,ROYAL BOROUGH OF KENSINGTON & CHELS,,,,211124466,5000347163,,Lead Local Flood Authority Grant,W8 7NX,812,Yes
Communities & Local Government,DCLG,17/10/2016,Current (non AEF) Grants to Local Authorities,Local Government & Public Services,SALFORD CITY CNCL,,,,213180073,5000347198,,Lead Local Flood Authority Grant,M27 5AW,475,Yes
Communities & Local Government,DCLG,17/10/2016,Current (non AEF) Grants to Local Authorities,Local Government & Public Services,SANDWELL MBC,,,,,5000347199,,Lead Local Flood Authority Grant,B69 3BS,587,Yes
Communities & Local Government,DCLG,17/10/2016,Current (non AEF) Grants to Local Authorities,Local Government & Public Services,SEFTON MBC,,Public Bodies,,232936125,5000347200,,Lead Local Flood Authority Grant,L20 3NJ,404,Yes
Communities & Local Government,DCLG,17/10/2016,Current (non AEF) Grants to Local Authorities,Local Government & Public Services,SHEFFIELD CITY CNCL,,,,,5000347201,,Lead Local Flood Authority Grant,S1 1UJ,930,Yes
Communities & Local Government,DCLG,17/10/2016,Current (non AEF) Grants to Local Authorities,Local Government & Public Services,SHROPSHIRE UNITARY AUTHORITY,,,,217036490,5000347242,,Lead Local Flood Authority Grant,SY2 6ND,959,Yes
Communities & Local Government,DCLG,17/10/2016,Current (non AEF) Grants to Local Authorities,Local Government & Public Services,SLOUGH BOROUGH COUNCIL,,,,211027123,5000347202,,Lead Local Flood Authority Grant,SL1 3UF,425,Yes
Communities & Local Government,DCLG,17/10/2016,Current (non AEF) Grants to Local Authorities,Local Government & Public Services,SOLIHULL MBC,,,,,5000347203,,Lead Local Flood Authority Grant,B91 3QR,333,Yes
Communities & Local Government,DCLG,17/10/2016,Current (non AEF) Grants to Local Authorities,Local Government & Public Services,SOMERSET COUNTY CNCL,,,,211229406,5000347204,,Lead Local Flood Authority Grant,TA1 4DY,"2,935.00",Yes
Communities & Local Government,DCLG,17/10/2016,Current (non AEF) Grants to Local Authorities,Local Government & Public Services,SOUTH GLOUCESTERSHIRE DC (HSG),,,,,5000347112,,Lead Local Flood Authority Grant,BS15 2TR,555,Yes
Communities & Local Government,DCLG,17/10/2016,Current (non AEF) Grants to Local Authorities,Local Government & Public Services,SOUTHAMPTON CITY CNCL,,,,216927475,5000347206,,Lead Local Flood Authority Grant,SO14 7LY,374,Yes
Communities & Local Government,DCLG,17/10/2016,Current (non AEF) Grants to Local Authorities,Local Government & Public Services,SOUTHEND ON SEA BC,,,,217067263,5000347207,,Lead Local Flood Authority Grant,SS2 6EP,466,Yes
Communities & Local Government,DCLG,17/10/2016,Current (non AEF) Grants to Local Authorities,Local Government & Public Services,SOUTHWARK LB,,,,,5000347208,,Lead Local Flood Authority Grant,SE1 2QH,"2,745.00",Yes
Communities & Local Government,DCLG,17/10/2016,Current (non AEF) Grants to Local Authorities,Local Government & Public Services,ST HELENS MBC,,,,,5000347209,,Lead Local Flood Authority Grant,WA10 1HP,352,Yes
Communities & Local Government,DCLG,17/10/2016,Current (non AEF) Grants to Local Authorities,Local Government & Public Services,STAFFORDSHIRE COUNTY CNCL,,Public Bodies,,,5000347210,,Lead Local Flood Authority Grant,ST16 2DH,"2,047.00",Yes
Communities & Local Government,DCLG,17/10/2016,Current (non AEF) Grants to Local Authorities,Local Government & Public Services,STOCKPORT MBC,,,,228706248,5000347211,,Lead Local Flood Authority Grant,SK1 3XE,445,Yes
Communities & Local Government,DCLG,17/10/2016,Current (non AEF) Grants to Local Authorities,Local Government & Public Services,STOKE ON TRENT CITY COUNCIL,,,,216037890,5000347212,,Lead Local Flood Authority Grant,ST4 1HH,404,Yes
Communities & Local Government,DCLG,17/10/2016,Current (non AEF) Grants to Local Authorities,Local Government & Public Services,SUFFOLK CC (SOCIAL CARE SERV) (H,,,,385614821,5000347114,,Lead Local Flood Authority Grant,IP4 1LH,"2,366.00",Yes
Communities & Local Government,DCLG,17/10/2016,Current (non AEF) Grants to Local Authorities,Local Government & Public Services,SURREY COUNTY COUNCIL,,Public Bodies,,,5000347213,,Lead Local Flood Authority Grant,KT1 2DN,"4,032.00",Yes
Communities & Local Government,DCLG,17/10/2016,Current (non AEF) Grants to Local Authorities,Local Government & Public Services,SUTTON LB,,,,,5000347214,,Lead Local Flood Authority Grant,SM1 1EA,568,Yes
Communities & Local Government,DCLG,17/10/2016,Current (non AEF) Grants to Local Authorities,Local Government & Public Services,SWINDON BC,,,,458639697,5000347215,,Lead Local Flood Authority Grant,SN1 2JH,351,Yes
Communities & Local Government,DCLG,17/10/2016,Current (non AEF) Grants to Local Authorities,Local Government & Public Services,TAMESIDE MBC,,,,212635875,5000347216,,Lead Local Flood Authority Grant,OL6 0GA,351,Yes
Communities & Local Government,DCLG,17/10/2016,Current (non AEF) Grants to Local Authorities,Local Government & Public Services,TELFORD & WREKIN COUNCIL,,,,230235801,5000347217,,Lead Local Flood Authority Grant,TF3 4NT,272,Yes
Communities & Local Government,DCLG,17/10/2016,Current (non AEF) Grants to Local Authorities,Local Government & Public Services,THURROCK  BOROUGH COUNCIL,,,,,5000347218,,Lead Local Flood Authority Grant,RM17 6SL,726,Yes
Communities & Local Government,DCLG,17/10/2016,Current (non AEF) Grants to Local Authorities,Local Government & Public Services,TORBAY BC,,,,,5000347219,,Lead Local Flood Authority Grant,TQ1 3DR,366,Yes
Communities & Local Government,DCLG,17/10/2016,Current (non AEF) Grants to Local Authorities,Local Government & Public Services,TOWER HAMLETS LB (HSG),,,,231315144,5000347115,,Lead Local Flood Authority Grant,E14 2BG,"1,375.00",Yes
Communities & Local Government,DCLG,17/10/2016,Current (non AEF) Grants to Local Authorities,Local Government & Public Services,TRAFFORD MBC,,,,,5000347220,,Lead Local Flood Authority Grant,M32 0TH,268,Yes
Communities & Local Government,DCLG,17/10/2016,Current (non AEF) Grants to Local Authorities,Local Government & Public Services,WALSALL MBC,,,,212515585,5000347222,,Lead Local Flood Authority Grant,WS1 1TW,441,Yes
Communities & Local Government,DCLG,17/10/2016,Current (non AEF) Grants to Local Authorities,Local Government & Public Services,WALTHAM FOREST LB,,,,,5000347223,,Lead Local Flood Authority Grant,E17 4JA,649,Yes
Communities & Local Government,DCLG,17/10/2016,Current (non AEF) Grants to Local Authorities,Local Government & Public Services,WANDSWORTH LB,,,,,5000347224,,Lead Local Flood Authority Grant,SW18 2PU,"1,688.00",Yes
Communities & Local Government,DCLG,17/10/2016,Current (non AEF) Grants to Local Authorities,Local Government & Public Services,WARRINGTON BC,,,,,5000347225,,Lead Local Flood Authority Grant,WA1 1BN,532,Yes
Communities & Local Government,DCLG,17/10/2016,Current (non AEF) Grants to Local Authorities,Local Government & Public Services,WARWICKSHIRE COUNTY CNCL,,,,210396290,5000347226,,Lead Local Flood Authority Grant,CV34 4RH,"1,227.00",Yes
Communities & Local Government,DCLG,17/10/2016,Current (non AEF) Grants to Local Authorities,Local Government & Public Services,WEST BERKSHIRE COUNCIL,,,,364809181,5000347227,,Lead Local Flood Authority Grant,RG14 2AF,641,Yes
Communities & Local Government,DCLG,17/10/2016,Current (non AEF) Grants to Local Authorities,Local Government & Public Services,WEST SUSSEX CC,,Public Bodies,,232198762,5000347228,,Lead Local Flood Authority Grant,PO19 1RG,"2,515.00",Yes
Communities & Local Government,DCLG,17/10/2016,Current (non AEF) Grants to Local Authorities,Local Government & Public Services,WESTMINSTER CITY CNCL,,,,229845706,5000347229,,Lead Local Flood Authority Grant,SW1E 6QP,"1,826.00",Yes
Communities & Local Government,DCLG,17/10/2016,Current (non AEF) Grants to Local Authorities,Local Government & Public Services,WIGAN MBC,,Public Bodies,,,5000347230,,Lead Local Flood Authority Grant,WN1 1AZ,693,Yes
Communities & Local Government,DCLG,17/10/2016,Current (non AEF) Grants to Local Authorities,Local Government & Public Services,WILTSHIRE COUNCIL,,,,211341656,5000347236,,Lead Local Flood Authority Grant,BA14 4DS,"1,621.00",Yes
Communities & Local Government,DCLG,17/10/2016,Current (non AEF) Grants to Local Authorities,Local Government & Public Services,WINDSOR & MAIDENHEAD (HSG),,,,227411998,5000347116,,Lead Local Flood Authority Grant,SL6 1RF,758,Yes
Communities & Local Government,DCLG,17/10/2016,Current (non AEF) Grants to Local Authorities,Local Government & Public Services,WIRRAL MBC,,,,211222602,5000347231,,Lead Local Flood Authority Grant,CH41 6BU,485,Yes
Communities & Local Government,DCLG,17/10/2016,Current (non AEF) Grants to Local Authorities,Local Government & Public Services,WOKINGHAM DC,,,,,5000347232,,Lead Local Flood Authority Grant,RG11 1WJ,359,Yes
Communities & Local Government,DCLG,17/10/2016,Current (non AEF) Grants to Local Authorities,Local Government & Public Services,WOLVERHAMPTON MBC,,,,229895453,5000347233,,Lead Local Flood Authority Grant,WV1 1RL,510,Yes
Communities & Local Government,DCLG,17/10/2016,Current (non AEF) Grants to Local Authorities,Local Government & Public Services,WORCESTERSHIRE COUNTY COUNCIL,,,,230359643,5000347234,,Lead Local Flood Authority Grant,WR5 2NP,"1,257.00",Yes
Communities & Local Government,DCLG,17/10/2016,Current (non AEF) Grants to Local Authorities,Local Government & Public Services,YORK CITY CNCL,,,,,5000347235,,Lead Local Flood Authority Grant,YO1 0EG,380,Yes
Communities & Local Government,DCLG,17/10/2016,Current Grants to Non Profit Bodies,Local Government & Public Services,POWER TO CHANGE TRUST,,,,,2100268316,,Bright Idea Fund for Community Business Startups,SE1 6FE,"423,330.00",Yes
Communities & Local Government,DCLG,17/10/2016,Current Grants to Non Profit Bodies,Local Government & Public Services,TINDER FOUNDATION,Yes,Medium,,,2100268315,,Community Based English Language Programme,S1 2BX,"250,000.00",Yes
Communities & Local Government,DCLG,17/10/2016,"IT - PC, Network & Hardware",Local Government & Public Services,DCLG GOVERNMENT PROCUREMENT CARD,,,,,1000004155,ICT Hardware,Conference Fees,TN37 7GA,525.6,
Communities & Local Government,DCLG,17/10/2016,IT - Service Contracts,Finance,ARCUS GLOBAL LIMITED,,Medium,,,5106224159,IT Managed / Outsourced Services,MCIS/TESA Cloud Hosting Support 16/17,CB4 2HY,"11,956.96",
Communities & Local Government,DCLG,17/10/2016,IT - Software Maintenance,Finance,LEXMARK ENTERPRISE SOFTWARE UK LTD,,Medium,,578437485,5106224074,IT Managed / Outsourced Services,Upgrade Analysis Services,MK14 6DY,735,
Communities & Local Government,DCLG,17/10/2016,IT - Software Maintenance,Finance,LEXMARK ENTERPRISE SOFTWARE UK LTD,,Medium,,578437485,5106224164,IT Managed / Outsourced Services,Upgrade Analysis Services,MK14 6DY,735,
Communities & Local Government,DCLG,17/10/2016,IT - Software Maintenance,Finance,SAP (UK) LTD,,Large,,396951675,5106224078,IT Managed / Outsourced Services,SAP HR/Nakisa/BO 3mths support,TW14 8HD,"12,676.80",
Communities & Local Government,DCLG,17/10/2016,Printing,"Strategy, Communications and Private Office",STATIONERY OFFICE LTD,,Large,,779375633,5106224075,Printing Services,Statutory Instruments Print: Non-Vatable,NR3 1PD,165,
Communities & Local Government,DCLG,17/10/2016,Printing,"Strategy, Communications and Private Office",STATIONERY OFFICE LTD,,Large,,779375633,5106224075,Printing Services,Statutory Instruments Print: Vatable,NR3 1PD,130,
Communities & Local Government,DCLG,17/10/2016,Printing,"Strategy, Communications and Private Office",STATIONERY OFFICE LTD,,Large,,779375633,5106224077,Printing Services,Statutory Instruments Print: Non-Vatable,NR3 1PD,165,
Communities & Local Government,DCLG,17/10/2016,Printing,"Strategy, Communications and Private Office",STATIONERY OFFICE LTD,,Large,,779375633,5106224077,Printing Services,Statutory Instruments Print: Vatable,NR3 1PD,130,
Communities & Local Government,DCLG,17/10/2016,Publishing,Local Government & Public Services,DCLG GOVERNMENT PROCUREMENT CARD,,,,,1000004155,Medical and Surgical Consumables,Annual Report,TN37 7GA,350,
Communities & Local Government,DCLG,17/10/2016,Rent,Finance,HAMPTONS INTERNATIONAL LTD,,Large,,,2100268344,Business Support,Support for disabled colleague to adjust to a new role,W1D 1NN,"1,695.00",
Communities & Local Government,DCLG,17/10/2016,Rent,Finance,HAMPTONS INTERNATIONAL LTD,,Large,,,2100268345,Business Support,Support for disabled colleague to adjust to a new role,W1D 1NN,"1,695.00",
Communities & Local Government,DCLG,17/10/2016,Steady State Service Provision,Housing & Planning,LOCALITY,,Medium,,347998312,5106224115,Business Process Outsourcing Services,Neighbourhood Planning & CRTB,N1 6DR,"51,016.84",
Communities & Local Government,DCLG,17/10/2016,Web Services,"Strategy, Communications and Private Office",PULSION TECHNOLOGY LTD,,Small,,,5106223942,ICT Services,"Pulsion Hosting,Maint & Develop Yr 2",G4 9XA,858,
Communities & Local Government,DCLG,17/10/2016,Work In Progress Pre-Cert 40373 Spend,Decentralisation and Local Growth,SCREEN YORKSHIRE LIMITED,,,,,2300002628,,ERDF - Yorkshire Content Fund 090_000,LS2 7EY,"-2,806.14",Yes
Communities & Local Government,DCLG,17/10/2016,Work In Progress Pre-Cert 40373 Spend,Decentralisation and Local Growth,WSX ENTERPRISE,,Small,,,2300002515,,Recovery of grant,PO16 7BJ,"-184,602.98",Yes
Communities & Local Government,DCLG,18/10/2016,Capital Income from LAs,Housing & Planning,STOKE ON TRENT CITY COUNCIL,,,,,2200004880,,Stoke-On-Trent Capital Pooling - Q1 2016/2017,ST4 1NH,"-340,594.48",
Communities & Local Government,DCLG,18/10/2016,Current (non AEF) Grants to Local Authorities,Local Government & Public Services,ADUR DC,,,,227472891,5000348625,,Business Rates Multiplier Cap,BN11 1HA,"2,826.00",Yes
Communities & Local Government,DCLG,18/10/2016,Current (non AEF) Grants to Local Authorities,Local Government & Public Services,ADUR DC,,,,227472891,5000348628,,New Empty Property Relief,BN11 1HA,471,Yes
Communities & Local Government,DCLG,18/10/2016,Current (non AEF) Grants to Local Authorities,Local Government & Public Services,ADUR DC,,,,227472891,5000348637,,Doubling of Small Business Rates Relief,BN11 1HA,"21,794.00",Yes
Communities & Local Government,DCLG,18/10/2016,Current (non AEF) Grants to Local Authorities,Local Government & Public Services,ALLERDALE BOROUGH COUNCIL,,,,218146780,5000348643,,Doubling of Small Business Rates Relief,CA14 3YJ,"60,504.00",Yes
Communities & Local Government,DCLG,18/10/2016,Current (non AEF) Grants to Local Authorities,Local Government & Public Services,ALLERDALE BOROUGH COUNCIL,,,,218146780,5000348646,,Long Term Empty Property Relief,CA14 3YJ,999,Yes
Communities & Local Government,DCLG,18/10/2016,Current (non AEF) Grants to Local Authorities,Local Government & Public Services,ALLERDALE BOROUGH COUNCIL,,,,218146780,5000348649,,Small Business Rates Relief on Second Properties,CA14 3YJ,344,Yes
Communities & Local Government,DCLG,18/10/2016,Current (non AEF) Grants to Local Authorities,Local Government & Public Services,ALLERDALE BOROUGH COUNCIL,,,,218146780,5000348652,,Business Rates Multiplier Cap,CA14 3YJ,"5,535.00",Yes
Communities & Local Government,DCLG,18/10/2016,Current (non AEF) Grants to Local Authorities,Local Government & Public Services,ALLERDALE BOROUGH COUNCIL,,,,218146780,5000348655,,Extended Transitional Relief for Small and Medium,CA14 3YJ,338,Yes
Communities & Local Government,DCLG,18/10/2016,Current (non AEF) Grants to Local Authorities,Local Government & Public Services,AMBER VALLEY BC,,,,,5000348658,,Extended Transitional Relief for Small and Medium,DE5 3BT,571,Yes
Communities & Local Government,DCLG,18/10/2016,Current (non AEF) Grants to Local Authorities,Local Government & Public Services,AMBER VALLEY BC,,,,,5000348661,,Business Rates Multiplier Cap,DE5 3BT,"3,909.00",Yes
Communities & Local Government,DCLG,18/10/2016,Current (non AEF) Grants to Local Authorities,Local Government & Public Services,AMBER VALLEY BC,,,,,5000348664,,Doubling of Small Business Rates Relief,DE5 3BT,"45,328.00",Yes
Communities & Local Government,DCLG,18/10/2016,Current (non AEF) Grants to Local Authorities,Local Government & Public Services,AMBER VALLEY BC,,,,,5000348667,,Long Term Empty Property Relief,DE5 3BT,418,Yes
Communities & Local Government,DCLG,18/10/2016,Current (non AEF) Grants to Local Authorities,Local Government & Public Services,ARUN DC,,,,211217668,5000347746,,Business Rates Multiplier Cap,BN17 5LF,"6,142.00",Yes
Communities & Local Government,DCLG,18/10/2016,Current (non AEF) Grants to Local Authorities,Local Government & Public Services,ARUN DC,,,,211217668,5000347748,,Small Business Rates Relief on Second Properties,BN17 5LF,455,Yes
Communities & Local Government,DCLG,18/10/2016,Current (non AEF) Grants to Local Authorities,Local Government & Public Services,ARUN DC,,,,211217668,5000347750,,Doubling of Small Business Rates Relief,BN17 5LF,"57,345.00",Yes
Communities & Local Government,DCLG,18/10/2016,Current (non AEF) Grants to Local Authorities,Local Government & Public Services,ARUN DC,,,,211217668,5000347752,,Long Term Empty Property Relief,BN17 5LF,841,Yes
Communities & Local Government,DCLG,18/10/2016,Current (non AEF) Grants to Local Authorities,Local Government & Public Services,ASHFIELD DC,,,,235415296,5000348673,,Doubling of Small Business Rates Relief,NG17 8DA,"33,295.00",Yes
Communities & Local Government,DCLG,18/10/2016,Current (non AEF) Grants to Local Authorities,Local Government & Public Services,ASHFIELD DC,,,,235415296,5000348676,,Long Term Empty Property Relief,NG17 8DA,338,Yes
Communities & Local Government,DCLG,18/10/2016,Current (non AEF) Grants to Local Authorities,Local Government & Public Services,ASHFIELD DC,,,,235415296,5000348682,,Business Rates Multiplier Cap,NG17 8DA,"5,556.00",Yes
Communities & Local Government,DCLG,18/10/2016,Current (non AEF) Grants to Local Authorities,Local Government & Public Services,ASHFIELD DC,,,,235415296,5000348685,,New Empty Property Relief,NG17 8DA,845,Yes
Communities & Local Government,DCLG,18/10/2016,Current (non AEF) Grants to Local Authorities,Local Government & Public Services,ASHFORD BC,,,,229467071,5000347756,,Business Rates Multiplier Cap,TN23 1PL,"4,395.00",Yes
Communities & Local Government,DCLG,18/10/2016,Current (non AEF) Grants to Local Authorities,Local Government & Public Services,ASHFORD BC,,,,229467071,5000347758,,Doubling of Small Business Rates Relief,TN23 1PL,"44,808.00",Yes
Communities & Local Government,DCLG,18/10/2016,Current (non AEF) Grants to Local Authorities,Local Government & Public Services,ASHFORD BC,,,,229467071,5000347760,,New Empty Property Relief,TN23 1PL,287,Yes
Communities & Local Government,DCLG,18/10/2016,Current (non AEF) Grants to Local Authorities,Local Government & Public Services,ASHFORD BC,,,,229467071,5000347761,,Long Term Empty Property Relief,TN23 1PL,263,Yes
Communities & Local Government,DCLG,18/10/2016,Current (non AEF) Grants to Local Authorities,Local Government & Public Services,AVON FIRE AUTHORITY,,Large,,424872570,5000349428,,Business Rates Multiplier Cap,BS1 6EU,"12,271.00",Yes
Communities & Local Government,DCLG,18/10/2016,Current (non AEF) Grants to Local Authorities,Local Government & Public Services,AVON FIRE AUTHORITY,,Large,,424872570,5000349430,,Doubling of Small Business Rates Relief,BS1 6EU,"8,547.00",Yes
Communities & Local Government,DCLG,18/10/2016,Current (non AEF) Grants to Local Authorities,Local Government & Public Services,AYLESBURY VALE DC(HSG),,,,396710709,5000347769,,Long Term Empty Property Relief,HP19 8FF,464,Yes
Communities & Local Government,DCLG,18/10/2016,Current (non AEF) Grants to Local Authorities,Local Government & Public Services,AYLESBURY VALE DC(HSG),,,,396710709,5000347771,,Small Business Rates Relief on Second Properties,HP19 8FF,636,Yes
Communities & Local Government,DCLG,18/10/2016,Current (non AEF) Grants to Local Authorities,Local Government & Public Services,AYLESBURY VALE DC(HSG),,,,396710709,5000347774,,Doubling of Small Business Rates Relief,HP19 8FF,"56,151.00",Yes
Communities & Local Government,DCLG,18/10/2016,Current (non AEF) Grants to Local Authorities,Local Government & Public Services,AYLESBURY VALE DC(HSG),,,,396710709,5000347777,,Business Rates Multiplier Cap,HP19 8FF,"5,219.00",Yes
Communities & Local Government,DCLG,18/10/2016,Current (non AEF) Grants to Local Authorities,Local Government & Public Services,AYLESBURY VALE DC(HSG),,,,396710709,5000347780,,New Empty Property Relief,HP19 8FF,"3,583.00",Yes
Communities & Local Government,DCLG,18/10/2016,Current (non AEF) Grants to Local Authorities,Local Government & Public Services,AYLESBURY VALE DC(HSG),,,,396710709,5000347783,,Extended Transitional Relief for Small and Medium,HP19 8FF,281,Yes
Communities & Local Government,DCLG,18/10/2016,Current (non AEF) Grants to Local Authorities,Local Government & Public Services,BABERGH DC,,,,232618405,5000347789,,Business Rates Multiplier Cap,IP7 6SJ,"2,736.00",Yes
Communities & Local Government,DCLG,18/10/2016,Current (non AEF) Grants to Local Authorities,Local Government & Public Services,BABERGH DC,,,,232618405,5000347790,,Doubling of Small Business Rates Relief,IP7 6SJ,"39,542.00",Yes
Communities & Local Government,DCLG,18/10/2016,Current (non AEF) Grants to Local Authorities,Local Government & Public Services,BABERGH DC,,,,232618405,5000347793,,Long Term Empty Property Relief,IP7 6SJ,605,Yes
Communities & Local Government,DCLG,18/10/2016,Current (non AEF) Grants to Local Authorities,Local Government & Public Services,BARKING & DAGENHAM LB (HSG),,,,217142293,5000347810,,Business Rates Multiplier Cap,RM10 7BY,"63,450.00",Yes
Communities & Local Government,DCLG,18/10/2016,Current (non AEF) Grants to Local Authorities,Local Government & Public Services,BARKING & DAGENHAM LB (HSG),,,,217142293,5000347813,,Doubling of Small Business Rates Relief,RM10 7BY,"34,181.00",Yes
Communities & Local Government,DCLG,18/10/2016,Current (non AEF) Grants to Local Authorities,Local Government & Public Services,BARKING & DAGENHAM LB (HSG),,,,217142293,5000347816,,Long Term Empty Property Relief,RM10 7BY,"4,608.00",Yes
Communities & Local Government,DCLG,18/10/2016,Current (non AEF) Grants to Local Authorities,Local Government & Public Services,BARNSLEY MBC,,,,211178595,5000348700,,Business Rates Multiplier Cap,S70 2AQ,"63,236.00",Yes
Communities & Local Government,DCLG,18/10/2016,Current (non AEF) Grants to Local Authorities,Local Government & Public Services,BARNSLEY MBC,,,,211178595,5000348703,,Extended Transitional Relief for Small and Medium,S70 2AQ,849,Yes
Communities & Local Government,DCLG,18/10/2016,Current (non AEF) Grants to Local Authorities,Local Government & Public Services,BARNSLEY MBC,,,,211178595,5000348706,,Doubling of Small Business Rates Relief,S70 2AQ,"103,705.00",Yes
Communities & Local Government,DCLG,18/10/2016,Current (non AEF) Grants to Local Authorities,Local Government & Public Services,BARNSLEY MBC,,,,211178595,5000348709,,Long Term Empty Property Relief,S70 2AQ,575,Yes
Communities & Local Government,DCLG,18/10/2016,Current (non AEF) Grants to Local Authorities,Local Government & Public Services,BARROW BC,,,,295632913,5000348715,,Doubling of Small Business Rates Relief,LA14 2LD,"23,576.00",Yes
Communities & Local Government,DCLG,18/10/2016,Current (non AEF) Grants to Local Authorities,Local Government & Public Services,BARROW BC,,,,295632913,5000348724,,Business Rates Multiplier Cap,LA14 2LD,"3,957.00",Yes
Communities & Local Government,DCLG,18/10/2016,Current (non AEF) Grants to Local Authorities,Local Government & Public Services,BASILDON BOROUGH COUNCIL,,,,,5000348727,,Business Rates Multiplier Cap,SS14 0DF,"8,438.00",Yes
Communities & Local Government,DCLG,18/10/2016,Current (non AEF) Grants to Local Authorities,Local Government & Public Services,BASILDON BOROUGH COUNCIL,,,,,5000348730,,Doubling of Small Business Rates Relief,SS14 0DF,"43,287.00",Yes
Communities & Local Government,DCLG,18/10/2016,Current (non AEF) Grants to Local Authorities,Local Government & Public Services,BASINGSTOKE & DEANE BC,,,,228328506,5000348736,,Business Rates Multiplier Cap,RG21 2AJ,"4,236.00",Yes
Communities & Local Government,DCLG,18/10/2016,Current (non AEF) Grants to Local Authorities,Local Government & Public Services,BASINGSTOKE & DEANE BC,,,,228328506,5000348742,,Doubling of Small Business Rates Relief,RG21 2AJ,"28,571.00",Yes
Communities & Local Government,DCLG,18/10/2016,Current (non AEF) Grants to Local Authorities,Local Government & Public Services,BASINGSTOKE & DEANE BC,,,,228328506,5000348745,,Long Term Empty Property Relief,RG21 2AJ,"2,545.00",Yes
Communities & Local Government,DCLG,18/10/2016,Current (non AEF) Grants to Local Authorities,Local Government & Public Services,BASINGSTOKE & DEANE BC,,,,228328506,5000348748,,Small Business Rates Relief on Second Properties,RG21 2AJ,577,Yes
Communities & Local Government,DCLG,18/10/2016,Current (non AEF) Grants to Local Authorities,Local Government & Public Services,BASSETLAW DC (HSG),,,,,5000347819,,Long Term Empty Property Relief,S80 2AH,563,Yes
Communities & Local Government,DCLG,18/10/2016,Current (non AEF) Grants to Local Authorities,Local Government & Public Services,BASSETLAW DC (HSG),,,,,5000347822,,Extended Transitional Relief for Small and Medium,S80 2AH,402,Yes
Communities & Local Government,DCLG,18/10/2016,Current (non AEF) Grants to Local Authorities,Local Government & Public Services,BASSETLAW DC (HSG),,,,,5000347825,,Small Business Rates Relief on Second Properties,S80 2AH,558,Yes
Communities & Local Government,DCLG,18/10/2016,Current (non AEF) Grants to Local Authorities,Local Government & Public Services,BASSETLAW DC (HSG),,,,,5000347828,,Business Rates Multiplier Cap,S80 2AH,"5,822.00",Yes
Communities & Local Government,DCLG,18/10/2016,Current (non AEF) Grants to Local Authorities,Local Government & Public Services,BASSETLAW DC (HSG),,,,,5000347831,,New Empty Property Relief,S80 2AH,"2,609.00",Yes
Communities & Local Government,DCLG,18/10/2016,Current (non AEF) Grants to Local Authorities,Local Government & Public Services,BASSETLAW DC (HSG),,,,,5000347834,,Doubling of Small Business Rates Relief,S80 2AH,"44,694.00",Yes
Communities & Local Government,DCLG,18/10/2016,Current (non AEF) Grants to Local Authorities,Local Government & Public Services,BATH & NE SOMERSET DC (HSG),,,,214502499,5000347837,,Doubling of Small Business Rates Relief,BA1 5AW,"85,108.00",Yes
Communities & Local Government,DCLG,18/10/2016,Current (non AEF) Grants to Local Authorities,Local Government & Public Services,BATH & NE SOMERSET DC (HSG),,,,214502499,5000347840,,Long Term Empty Property Relief,BA1 5AW,"1,966.00",Yes
Communities & Local Government,DCLG,18/10/2016,Current (non AEF) Grants to Local Authorities,Local Government & Public Services,BATH & NE SOMERSET DC (HSG),,,,214502499,5000347846,,Small Business Rates Relief on Second Properties,BA1 5AW,315,Yes
Communities & Local Government,DCLG,18/10/2016,Current (non AEF) Grants to Local Authorities,Local Government & Public Services,BATH & NE SOMERSET DC (HSG),,,,214502499,5000347849,,Business Rates Multiplier Cap,BA1 5AW,"27,874.00",Yes
Communities & Local Government,DCLG,18/10/2016,Current (non AEF) Grants to Local Authorities,Local Government & Public Services,BEDFORD UNITARY AUTHORITY,,,,225682160,5000349499,,Doubling of Small Business Rates Relief,MK40 1SJ,"68,202.00",Yes
Communities & Local Government,DCLG,18/10/2016,Current (non AEF) Grants to Local Authorities,Local Government & Public Services,BEDFORD UNITARY AUTHORITY,,,,225682160,5000349502,,New Empty Property Relief,MK40 1SJ,"2,872.00",Yes
Communities & Local Government,DCLG,18/10/2016,Current (non AEF) Grants to Local Authorities,Local Government & Public Services,BEDFORD UNITARY AUTHORITY,,,,225682160,5000349504,,Long Term Empty Property Relief,MK40 1SJ,"1,283.00",Yes
Communities & Local Government,DCLG,18/10/2016,Current (non AEF) Grants to Local Authorities,Local Government & Public Services,BEDFORD UNITARY AUTHORITY,,,,225682160,5000349506,,Business Rates Multiplier Cap,MK40 1SJ,"36,630.00",Yes
Communities & Local Government,DCLG,18/10/2016,Current (non AEF) Grants to Local Authorities,Local Government & Public Services,BEDS & LUTON FIRE & RESCUE SERVICE,,Medium,,387821283,5000349292,,Extended Transitional Relief for Small and Medium,MK42 7NR,913,Yes
Communities & Local Government,DCLG,18/10/2016,Current (non AEF) Grants to Local Authorities,Local Government & Public Services,BEDS & LUTON FIRE & RESCUE SERVICE,,Medium,,387821283,5000349298,,Business Rates Multiplier Cap,MK42 7NR,"6,640.00",Yes
Communities & Local Government,DCLG,18/10/2016,Current (non AEF) Grants to Local Authorities,Local Government & Public Services,BEDS & LUTON FIRE & RESCUE SERVICE,,Medium,,387821283,5000349300,,Doubling of Small Business Rates Relief,MK42 7NR,"4,713.00",Yes
Communities & Local Government,DCLG,18/10/2016,Current (non AEF) Grants to Local Authorities,Local Government & Public Services,BEXLEY LB (RSG),,,,,5000349749,,Business Rates Multiplier Cap,DA8 1TL,"43,416.00",Yes
Communities & Local Government,DCLG,18/10/2016,Current (non AEF) Grants to Local Authorities,Local Government & Public Services,BEXLEY LB (RSG),,,,,5000349750,,Doubling of Small Business Rates Relief,DA8 1TL,"51,500.00",Yes
Communities & Local Government,DCLG,18/10/2016,Current (non AEF) Grants to Local Authorities,Local Government & Public Services,BIRMINGHAM CITY CNCL,,,,213780559,5000348754,,Business Rates Multiplier Cap,B2 2AJ,"408,802.00",Yes
Communities & Local Government,DCLG,18/10/2016,Current (non AEF) Grants to Local Authorities,Local Government & Public Services,BIRMINGHAM CITY CNCL,,,,213780559,5000348757,,Doubling of Small Business Rates Relief,B2 2AJ,"534,782.00",Yes
Communities & Local Government,DCLG,18/10/2016,Current (non AEF) Grants to Local Authorities,Local Government & Public Services,BLABY DC (HSG),,,,,5000347858,,Business Rates Multiplier Cap,LE9 5EP,"3,879.00",Yes
Communities & Local Government,DCLG,18/10/2016,Current (non AEF) Grants to Local Authorities,Local Government & Public Services,BLABY DC (HSG),,,,,5000347861,,Doubling of Small Business Rates Relief,LE9 5EP,"21,340.00",Yes
Communities & Local Government,DCLG,18/10/2016,Current (non AEF) Grants to Local Authorities,Local Government & Public Services,BLACKBURN WITH DARWEN BC,,,,,5000348760,,Extended Transitional Relief for Small and Medium,BB1 7DY,415,Yes
Communities & Local Government,DCLG,18/10/2016,Current (non AEF) Grants to Local Authorities,Local Government & Public Services,BLACKBURN WITH DARWEN BC,,,,,5000348763,,Business Rates Multiplier Cap,BB1 7DY,"49,300.00",Yes
Communities & Local Government,DCLG,18/10/2016,Current (non AEF) Grants to Local Authorities,Local Government & Public Services,BLACKBURN WITH DARWEN BC,,,,,5000348766,,Doubling of Small Business Rates Relief,BB1 7DY,"113,290.00",Yes
Communities & Local Government,DCLG,18/10/2016,Current (non AEF) Grants to Local Authorities,Local Government & Public Services,BLACKBURN WITH DARWEN BC,,,,,5000348769,,New Empty Property Relief,BB1 7DY,"4,142.00",Yes
Communities & Local Government,DCLG,18/10/2016,Current (non AEF) Grants to Local Authorities,Local Government & Public Services,BLACKBURN WITH DARWEN BC,,,,,5000348772,,Long Term Empty Property Relief,BB1 7DY,"6,213.00",Yes
Communities & Local Government,DCLG,18/10/2016,Current (non AEF) Grants to Local Authorities,Local Government & Public Services,BLACKBURN WITH DARWEN BC,,,,,5000348775,,Small Business Rates Relief on Second Properties,BB1 7DY,"1,243.00",Yes
Communities & Local Government,DCLG,18/10/2016,Current (non AEF) Grants to Local Authorities,Local Government & Public Services,BLACKPOOL BC,,,,,5000348782,,Business Rates Multiplier Cap,FY1 1NA,"52,258.00",Yes
Communities & Local Government,DCLG,18/10/2016,Current (non AEF) Grants to Local Authorities,Local Government & Public Services,BLACKPOOL BC,,,,,5000348785,,Doubling of Small Business Rates Relief,FY1 1NA,"128,078.00",Yes
Communities & Local Government,DCLG,18/10/2016,Current (non AEF) Grants to Local Authorities,Local Government & Public Services,BLACKPOOL BC,,,,,5000348788,,Long Term Empty Property Relief,FY1 1NA,"3,550.00",Yes
Communities & Local Government,DCLG,18/10/2016,Current (non AEF) Grants to Local Authorities,Local Government & Public Services,BOLSOVER DC,,,,235516523,5000348794,,Business Rates Multiplier Cap,S43 4JY,"4,638.00",Yes
Communities & Local Government,DCLG,18/10/2016,Current (non AEF) Grants to Local Authorities,Local Government & Public Services,BOLSOVER DC,,,,235516523,5000348797,,Doubling of Small Business Rates Relief,S43 4JY,"22,949.00",Yes
Communities & Local Government,DCLG,18/10/2016,Current (non AEF) Grants to Local Authorities,Local Government & Public Services,BOLTON MBC,,,,,5000348804,,Business Rates Multiplier Cap,BL1 1RU,"77,577.00",Yes
Communities & Local Government,DCLG,18/10/2016,Current (non AEF) Grants to Local Authorities,Local Government & Public Services,BOLTON MBC,,,,,5000348807,,Doubling of Small Business Rates Relief,BL1 1RU,"153,262.00",Yes
Communities & Local Government,DCLG,18/10/2016,Current (non AEF) Grants to Local Authorities,Local Government & Public Services,BOLTON MBC,,,,,5000348813,,Extended Transitional Relief for Small and Medium,BL1 1RU,"2,485.00",Yes
Communities & Local Government,DCLG,18/10/2016,Current (non AEF) Grants to Local Authorities,Local Government & Public Services,BOLTON MBC,,,,,5000348816,,Long Term Empty Property Relief,BL1 1RU,"7,497.00",Yes
Communities & Local Government,DCLG,18/10/2016,Current (non AEF) Grants to Local Authorities,Local Government & Public Services,BOSTON BC,,,,236417713,5000347866,,Business Rates Multiplier Cap,PE21 8QR,"3,547.00",Yes
Communities & Local Government,DCLG,18/10/2016,Current (non AEF) Grants to Local Authorities,Local Government & Public Services,BOSTON BC,,,,236417713,5000347872,,Doubling of Small Business Rates Relief,PE21 8QR,"26,347.00",Yes
Communities & Local Government,DCLG,18/10/2016,Current (non AEF) Grants to Local Authorities,Local Government & Public Services,BOSTON BC,,,,236417713,5000347875,,Long Term Empty Property Relief,PE21 8QR,287,Yes
Communities & Local Government,DCLG,18/10/2016,Current (non AEF) Grants to Local Authorities,Local Government & Public Services,BOURNEMOUTH DC,,,,,5000348822,,Long Term Empty Property Relief,BH2 6EB,"2,014.00",Yes
Communities & Local Government,DCLG,18/10/2016,Current (non AEF) Grants to Local Authorities,Local Government & Public Services,BOURNEMOUTH DC,,,,,5000348828,,Business Rates Multiplier Cap,BH2 6EB,"36,162.00",Yes
Communities & Local Government,DCLG,18/10/2016,Current (non AEF) Grants to Local Authorities,Local Government & Public Services,BOURNEMOUTH DC,,,,,5000348831,,Doubling of Small Business Rates Relief,BH2 6EB,"94,202.00",Yes
Communities & Local Government,DCLG,18/10/2016,Current (non AEF) Grants to Local Authorities,Local Government & Public Services,BRACKNELL FOREST DC,,,,236184867,5000348837,,Business Rates Multiplier Cap,RG12 1AQ,"23,267.00",Yes
Communities & Local Government,DCLG,18/10/2016,Current (non AEF) Grants to Local Authorities,Local Government & Public Services,BRACKNELL FOREST DC,,,,236184867,5000348840,,Doubling of Small Business Rates Relief,RG12 1AQ,"20,711.00",Yes
Communities & Local Government,DCLG,18/10/2016,Current (non AEF) Grants to Local Authorities,Local Government & Public Services,BRACKNELL FOREST DC,,,,236184867,5000348843,,Long Term Empty Property Relief,RG12 1AQ,"2,071.00",Yes
Communities & Local Government,DCLG,18/10/2016,Current (non AEF) Grants to Local Authorities,Local Government & Public Services,BRACKNELL FOREST DC,,,,236184867,5000348845,,Small Business Rates Relief on Second Properties,RG12 1AQ,415,Yes
Communities & Local Government,DCLG,18/10/2016,Current (non AEF) Grants to Local Authorities,Local Government & Public Services,BRADFORD MBC,,,,,5000348851,,Doubling of Small Business Rates Relief,BD1 1HX,"340,491.00",Yes
Communities & Local Government,DCLG,18/10/2016,Current (non AEF) Grants to Local Authorities,Local Government & Public Services,BRADFORD MBC,,,,,5000348854,,Small Business Rates Relief on Second Properties,BD1 1HX,"2,485.00",Yes
Communities & Local Government,DCLG,18/10/2016,Current (non AEF) Grants to Local Authorities,Local Government & Public Services,BRADFORD MBC,,,,,5000348857,,Long Term Empty Property Relief,BD1 1HX,"4,066.00",Yes
Communities & Local Government,DCLG,18/10/2016,Current (non AEF) Grants to Local Authorities,Local Government & Public Services,BRADFORD MBC,,,,,5000348860,,Business Rates Multiplier Cap,BD1 1HX,"157,114.00",Yes
Communities & Local Government,DCLG,18/10/2016,Current (non AEF) Grants to Local Authorities,Local Government & Public Services,BRADFORD MBC,,,,,5000348863,,New Empty Property Relief,BD1 1HX,828,Yes
Communities & Local Government,DCLG,18/10/2016,Current (non AEF) Grants to Local Authorities,Local Government & Public Services,BRADFORD MBC,,,,,5000348866,,Extended Transitional Relief for Small and Medium,BD1 1HX,"1,036.00",Yes
Communities & Local Government,DCLG,18/10/2016,Current (non AEF) Grants to Local Authorities,Local Government & Public Services,BRAINTREE DC,,,,226941730,5000347878,,Business Rates Multiplier Cap,CM7 6HB,"4,795.00",Yes
Communities & Local Government,DCLG,18/10/2016,Current (non AEF) Grants to Local Authorities,Local Government & Public Services,BRAINTREE DC,,,,226941730,5000347881,,New Empty Property Relief,CM7 6HB,340,Yes
Communities & Local Government,DCLG,18/10/2016,Current (non AEF) Grants to Local Authorities,Local Government & Public Services,BRAINTREE DC,,,,226941730,5000347884,,Long Term Empty Property Relief,CM7 6HB,810,Yes
Communities & Local Government,DCLG,18/10/2016,Current (non AEF) Grants to Local Authorities,Local Government & Public Services,BRAINTREE DC,,,,226941730,5000347887,,Extended Transitional Relief for Small and Medium,CM7 6HB,406,Yes
Communities & Local Government,DCLG,18/10/2016,Current (non AEF) Grants to Local Authorities,Local Government & Public Services,BRAINTREE DC,,,,226941730,5000347890,,Doubling of Small Business Rates Relief,CM7 6HB,"55,810.00",Yes
Communities & Local Government,DCLG,18/10/2016,Current (non AEF) Grants to Local Authorities,Local Government & Public Services,BRECKLAND DC,,,,232611384,5000347897,,Business Rates Multiplier Cap,NR19 1EE,"5,483.00",Yes
Communities & Local Government,DCLG,18/10/2016,Current (non AEF) Grants to Local Authorities,Local Government & Public Services,BRECKLAND DC,,,,232611384,5000347903,,Doubling of Small Business Rates Relief,NR19 1EE,"50,639.00",Yes
Communities & Local Government,DCLG,18/10/2016,Current (non AEF) Grants to Local Authorities,Local Government & Public Services,BRECKLAND DC,,,,232611384,5000347906,,Long Term Empty Property Relief,NR19 1EE,616,Yes
Communities & Local Government,DCLG,18/10/2016,Current (non AEF) Grants to Local Authorities,Local Government & Public Services,BRENT LB (HSG),,,,,5000347912,,New Empty Property Relief,HA9 9HD,508,Yes
Communities & Local Government,DCLG,18/10/2016,Current (non AEF) Grants to Local Authorities,Local Government & Public Services,BRENT LB (HSG),,,,,5000347917,,Business Rates Multiplier Cap,HA9 9HD,"101,487.00",Yes
Communities & Local Government,DCLG,18/10/2016,Current (non AEF) Grants to Local Authorities,Local Government & Public Services,BRENT LB (HSG),,,,,5000347923,,Doubling of Small Business Rates Relief,HA9 9HD,"56,882.00",Yes
Communities & Local Government,DCLG,18/10/2016,Current (non AEF) Grants to Local Authorities,Local Government & Public Services,BRENT LB (HSG),,,,,5000347925,,Long Term Empty Property Relief,HA9 9HD,"1,268.00",Yes
Communities & Local Government,DCLG,18/10/2016,Current (non AEF) Grants to Local Authorities,Local Government & Public Services,BRENTWOOD BC,,,,227473188,5000348869,,Doubling of Small Business Rates Relief,CM15 8AY,"20,288.00",Yes
Communities & Local Government,DCLG,18/10/2016,Current (non AEF) Grants to Local Authorities,Local Government & Public Services,BRENTWOOD BC,,,,227473188,5000348871,,Long Term Empty Property Relief,CM15 8AY,608,Yes
Communities & Local Government,DCLG,18/10/2016,Current (non AEF) Grants to Local Authorities,Local Government & Public Services,BRENTWOOD BC,,,,227473188,5000348877,,Business Rates Multiplier Cap,CM15 8AY,"1,725.00",Yes
Communities & Local Government,DCLG,18/10/2016,Current (non AEF) Grants to Local Authorities,Local Government & Public Services,BRIGHTON & HOVE CITY COUNCIL,,Large,,228455218,5000348883,,Long Term Empty Property Relief,BN3 2LS,"5,355.00",Yes
Communities & Local Government,DCLG,18/10/2016,Current (non AEF) Grants to Local Authorities,Local Government & Public Services,BRIGHTON & HOVE CITY COUNCIL,,Large,,228455218,5000348886,,Small Business Rates Relief on Second Properties,BN3 2LS,"1,311.00",Yes
Communities & Local Government,DCLG,18/10/2016,Current (non AEF) Grants to Local Authorities,Local Government & Public Services,BRIGHTON & HOVE CITY COUNCIL,,Large,,228455218,5000348889,,Business Rates Multiplier Cap,BN3 2LS,"66,993.00",Yes
Communities & Local Government,DCLG,18/10/2016,Current (non AEF) Grants to Local Authorities,Local Government & Public Services,BRIGHTON & HOVE CITY COUNCIL,,Large,,228455218,5000348892,,Doubling of Small Business Rates Relief,BN3 2LS,"138,557.00",Yes
Communities & Local Government,DCLG,18/10/2016,Current (non AEF) Grants to Local Authorities,Local Government & Public Services,BRIGHTON & HOVE CITY COUNCIL,,Large,,228455218,5000348895,,New Empty Property Relief,BN3 2LS,371,Yes
Communities & Local Government,DCLG,18/10/2016,Current (non AEF) Grants to Local Authorities,Local Government & Public Services,BRISTOL CITY CNCL (HSG),,,,211103882,5000347928,,Business Rates Multiplier Cap,BS99 7BL,"123,227.00",Yes
Communities & Local Government,DCLG,18/10/2016,Current (non AEF) Grants to Local Authorities,Local Government & Public Services,BRISTOL CITY CNCL (HSG),,,,211103882,5000347931,,Doubling of Small Business Rates Relief,BS99 7BL,"180,002.00",Yes
Communities & Local Government,DCLG,18/10/2016,Current (non AEF) Grants to Local Authorities,Local Government & Public Services,BRISTOL CITY CNCL (HSG),,,,211103882,5000347934,,Long Term Empty Property Relief,BS99 7BL,"6,673.00",Yes
Communities & Local Government,DCLG,18/10/2016,Current (non AEF) Grants to Local Authorities,Local Government & Public Services,BRISTOL CITY CNCL (HSG),,,,211103882,5000347937,,Extended Transitional Relief for Small and Medium,BS99 7BL,"1,282.00",Yes
Communities & Local Government,DCLG,18/10/2016,Current (non AEF) Grants to Local Authorities,Local Government & Public Services,BRISTOL CITY CNCL (HSG),,,,211103882,5000347940,,Small Business Rates Relief on Second Properties,BS99 7BL,"2,691.00",Yes
Communities & Local Government,DCLG,18/10/2016,Current (non AEF) Grants to Local Authorities,Local Government & Public Services,BROADLAND DC,,Large,,219737785,5000347946,,Business Rates Multiplier Cap,NR7 0DU,"3,750.00",Yes
Communities & Local Government,DCLG,18/10/2016,Current (non AEF) Grants to Local Authorities,Local Government & Public Services,BROADLAND DC,,Large,,219737785,5000347949,,Doubling of Small Business Rates Relief,NR7 0DU,"45,767.00",Yes
Communities & Local Government,DCLG,18/10/2016,Current (non AEF) Grants to Local Authorities,Local Government & Public Services,BROMLEY LB,,,,211331954,5000348904,,Extended Transitional Relief for Small and Medium,BR1 3UH,438,Yes
Communities & Local Government,DCLG,18/10/2016,Current (non AEF) Grants to Local Authorities,Local Government & Public Services,BROMLEY LB,,,,211331954,5000348907,,Business Rates Multiplier Cap,BR1 3UH,"42,310.00",Yes
Communities & Local Government,DCLG,18/10/2016,Current (non AEF) Grants to Local Authorities,Local Government & Public Services,BROMLEY LB,,,,211331954,5000348910,,Doubling of Small Business Rates Relief,BR1 3UH,"57,031.00",Yes
Communities & Local Government,DCLG,18/10/2016,Current (non AEF) Grants to Local Authorities,Local Government & Public Services,BROMLEY LB,,,,211331954,5000348913,,Long Term Empty Property Relief,BR1 3UH,630,Yes
Communities & Local Government,DCLG,18/10/2016,Current (non AEF) Grants to Local Authorities,Local Government & Public Services,BROMSGROVE DC,,,,236654745,5000347961,,Doubling of Small Business Rates Relief,B60 1AA,"39,777.00",Yes
Communities & Local Government,DCLG,18/10/2016,Current (non AEF) Grants to Local Authorities,Local Government & Public Services,BROMSGROVE DC,,,,236654745,5000347964,,New Empty Property Relief,B60 1AA,873,Yes
Communities & Local Government,DCLG,18/10/2016,Current (non AEF) Grants to Local Authorities,Local Government & Public Services,BROMSGROVE DC,,,,236654745,5000347967,,Long Term Empty Property Relief,B60 1AA,495,Yes
Communities & Local Government,DCLG,18/10/2016,Current (non AEF) Grants to Local Authorities,Local Government & Public Services,BROMSGROVE DC,,,,236654745,5000347973,,Business Rates Multiplier Cap,B60 1AA,"2,323.00",Yes
Communities & Local Government,DCLG,18/10/2016,Current (non AEF) Grants to Local Authorities,Local Government & Public Services,BROXBOURNE BC,,Public Bodies,,239931918,5000348919,,Doubling of Small Business Rates Relief,EN8 9XG,"25,031.00",Yes
Communities & Local Government,DCLG,18/10/2016,Current (non AEF) Grants to Local Authorities,Local Government & Public Services,BROXBOURNE BC,,Public Bodies,,239931918,5000348921,,Business Rates Multiplier Cap,EN8 9XG,"3,765.00",Yes
Communities & Local Government,DCLG,18/10/2016,Current (non AEF) Grants to Local Authorities,Local Government & Public Services,BROXTOWE BC,,,,239877640,5000348925,,Doubling of Small Business Rates Relief,NG9 1AB,"29,080.00",Yes
Communities & Local Government,DCLG,18/10/2016,Current (non AEF) Grants to Local Authorities,Local Government & Public Services,BROXTOWE BC,,,,239877640,5000348928,,Business Rates Multiplier Cap,NG9 1AB,"3,827.00",Yes
Communities & Local Government,DCLG,18/10/2016,Current (non AEF) Grants to Local Authorities,Local Government & Public Services,BUCKINGHAMSHIRE CC,,,,293750923,5000348934,,New Empty Property Relief,HP20 1UD,807,Yes
Communities & Local Government,DCLG,18/10/2016,Current (non AEF) Grants to Local Authorities,Local Government & Public Services,BUCKINGHAMSHIRE CC,,,,293750923,5000348937,,Business Rates Multiplier Cap,HP20 1UD,"50,108.00",Yes
Communities & Local Government,DCLG,18/10/2016,Current (non AEF) Grants to Local Authorities,Local Government & Public Services,BUCKINGHAMSHIRE CC,,,,293750923,5000348940,,Doubling of Small Business Rates Relief,HP20 1UD,"30,884.00",Yes
Communities & Local Government,DCLG,18/10/2016,Current (non AEF) Grants to Local Authorities,Local Government & Public Services,BUCKS & MILTON KEYNES FIRE AUTH,,Public Bodies,,423679463,5000349145,,Business Rates Multiplier Cap,HP20 1BD,"5,957.00",Yes
Communities & Local Government,DCLG,18/10/2016,Current (non AEF) Grants to Local Authorities,Local Government & Public Services,BUCKS & MILTON KEYNES FIRE AUTH,,Public Bodies,,423679463,5000349147,,Doubling of Small Business Rates Relief,HP20 1BD,"4,958.00",Yes
Communities & Local Government,DCLG,18/10/2016,Current (non AEF) Grants to Local Authorities,Local Government & Public Services,BURNLEY BC,,,,229413281,5000348955,,Business Rates Multiplier Cap,BB11 1JA,"5,211.00",Yes
Communities & Local Government,DCLG,18/10/2016,Current (non AEF) Grants to Local Authorities,Local Government & Public Services,BURNLEY BC,,,,229413281,5000348958,,New Empty Property Relief,BB11 1JA,845,Yes
Communities & Local Government,DCLG,18/10/2016,Current (non AEF) Grants to Local Authorities,Local Government & Public Services,BURNLEY BC,,,,229413281,5000348961,,Long Term Empty Property Relief,BB11 1JA,845,Yes
Communities & Local Government,DCLG,18/10/2016,Current (non AEF) Grants to Local Authorities,Local Government & Public Services,BURNLEY BC,,,,229413281,5000348964,,Extended Transitional Relief for Small and Medium,BB11 1JA,845,Yes
Communities & Local Government,DCLG,18/10/2016,Current (non AEF) Grants to Local Authorities,Local Government & Public Services,BURNLEY BC,,,,229413281,5000348967,,Small Business Rates Relief on Second Properties,BB11 1JA,423,Yes
Communities & Local Government,DCLG,18/10/2016,Current (non AEF) Grants to Local Authorities,Local Government & Public Services,BURNLEY BC,,,,229413281,5000348970,,Doubling of Small Business Rates Relief,BB11 1JA,"47,434.00",Yes
Communities & Local Government,DCLG,18/10/2016,Current (non AEF) Grants to Local Authorities,Local Government & Public Services,BURY MBC,,,,,5000348976,,Business Rates Multiplier Cap,BL9 0SW,"39,346.00",Yes
Communities & Local Government,DCLG,18/10/2016,Current (non AEF) Grants to Local Authorities,Local Government & Public Services,BURY MBC,,,,,5000348979,,Doubling of Small Business Rates Relief,BL9 0SW,"101,687.00",Yes
Communities & Local Government,DCLG,18/10/2016,Current (non AEF) Grants to Local Authorities,Local Government & Public Services,BURY MBC,,,,,5000348982,,Extended Transitional Relief for Small and Medium,BL9 0SW,453,Yes
Communities & Local Government,DCLG,18/10/2016,Current (non AEF) Grants to Local Authorities,Local Government & Public Services,CALDERDALE MBC,,,,,5000348988,,Small Business Rates Relief on Second Properties,HX1 1YP,"2,071.00",Yes
Communities & Local Government,DCLG,18/10/2016,Current (non AEF) Grants to Local Authorities,Local Government & Public Services,CALDERDALE MBC,,,,,5000348991,,Business Rates Multiplier Cap,HX1 1YP,"47,328.00",Yes
Communities & Local Government,DCLG,18/10/2016,Current (non AEF) Grants to Local Authorities,Local Government & Public Services,CALDERDALE MBC,,,,,5000348994,,Doubling of Small Business Rates Relief,HX1 1YP,"141,319.00",Yes
Communities & Local Government,DCLG,18/10/2016,Current (non AEF) Grants to Local Authorities,Local Government & Public Services,CALDERDALE MBC,,,,,5000348997,,Extended Transitional Relief for Small and Medium,HX1 1YP,538,Yes
Communities & Local Government,DCLG,18/10/2016,Current (non AEF) Grants to Local Authorities,Local Government & Public Services,CAMBRIDGE CITY COUNCIL,,,,210357534,5000349000,,New Empty Property Relief,CB1 0JH,"1,690.00",Yes
Communities & Local Government,DCLG,18/10/2016,Current (non AEF) Grants to Local Authorities,Local Government & Public Services,CAMBRIDGE CITY COUNCIL,,,,210357534,5000349003,,Long Term Empty Property Relief,CB1 0JH,"3,381.00",Yes
Communities & Local Government,DCLG,18/10/2016,Current (non AEF) Grants to Local Authorities,Local Government & Public Services,CAMBRIDGE CITY COUNCIL,,,,210357534,5000349006,,Extended Transitional Relief for Small and Medium,CB1 0JH,868,Yes
Communities & Local Government,DCLG,18/10/2016,Current (non AEF) Grants to Local Authorities,Local Government & Public Services,CAMBRIDGE CITY COUNCIL,,,,210357534,5000349009,,Doubling of Small Business Rates Relief,CB1 0JH,"24,128.00",Yes
Communities & Local Government,DCLG,18/10/2016,Current (non AEF) Grants to Local Authorities,Local Government & Public Services,CAMBRIDGE CITY COUNCIL,,,,210357534,5000349012,,Business Rates Multiplier Cap,CB1 0JH,"7,413.00",Yes
Communities & Local Government,DCLG,18/10/2016,Current (non AEF) Grants to Local Authorities,Local Government & Public Services,CAMBRIDGESHIRE COUNTY CNCL,,,,219047347,5000349018,,Long Term Empty Property Relief,CB3 0AP,865,Yes
Communities & Local Government,DCLG,18/10/2016,Current (non AEF) Grants to Local Authorities,Local Government & Public Services,CAMBRIDGESHIRE COUNTY CNCL,,,,219047347,5000349021,,Doubling of Small Business Rates Relief,CB3 0AP,"42,327.00",Yes
Communities & Local Government,DCLG,18/10/2016,Current (non AEF) Grants to Local Authorities,Local Government & Public Services,CAMBRIDGESHIRE COUNTY CNCL,,,,219047347,5000349024,,Business Rates Multiplier Cap,CB3 0AP,"73,922.00",Yes
Communities & Local Government,DCLG,18/10/2016,Current (non AEF) Grants to Local Authorities,Local Government & Public Services,CAMBRIDGESHIRE COUNTY CNCL,,,,219047347,5000349027,,New Empty Property Relief,CB3 0AP,692,Yes
Communities & Local Government,DCLG,18/10/2016,Current (non AEF) Grants to Local Authorities,Local Government & Public Services,CAMBRIDGESHIRE COUNTY CNCL,,,,219047347,5000349030,,Extended Transitional Relief for Small and Medium,CB3 0AP,360,Yes
Communities & Local Government,DCLG,18/10/2016,Current (non AEF) Grants to Local Authorities,Local Government & Public Services,CAMBRIDGESHIRE COUNTY CNCL,,,,219047347,5000349033,,Small Business Rates Relief on Second Properties,CB3 0AP,392,Yes
Communities & Local Government,DCLG,18/10/2016,Current (non AEF) Grants to Local Authorities,Local Government & Public Services,CAMBS & PETERBOROUGH FIRE AUTHORITY,,,,235999737,5000349238,,Business Rates Multiplier Cap,PE29 2NA,"7,020.00",Yes
Communities & Local Government,DCLG,18/10/2016,Current (non AEF) Grants to Local Authorities,Local Government & Public Services,CAMBS & PETERBOROUGH FIRE AUTHORITY,,,,235999737,5000349240,,Doubling of Small Business Rates Relief,PE29 2NA,"6,039.00",Yes
Communities & Local Government,DCLG,18/10/2016,Current (non AEF) Grants to Local Authorities,Local Government & Public Services,CAMDEN LB,,,,211651836,5000349039,,Extended Transitional Relief for Small and Medium,WC1H 8NG,"2,290.00",Yes
Communities & Local Government,DCLG,18/10/2016,Current (non AEF) Grants to Local Authorities,Local Government & Public Services,CAMDEN LB,,,,211651836,5000349042,,Doubling of Small Business Rates Relief,WC1H 8NG,"37,877.00",Yes
Communities & Local Government,DCLG,18/10/2016,Current (non AEF) Grants to Local Authorities,Local Government & Public Services,CAMDEN LB,,,,211651836,5000349045,,Business Rates Multiplier Cap,WC1H 8NG,"110,388.00",Yes
Communities & Local Government,DCLG,18/10/2016,Current (non AEF) Grants to Local Authorities,Local Government & Public Services,CANNOCK CHASE DC,,,,215064770,5000349051,,Long Term Empty Property Relief,WS11 1BG,903,Yes
Communities & Local Government,DCLG,18/10/2016,Current (non AEF) Grants to Local Authorities,Local Government & Public Services,CANNOCK CHASE DC,,,,215064770,5000349057,,Business Rates Multiplier Cap,WS11 1BG,"4,908.00",Yes
Communities & Local Government,DCLG,18/10/2016,Current (non AEF) Grants to Local Authorities,Local Government & Public Services,CANNOCK CHASE DC,,,,215064770,5000349060,,Doubling of Small Business Rates Relief,WS11 1BG,"43,801.00",Yes
Communities & Local Government,DCLG,18/10/2016,Current (non AEF) Grants to Local Authorities,Local Government & Public Services,CANTERBURY CITY CNCL,,,,,5000347979,,Business Rates Multiplier Cap,CT1 1YW,"3,970.00",Yes
Communities & Local Government,DCLG,18/10/2016,Current (non AEF) Grants to Local Authorities,Local Government & Public Services,CANTERBURY CITY CNCL,,,,,5000347982,,Doubling of Small Business Rates Relief,CT1 1YW,"59,104.00",Yes
Communities & Local Government,DCLG,18/10/2016,Current (non AEF) Grants to Local Authorities,Local Government & Public Services,CANTERBURY CITY CNCL,,,,,5000347985,,Long Term Empty Property Relief,CT1 1YW,"1,568.00",Yes
Communities & Local Government,DCLG,18/10/2016,Current (non AEF) Grants to Local Authorities,Local Government & Public Services,CANTERBURY CITY CNCL,,,,,5000347988,,Extended Transitional Relief for Small and Medium,CT1 1YW,366,Yes
Communities & Local Government,DCLG,18/10/2016,Current (non AEF) Grants to Local Authorities,Local Government & Public Services,CARLISLE CITY CNCL,,,,227471059,5000347997,,Extended Transitional Relief for Small and Medium,CA3 8QG,270,Yes
Communities & Local Government,DCLG,18/10/2016,Current (non AEF) Grants to Local Authorities,Local Government & Public Services,CARLISLE CITY CNCL,,,,227471059,5000348000,,Small Business Rates Relief on Second Properties,CA3 8QG,484,Yes
Communities & Local Government,DCLG,18/10/2016,Current (non AEF) Grants to Local Authorities,Local Government & Public Services,CARLISLE CITY CNCL,,,,227471059,5000348003,,Business Rates Multiplier Cap,CA3 8QG,"4,978.00",Yes
Communities & Local Government,DCLG,18/10/2016,Current (non AEF) Grants to Local Authorities,Local Government & Public Services,CARLISLE CITY CNCL,,,,227471059,5000348006,,Doubling of Small Business Rates Relief,CA3 8QG,"44,444.00",Yes
Communities & Local Government,DCLG,18/10/2016,Current (non AEF) Grants to Local Authorities,Local Government & Public Services,CARLISLE CITY CNCL,,,,227471059,5000348012,,Long Term Empty Property Relief,CA3 8QG,"2,090.00",Yes
Communities & Local Government,DCLG,18/10/2016,Current (non AEF) Grants to Local Authorities,Local Government & Public Services,CASTLE POINT BC,,Public Bodies,,228217931,5000349069,,Business Rates Multiplier Cap,SS7 1TF,"2,466.00",Yes
Communities & Local Government,DCLG,18/10/2016,Current (non AEF) Grants to Local Authorities,Local Government & Public Services,CASTLE POINT BC,,Public Bodies,,228217931,5000349072,,Doubling of Small Business Rates Relief,SS7 1TF,"30,683.00",Yes
Communities & Local Government,DCLG,18/10/2016,Current (non AEF) Grants to Local Authorities,Local Government & Public Services,CENTRAL BEDFORDSHIRE COUNCIL,,,,232624882,5000349462,,New Empty Property Relief,SG17 5TQ,"2,120.00",Yes
Communities & Local Government,DCLG,18/10/2016,Current (non AEF) Grants to Local Authorities,Local Government & Public Services,CENTRAL BEDFORDSHIRE COUNCIL,,,,232624882,5000349464,,Extended Transitional Relief for Small and Medium,SG17 5TQ,578,Yes
Communities & Local Government,DCLG,18/10/2016,Current (non AEF) Grants to Local Authorities,Local Government & Public Services,CENTRAL BEDFORDSHIRE COUNCIL,,,,232624882,5000349466,,Business Rates Multiplier Cap,SG17 5TQ,"39,573.00",Yes
Communities & Local Government,DCLG,18/10/2016,Current (non AEF) Grants to Local Authorities,Local Government & Public Services,CENTRAL BEDFORDSHIRE COUNCIL,,,,232624882,5000349468,,Doubling of Small Business Rates Relief,SG17 5TQ,"98,876.00",Yes
Communities & Local Government,DCLG,18/10/2016,Current (non AEF) Grants to Local Authorities,Local Government & Public Services,CENTRAL BEDFORDSHIRE COUNCIL,,,,232624882,5000349470,,Long Term Empty Property Relief,SG17 5TQ,"1,750.00",Yes
Communities & Local Government,DCLG,18/10/2016,Current (non AEF) Grants to Local Authorities,Local Government & Public Services,CHARNWOOD BC,,,,,5000347775,,Business Rates Multiplier Cap,LE11 2TU,"4,875.00",Yes
Communities & Local Government,DCLG,18/10/2016,Current (non AEF) Grants to Local Authorities,Local Government & Public Services,CHARNWOOD BC,,,,,5000347779,,New Empty Property Relief,LE11 2TU,"1,690.00",Yes
Communities & Local Government,DCLG,18/10/2016,Current (non AEF) Grants to Local Authorities,Local Government & Public Services,CHARNWOOD BC,,,,,5000347784,,Small Business Rates Relief on Second Properties,LE11 2TU,423,Yes
Communities & Local Government,DCLG,18/10/2016,Current (non AEF) Grants to Local Authorities,Local Government & Public Services,CHARNWOOD BC,,,,,5000347787,,Doubling of Small Business Rates Relief,LE11 2TU,"54,562.00",Yes
Communities & Local Government,DCLG,18/10/2016,Current (non AEF) Grants to Local Authorities,Local Government & Public Services,CHARNWOOD BC,,,,,5000347791,,Long Term Empty Property Relief,LE11 2TU,794,Yes
Communities & Local Government,DCLG,18/10/2016,Current (non AEF) Grants to Local Authorities,Local Government & Public Services,CHELMSFORD BC,,,,,5000347795,,Doubling of Small Business Rates Relief,CM1 1JE,"46,542.00",Yes
Communities & Local Government,DCLG,18/10/2016,Current (non AEF) Grants to Local Authorities,Local Government & Public Services,CHELMSFORD BC,,,,,5000347798,,Long Term Empty Property Relief,CM1 1JE,"1,257.00",Yes
Communities & Local Government,DCLG,18/10/2016,Current (non AEF) Grants to Local Authorities,Local Government & Public Services,CHELMSFORD BC,,,,,5000347803,,Extended Transitional Relief for Small and Medium,CM1 1JE,579,Yes
Communities & Local Government,DCLG,18/10/2016,Current (non AEF) Grants to Local Authorities,Local Government & Public Services,CHELMSFORD BC,,,,,5000347806,,Business Rates Multiplier Cap,CM1 1JE,"3,154.00",Yes
Communities & Local Government,DCLG,18/10/2016,Current (non AEF) Grants to Local Authorities,Local Government & Public Services,CHELTENHAM BC,,,,,5000347811,,Doubling of Small Business Rates Relief,GL50 1PW,"39,937.00",Yes
Communities & Local Government,DCLG,18/10/2016,Current (non AEF) Grants to Local Authorities,Local Government & Public Services,CHELTENHAM BC,,,,,5000347814,,Long Term Empty Property Relief,GL50 1PW,507,Yes
Communities & Local Government,DCLG,18/10/2016,Current (non AEF) Grants to Local Authorities,Local Government & Public Services,CHELTENHAM BC,,,,,5000347820,,Business Rates Multiplier Cap,GL50 1PW,"3,727.00",Yes
Communities & Local Government,DCLG,18/10/2016,Current (non AEF) Grants to Local Authorities,Local Government & Public Services,CHERWELL DC,,,,,5000348018,,Business Rates Multiplier Cap,OX15 4AA,"9,034.00",Yes
Communities & Local Government,DCLG,18/10/2016,Current (non AEF) Grants to Local Authorities,Local Government & Public Services,CHERWELL DC,,,,,5000348021,,Doubling of Small Business Rates Relief,OX15 4AA,"38,338.00",Yes
Communities & Local Government,DCLG,18/10/2016,Current (non AEF) Grants to Local Authorities,Local Government & Public Services,CHERWELL DC,,,,,5000348025,,Long Term Empty Property Relief,OX15 4AA,"1,009.00",Yes
Communities & Local Government,DCLG,18/10/2016,Current (non AEF) Grants to Local Authorities,Local Government & Public Services,CHESHIRE EAST COUNCIL,,Large,,,5000349474,,Doubling of Small Business Rates Relief,CW11 1HZ,"185,764.00",Yes
Communities & Local Government,DCLG,18/10/2016,Current (non AEF) Grants to Local Authorities,Local Government & Public Services,CHESHIRE EAST COUNCIL,,Large,,,5000349476,,Long Term Empty Property Relief,CW11 1HZ,"4,062.00",Yes
Communities & Local Government,DCLG,18/10/2016,Current (non AEF) Grants to Local Authorities,Local Government & Public Services,CHESHIRE EAST COUNCIL,,Large,,,5000349478,,Extended Transitional Relief for Small and Medium,CW11 1HZ,295,Yes
Communities & Local Government,DCLG,18/10/2016,Current (non AEF) Grants to Local Authorities,Local Government & Public Services,CHESHIRE EAST COUNCIL,,Large,,,5000349480,,Small Business Rates Relief on Second Properties,CW11 1HZ,"1,952.00",Yes
Communities & Local Government,DCLG,18/10/2016,Current (non AEF) Grants to Local Authorities,Local Government & Public Services,CHESHIRE EAST COUNCIL,,Large,,,5000349482,,Business Rates Multiplier Cap,CW11 1HZ,"49,448.00",Yes
Communities & Local Government,DCLG,18/10/2016,Current (non AEF) Grants to Local Authorities,Local Government & Public Services,CHESHIRE FIRE AUTHORITY,,,,424872737,5000349224,,Doubling of Small Business Rates Relief,CW7 2FQ,"8,676.00",Yes
Communities & Local Government,DCLG,18/10/2016,Current (non AEF) Grants to Local Authorities,Local Government & Public Services,CHESHIRE FIRE AUTHORITY,,,,424872737,5000349228,,Business Rates Multiplier Cap,CW7 2FQ,"10,625.00",Yes
Communities & Local Government,DCLG,18/10/2016,Current (non AEF) Grants to Local Authorities,Local Government & Public Services,CHESHIRE WEST & CHESTER UA,,Large,,215584383,5000349486,,Business Rates Multiplier Cap,CH1 2NP,"61,441.00",Yes
Communities & Local Government,DCLG,18/10/2016,Current (non AEF) Grants to Local Authorities,Local Government & Public Services,CHESHIRE WEST & CHESTER UA,,Large,,215584383,5000349488,,New Empty Property Relief,CH1 2NP,456,Yes
Communities & Local Government,DCLG,18/10/2016,Current (non AEF) Grants to Local Authorities,Local Government & Public Services,CHESHIRE WEST & CHESTER UA,,Large,,215584383,5000349490,,Extended Transitional Relief for Small and Medium,CH1 2NP,415,Yes
Communities & Local Government,DCLG,18/10/2016,Current (non AEF) Grants to Local Authorities,Local Government & Public Services,CHESHIRE WEST & CHESTER UA,,Large,,215584383,5000349492,,Small Business Rates Relief on Second Properties,CH1 2NP,870,Yes
Communities & Local Government,DCLG,18/10/2016,Current (non AEF) Grants to Local Authorities,Local Government & Public Services,CHESHIRE WEST & CHESTER UA,,Large,,215584383,5000349494,,Doubling of Small Business Rates Relief,CH1 2NP,"133,607.00",Yes
Communities & Local Government,DCLG,18/10/2016,Current (non AEF) Grants to Local Authorities,Local Government & Public Services,CHESHIRE WEST & CHESTER UA,,Large,,215584383,5000349496,,Long Term Empty Property Relief,CH1 2NP,"3,479.00",Yes
Communities & Local Government,DCLG,18/10/2016,Current (non AEF) Grants to Local Authorities,Local Government & Public Services,CHESTERFIELD BC,,,,232102301,5000347829,,Doubling of Small Business Rates Relief,S40 1LP,"48,111.00",Yes
Communities & Local Government,DCLG,18/10/2016,Current (non AEF) Grants to Local Authorities,Local Government & Public Services,CHESTERFIELD BC,,,,232102301,5000347832,,Business Rates Multiplier Cap,S40 1LP,"5,807.00",Yes
Communities & Local Government,DCLG,18/10/2016,Current (non AEF) Grants to Local Authorities,Local Government & Public Services,CHESTERFIELD BC,,,,232102301,5000347835,,Long Term Empty Property Relief,S40 1LP,"1,428.00",Yes
Communities & Local Government,DCLG,18/10/2016,Current (non AEF) Grants to Local Authorities,Local Government & Public Services,CHESTERFIELD BC,,,,232102301,5000347841,,Small Business Rates Relief on Second Properties,S40 1LP,261,Yes
Communities & Local Government,DCLG,18/10/2016,Current (non AEF) Grants to Local Authorities,Local Government & Public Services,CHICHESTER DC,,,,739800998,5000348032,,New Empty Property Relief,PO19 1TY,338,Yes
Communities & Local Government,DCLG,18/10/2016,Current (non AEF) Grants to Local Authorities,Local Government & Public Services,CHICHESTER DC,,,,739800998,5000348036,,Long Term Empty Property Relief,PO19 1TY,338,Yes
Communities & Local Government,DCLG,18/10/2016,Current (non AEF) Grants to Local Authorities,Local Government & Public Services,CHICHESTER DC,,,,739800998,5000348042,,Small Business Rates Relief on Second Properties,PO19 1TY,560,Yes
Communities & Local Government,DCLG,18/10/2016,Current (non AEF) Grants to Local Authorities,Local Government & Public Services,CHICHESTER DC,,,,739800998,5000348045,,Doubling of Small Business Rates Relief,PO19 1TY,"55,077.00",Yes
Communities & Local Government,DCLG,18/10/2016,Current (non AEF) Grants to Local Authorities,Local Government & Public Services,CHICHESTER DC,,,,739800998,5000348048,,Business Rates Multiplier Cap,PO19 1TY,"3,869.00",Yes
Communities & Local Government,DCLG,18/10/2016,Current (non AEF) Grants to Local Authorities,Local Government & Public Services,CHILTERN DC (HSG),,,,,5000348054,,Business Rates Multiplier Cap,HP6 5AW,"2,149.00",Yes
Communities & Local Government,DCLG,18/10/2016,Current (non AEF) Grants to Local Authorities,Local Government & Public Services,CHILTERN DC (HSG),,,,,5000348057,,Doubling of Small Business Rates Relief,HP6 5AW,"25,620.00",Yes
Communities & Local Government,DCLG,18/10/2016,Current (non AEF) Grants to Local Authorities,Local Government & Public Services,CHORLEY BOROUGH COUNCIL,,,,236415576,5000347844,,Long Term Empty Property Relief,PR7 1DP,351,Yes
Communities & Local Government,DCLG,18/10/2016,Current (non AEF) Grants to Local Authorities,Local Government & Public Services,CHORLEY BOROUGH COUNCIL,,,,236415576,5000347847,,Business Rates Multiplier Cap,PR7 1DP,"4,560.00",Yes
Communities & Local Government,DCLG,18/10/2016,Current (non AEF) Grants to Local Authorities,Local Government & Public Services,CHORLEY BOROUGH COUNCIL,,,,236415576,5000347850,,Doubling of Small Business Rates Relief,PR7 1DP,"43,127.00",Yes
Communities & Local Government,DCLG,18/10/2016,Current (non AEF) Grants to Local Authorities,Local Government & Public Services,CHORLEY BOROUGH COUNCIL,,,,236415576,5000347853,,Extended Transitional Relief for Small and Medium,PR7 1DP,558,Yes
Communities & Local Government,DCLG,18/10/2016,Current (non AEF) Grants to Local Authorities,Local Government & Public Services,CHRISTCHURCH BC (HSG),,,,227415213,5000348072,,Business Rates Multiplier Cap,BH23 1AZ,"1,789.00",Yes
Communities & Local Government,DCLG,18/10/2016,Current (non AEF) Grants to Local Authorities,Local Government & Public Services,CHRISTCHURCH BC (HSG),,,,227415213,5000348075,,Doubling of Small Business Rates Relief,BH23 1AZ,"21,237.00",Yes
Communities & Local Government,DCLG,18/10/2016,Current (non AEF) Grants to Local Authorities,Local Government & Public Services,CHRISTCHURCH BC (HSG),,,,227415213,5000348078,,Long Term Empty Property Relief,BH23 1AZ,702,Yes
Communities & Local Government,DCLG,18/10/2016,Current (non AEF) Grants to Local Authorities,Local Government & Public Services,CITY OF LINCOLN COUNCIL,,,,,5000348812,,Business Rates Multiplier Cap,LN1 1DB,"5,241.00",Yes
Communities & Local Government,DCLG,18/10/2016,Current (non AEF) Grants to Local Authorities,Local Government & Public Services,CITY OF LINCOLN COUNCIL,,,,,5000348815,,Doubling of Small Business Rates Relief,LN1 1DB,"32,563.00",Yes
Communities & Local Government,DCLG,18/10/2016,Current (non AEF) Grants to Local Authorities,Local Government & Public Services,CITY OF LINCOLN COUNCIL,,,,,5000348818,,New Empty Property Relief,LN1 1DB,"5,979.00",Yes
Communities & Local Government,DCLG,18/10/2016,Current (non AEF) Grants to Local Authorities,Local Government & Public Services,CITY OF LINCOLN COUNCIL,,,,,5000348820,,Long Term Empty Property Relief,LN1 1DB,"4,478.00",Yes
Communities & Local Government,DCLG,18/10/2016,Current (non AEF) Grants to Local Authorities,Local Government & Public Services,CITY OF LONDON (HSG),,,,217471460,5000348084,,Doubling of Small Business Rates Relief,EC2P 2EJ,"5,577.00",Yes
Communities & Local Government,DCLG,18/10/2016,Current (non AEF) Grants to Local Authorities,Local Government & Public Services,CITY OF LONDON (HSG),,,,217471460,5000348087,,New Empty Property Relief,EC2P 2EJ,"3,561.00",Yes
Communities & Local Government,DCLG,18/10/2016,Current (non AEF) Grants to Local Authorities,Local Government & Public Services,CITY OF LONDON (HSG),,,,217471460,5000348090,,Long Term Empty Property Relief,EC2P 2EJ,"2,223.00",Yes
Communities & Local Government,DCLG,18/10/2016,Current (non AEF) Grants to Local Authorities,Local Government & Public Services,CITY OF LONDON (HSG),,,,217471460,5000348093,,Extended Transitional Relief for Small and Medium,EC2P 2EJ,255,Yes
Communities & Local Government,DCLG,18/10/2016,Current (non AEF) Grants to Local Authorities,Local Government & Public Services,CITY OF LONDON (HSG),,,,217471460,5000348096,,Business Rates Multiplier Cap,EC2P 2EJ,"44,620.00",Yes
Communities & Local Government,DCLG,18/10/2016,Current (non AEF) Grants to Local Authorities,Local Government & Public Services,CITY OF SUNDERLAND (HSG),,,,215599312,5000348099,,Business Rates Multiplier Cap,SR2 7DN,"97,060.00",Yes
Communities & Local Government,DCLG,18/10/2016,Current (non AEF) Grants to Local Authorities,Local Government & Public Services,CITY OF SUNDERLAND (HSG),,,,215599312,5000348102,,Extended Transitional Relief for Small and Medium,SR2 7DN,828,Yes
Communities & Local Government,DCLG,18/10/2016,Current (non AEF) Grants to Local Authorities,Local Government & Public Services,CITY OF SUNDERLAND (HSG),,,,215599312,5000348105,,Doubling of Small Business Rates Relief,SR2 7DN,"97,634.00",Yes
Communities & Local Government,DCLG,18/10/2016,Current (non AEF) Grants to Local Authorities,Local Government & Public Services,CITY OF SUNDERLAND (HSG),,,,215599312,5000348108,,Long Term Empty Property Relief,SR2 7DN,"2,585.00",Yes
Communities & Local Government,DCLG,18/10/2016,Current (non AEF) Grants to Local Authorities,Local Government & Public Services,CITY OF WAKEFIELD MDC,,,,,5000349621,,Small Business Rates Relief on Second Properties,WF1 2QW,415,Yes
Communities & Local Government,DCLG,18/10/2016,Current (non AEF) Grants to Local Authorities,Local Government & Public Services,CITY OF WAKEFIELD MDC,,,,,5000349622,,Business Rates Multiplier Cap,WF1 2QW,"81,825.00",Yes
Communities & Local Government,DCLG,18/10/2016,Current (non AEF) Grants to Local Authorities,Local Government & Public Services,CITY OF WAKEFIELD MDC,,,,,5000349623,,Doubling of Small Business Rates Relief,WF1 2QW,"165,482.00",Yes
Communities & Local Government,DCLG,18/10/2016,Current (non AEF) Grants to Local Authorities,Local Government & Public Services,CITY OF WAKEFIELD MDC,,,,,5000349625,,Long Term Empty Property Relief,WF1 2QW,"4,088.00",Yes
Communities & Local Government,DCLG,18/10/2016,Current (non AEF) Grants to Local Authorities,Local Government & Public Services,CITY OF WAKEFIELD MDC,,,,,5000349626,,Extended Transitional Relief for Small and Medium,WF1 2QW,828,Yes
Communities & Local Government,DCLG,18/10/2016,Current (non AEF) Grants to Local Authorities,Local Government & Public Services,CLEVELAND FIRE AUTHORITY,,Medium,,424872778,5000349189,,Business Rates Multiplier Cap,TS25 5TB,"10,127.00",Yes
Communities & Local Government,DCLG,18/10/2016,Current (non AEF) Grants to Local Authorities,Local Government & Public Services,CLEVELAND FIRE AUTHORITY,,Medium,,424872778,5000349192,,Doubling of Small Business Rates Relief,TS25 5TB,"4,343.00",Yes
Communities & Local Government,DCLG,18/10/2016,Current (non AEF) Grants to Local Authorities,Local Government & Public Services,CO DURHAM & DARLINGTON FIRE & RESCU,,,,424872851,5000349333,,Business Rates Multiplier Cap,DH1 1TW,"7,850.00",Yes
Communities & Local Government,DCLG,18/10/2016,Current (non AEF) Grants to Local Authorities,Local Government & Public Services,CO DURHAM & DARLINGTON FIRE & RESCU,,,,424872851,5000349335,,Doubling of Small Business Rates Relief,DH1 1TW,"5,163.00",Yes
Communities & Local Government,DCLG,18/10/2016,Current (non AEF) Grants to Local Authorities,Local Government & Public Services,COLCHESTER BC,,,,,5000347860,,Extended Transitional Relief for Small and Medium,CO3 3WG,468,Yes
Communities & Local Government,DCLG,18/10/2016,Current (non AEF) Grants to Local Authorities,Local Government & Public Services,COLCHESTER BC,,,,,5000347867,,Business Rates Multiplier Cap,CO3 3WG,"6,355.00",Yes
Communities & Local Government,DCLG,18/10/2016,Current (non AEF) Grants to Local Authorities,Local Government & Public Services,COLCHESTER BC,,,,,5000347870,,Doubling of Small Business Rates Relief,CO3 3WG,"53,611.00",Yes
Communities & Local Government,DCLG,18/10/2016,Current (non AEF) Grants to Local Authorities,Local Government & Public Services,COLCHESTER BC,,,,,5000347873,,New Empty Property Relief,CO3 3WG,"4,839.00",Yes
Communities & Local Government,DCLG,18/10/2016,Current (non AEF) Grants to Local Authorities,Local Government & Public Services,COPELAND BC,,,,236414827,5000348110,,Business Rates Multiplier Cap,CA28 7NY,"1,655.00",Yes
Communities & Local Government,DCLG,18/10/2016,Current (non AEF) Grants to Local Authorities,Local Government & Public Services,COPELAND BC,,,,236414827,5000348113,,Doubling of Small Business Rates Relief,CA28 7NY,"25,544.00",Yes
Communities & Local Government,DCLG,18/10/2016,Current (non AEF) Grants to Local Authorities,Local Government & Public Services,COPELAND BC,,,,236414827,5000348116,,Long Term Empty Property Relief,CA28 7NY,250,Yes
Communities & Local Government,DCLG,18/10/2016,Current (non AEF) Grants to Local Authorities,Local Government & Public Services,COPELAND BC,,,,236414827,5000348122,,Extended Transitional Relief for Small and Medium,CA28 7NY,338,Yes
Communities & Local Government,DCLG,18/10/2016,Current (non AEF) Grants to Local Authorities,Local Government & Public Services,CORBY BC,,,,,5000348125,,Business Rates Multiplier Cap,NN17 1GD,"3,686.00",Yes
Communities & Local Government,DCLG,18/10/2016,Current (non AEF) Grants to Local Authorities,Local Government & Public Services,CORBY BC,,,,,5000348128,,Doubling of Small Business Rates Relief,NN17 1GD,"19,832.00",Yes
Communities & Local Government,DCLG,18/10/2016,Current (non AEF) Grants to Local Authorities,Local Government & Public Services,CORBY BC,,,,,5000348131,,Long Term Empty Property Relief,NN17 1GD,"1,690.00",Yes
Communities & Local Government,DCLG,18/10/2016,Current (non AEF) Grants to Local Authorities,Local Government & Public Services,CORNWALL UNITARY AUTHORITY,,,,211334404,5000349526,,New Empty Property Relief,TR1 3AY,634,Yes
Communities & Local Government,DCLG,18/10/2016,Current (non AEF) Grants to Local Authorities,Local Government & Public Services,CORNWALL UNITARY AUTHORITY,,,,211334404,5000349528,,Long Term Empty Property Relief,TR1 3AY,"1,444.00",Yes
Communities & Local Government,DCLG,18/10/2016,Current (non AEF) Grants to Local Authorities,Local Government & Public Services,CORNWALL UNITARY AUTHORITY,,,,211334404,5000349530,,Extended Transitional Relief for Small and Medium,TR1 3AY,"6,927.00",Yes
Communities & Local Government,DCLG,18/10/2016,Current (non AEF) Grants to Local Authorities,Local Government & Public Services,CORNWALL UNITARY AUTHORITY,,,,211334404,5000349532,,Small Business Rates Relief on Second Properties,TR1 3AY,"1,249.00",Yes
Communities & Local Government,DCLG,18/10/2016,Current (non AEF) Grants to Local Authorities,Local Government & Public Services,CORNWALL UNITARY AUTHORITY,,,,211334404,5000349534,,Doubling of Small Business Rates Relief,TR1 3AY,"508,891.00",Yes
Communities & Local Government,DCLG,18/10/2016,Current (non AEF) Grants to Local Authorities,Local Government & Public Services,CORNWALL UNITARY AUTHORITY,,,,211334404,5000349536,,Business Rates Multiplier Cap,TR1 3AY,"118,470.00",Yes
Communities & Local Government,DCLG,18/10/2016,Current (non AEF) Grants to Local Authorities,Local Government & Public Services,COTSWOLD DC,,,,232462085,5000348140,,Business Rates Multiplier Cap,GL7 1PX,"2,515.00",Yes
Communities & Local Government,DCLG,18/10/2016,Current (non AEF) Grants to Local Authorities,Local Government & Public Services,COTSWOLD DC,,,,232462085,5000348143,,Doubling of Small Business Rates Relief,GL7 1PX,"51,267.00",Yes
Communities & Local Government,DCLG,18/10/2016,Current (non AEF) Grants to Local Authorities,Local Government & Public Services,COTSWOLD DC,,,,232462085,5000348149,,Extended Transitional Relief for Small and Medium,GL7 1PX,514,Yes
Communities & Local Government,DCLG,18/10/2016,Current (non AEF) Grants to Local Authorities,Local Government & Public Services,COVENTRY CITY CNCL,,,,210384802,5000347879,,New Empty Property Relief,CV1 2QL,379,Yes
Communities & Local Government,DCLG,18/10/2016,Current (non AEF) Grants to Local Authorities,Local Government & Public Services,COVENTRY CITY CNCL,,,,210384802,5000347882,,Long Term Empty Property Relief,CV1 2QL,"3,877.00",Yes
Communities & Local Government,DCLG,18/10/2016,Current (non AEF) Grants to Local Authorities,Local Government & Public Services,COVENTRY CITY CNCL,,,,210384802,5000347885,,Extended Transitional Relief for Small and Medium,CV1 2QL,276,Yes
Communities & Local Government,DCLG,18/10/2016,Current (non AEF) Grants to Local Authorities,Local Government & Public Services,COVENTRY CITY CNCL,,,,210384802,5000347888,,Business Rates Multiplier Cap,CV1 2QL,"89,833.00",Yes
Communities & Local Government,DCLG,18/10/2016,Current (non AEF) Grants to Local Authorities,Local Government & Public Services,COVENTRY CITY CNCL,,,,210384802,5000347891,,Doubling of Small Business Rates Relief,CV1 2QL,"115,972.00",Yes
Communities & Local Government,DCLG,18/10/2016,Current (non AEF) Grants to Local Authorities,Local Government & Public Services,CRAVEN DC (HSG),,,,,5000348158,,Long Term Empty Property Relief,BD23 1FJ,821,Yes
Communities & Local Government,DCLG,18/10/2016,Current (non AEF) Grants to Local Authorities,Local Government & Public Services,CRAVEN DC (HSG),,,,,5000348161,,Business Rates Multiplier Cap,BD23 1FJ,"1,833.00",Yes
Communities & Local Government,DCLG,18/10/2016,Current (non AEF) Grants to Local Authorities,Local Government & Public Services,CRAVEN DC (HSG),,,,,5000348167,,Doubling of Small Business Rates Relief,BD23 1FJ,"39,387.00",Yes
Communities & Local Government,DCLG,18/10/2016,Current (non AEF) Grants to Local Authorities,Local Government & Public Services,CRAWLEY BC,,,,211222500,5000348173,,Doubling of Small Business Rates Relief,RH10 1UZ,"13,437.00",Yes
Communities & Local Government,DCLG,18/10/2016,Current (non AEF) Grants to Local Authorities,Local Government & Public Services,CRAWLEY BC,,,,211222500,5000348176,,New Empty Property Relief,RH10 1UZ,"3,749.00",Yes
Communities & Local Government,DCLG,18/10/2016,Current (non AEF) Grants to Local Authorities,Local Government & Public Services,CRAWLEY BC,,,,211222500,5000348179,,Long Term Empty Property Relief,RH10 1UZ,"2,411.00",Yes
Communities & Local Government,DCLG,18/10/2016,Current (non AEF) Grants to Local Authorities,Local Government & Public Services,CRAWLEY BC,,,,211222500,5000348188,,Business Rates Multiplier Cap,RH10 1UZ,"6,985.00",Yes
Communities & Local Government,DCLG,18/10/2016,Current (non AEF) Grants to Local Authorities,Local Government & Public Services,CROYDON LB,,,,212419973,5000347894,,Extended Transitional Relief for Small and Medium,CR9 3JS,"33,547.00",Yes
Communities & Local Government,DCLG,18/10/2016,Current (non AEF) Grants to Local Authorities,Local Government & Public Services,CROYDON LB,,,,212419973,5000347896,,Business Rates Multiplier Cap,CR9 3JS,"79,499.00",Yes
Communities & Local Government,DCLG,18/10/2016,Current (non AEF) Grants to Local Authorities,Local Government & Public Services,CROYDON LB,,,,212419973,5000347899,,Doubling of Small Business Rates Relief,CR9 3JS,"77,895.00",Yes
Communities & Local Government,DCLG,18/10/2016,Current (non AEF) Grants to Local Authorities,Local Government & Public Services,CUMBRIA COUNTY CNCL,,,,211316542,5000347908,,Long Term Empty Property Relief,CA3 8NA,987,Yes
Communities & Local Government,DCLG,18/10/2016,Current (non AEF) Grants to Local Authorities,Local Government & Public Services,CUMBRIA COUNTY CNCL,,,,211316542,5000347911,,Small Business Rates Relief on Second Properties,CA3 8NA,443,Yes
Communities & Local Government,DCLG,18/10/2016,Current (non AEF) Grants to Local Authorities,Local Government & Public Services,CUMBRIA COUNTY CNCL,,,,211316542,5000347915,,Business Rates Multiplier Cap,CA3 8NA,"98,716.00",Yes
Communities & Local Government,DCLG,18/10/2016,Current (non AEF) Grants to Local Authorities,Local Government & Public Services,CUMBRIA COUNTY CNCL,,,,211316542,5000347918,,Doubling of Small Business Rates Relief,CA3 8NA,"73,597.00",Yes
Communities & Local Government,DCLG,18/10/2016,Current (non AEF) Grants to Local Authorities,Local Government & Public Services,CUMBRIA COUNTY CNCL,,,,211316542,5000347924,,Extended Transitional Relief for Small and Medium,CA3 8NA,335,Yes
Communities & Local Government,DCLG,18/10/2016,Current (non AEF) Grants to Local Authorities,Local Government & Public Services,DACORUM BC,,,,236448643,5000347930,,Doubling of Small Business Rates Relief,HP1 1HH,"37,754.00",Yes
Communities & Local Government,DCLG,18/10/2016,Current (non AEF) Grants to Local Authorities,Local Government & Public Services,DACORUM BC,,,,236448643,5000347939,,Business Rates Multiplier Cap,HP1 1HH,"3,038.00",Yes
Communities & Local Government,DCLG,18/10/2016,Current (non AEF) Grants to Local Authorities,Local Government & Public Services,DARLINGTON BC,,,,,5000347945,,Doubling of Small Business Rates Relief,TS19 1JA,"50,315.00",Yes
Communities & Local Government,DCLG,18/10/2016,Current (non AEF) Grants to Local Authorities,Local Government & Public Services,DARLINGTON BC,,,,,5000347947,,Business Rates Multiplier Cap,TS19 1JA,"25,921.00",Yes
Communities & Local Government,DCLG,18/10/2016,Current (non AEF) Grants to Local Authorities,Local Government & Public Services,DARLINGTON BC,,,,,5000347950,,New Empty Property Relief,TS19 1JA,"5,149.00",Yes
Communities & Local Government,DCLG,18/10/2016,Current (non AEF) Grants to Local Authorities,Local Government & Public Services,DARLINGTON BC,,,,,5000347953,,Long Term Empty Property Relief,TS19 1JA,"1,976.00",Yes
Communities & Local Government,DCLG,18/10/2016,Current (non AEF) Grants to Local Authorities,Local Government & Public Services,DARTFORD BC,,,,225694942,5000348191,,Business Rates Multiplier Cap,DA1 1DR,"5,025.00",Yes
Communities & Local Government,DCLG,18/10/2016,Current (non AEF) Grants to Local Authorities,Local Government & Public Services,DARTFORD BC,,,,225694942,5000348194,,Doubling of Small Business Rates Relief,DA1 1DR,"23,147.00",Yes
Communities & Local Government,DCLG,18/10/2016,Current (non AEF) Grants to Local Authorities,Local Government & Public Services,DARTFORD BC,,,,225694942,5000348201,,Small Business Rates Relief on Second Properties,DA1 1DR,285,Yes
Communities & Local Government,DCLG,18/10/2016,Current (non AEF) Grants to Local Authorities,Local Government & Public Services,DAVENTRY DC,,,,239859333,5000348207,,Business Rates Multiplier Cap,NN11 5AF,"5,999.00",Yes
Communities & Local Government,DCLG,18/10/2016,Current (non AEF) Grants to Local Authorities,Local Government & Public Services,DAVENTRY DC,,,,239859333,5000348209,,Doubling of Small Business Rates Relief,NN11 5AF,"28,895.00",Yes
Communities & Local Government,DCLG,18/10/2016,Current (non AEF) Grants to Local Authorities,Local Government & Public Services,DERBY CITY CNCL,,,,229641378,5000347957,,Business Rates Multiplier Cap,DE1 2FS,"70,576.00",Yes
Communities & Local Government,DCLG,18/10/2016,Current (non AEF) Grants to Local Authorities,Local Government & Public Services,DERBY CITY CNCL,,,,229641378,5000347959,,Doubling of Small Business Rates Relief,DE1 2FS,"88,172.00",Yes
Communities & Local Government,DCLG,18/10/2016,Current (non AEF) Grants to Local Authorities,Local Government & Public Services,DERBY CITY CNCL,,,,229641378,5000347963,,New Empty Property Relief,DE1 2FS,"2,071.00",Yes
Communities & Local Government,DCLG,18/10/2016,Current (non AEF) Grants to Local Authorities,Local Government & Public Services,DERBYSHIRE COUNTYCOUNCIL,,,,232152967,5000347969,,Doubling of Small Business Rates Relief,DE4 3AG,"68,824.00",Yes
Communities & Local Government,DCLG,18/10/2016,Current (non AEF) Grants to Local Authorities,Local Government & Public Services,DERBYSHIRE COUNTYCOUNCIL,,,,232152967,5000347972,,Long Term Empty Property Relief,DE4 3AG,614,Yes
Communities & Local Government,DCLG,18/10/2016,Current (non AEF) Grants to Local Authorities,Local Government & Public Services,DERBYSHIRE COUNTYCOUNCIL,,,,232152967,5000347975,,Extended Transitional Relief for Small and Medium,DE4 3AG,791,Yes
Communities & Local Government,DCLG,18/10/2016,Current (non AEF) Grants to Local Authorities,Local Government & Public Services,DERBYSHIRE COUNTYCOUNCIL,,,,232152967,5000347981,,Business Rates Multiplier Cap,DE4 3AG,"125,888.00",Yes
Communities & Local Government,DCLG,18/10/2016,Current (non AEF) Grants to Local Authorities,Local Government & Public Services,DERBYSHIRE DALES DC,,,,,5000348215,,Extended Transitional Relief for Small and Medium,DE4 3NN,342,Yes
Communities & Local Government,DCLG,18/10/2016,Current (non AEF) Grants to Local Authorities,Local Government & Public Services,DERBYSHIRE DALES DC,,,,,5000348218,,Business Rates Multiplier Cap,DE4 3NN,"2,117.00",Yes
Communities & Local Government,DCLG,18/10/2016,Current (non AEF) Grants to Local Authorities,Local Government & Public Services,DERBYSHIRE DALES DC,,,,,5000348221,,Doubling of Small Business Rates Relief,DE4 3NN,"45,706.00",Yes
Communities & Local Government,DCLG,18/10/2016,Current (non AEF) Grants to Local Authorities,Local Government & Public Services,DERBYSHIRE FIRE AND RESCUE SERVICE,,,,424872935,5000349345,,Business Rates Multiplier Cap,DE5 3RS,"10,184.00",Yes
Communities & Local Government,DCLG,18/10/2016,Current (non AEF) Grants to Local Authorities,Local Government & Public Services,DERBYSHIRE FIRE AND RESCUE SERVICE,,,,424872935,5000349347,,Doubling of Small Business Rates Relief,DE5 3RS,"9,446.00",Yes
Communities & Local Government,DCLG,18/10/2016,Current (non AEF) Grants to Local Authorities,Local Government & Public Services,DEVON & SOMERSET FIRE & RESCUE SERV,,Large,,424872976,5000349276,,Business Rates Multiplier Cap,EX3 0NW,"17,719.00",Yes
Communities & Local Government,DCLG,18/10/2016,Current (non AEF) Grants to Local Authorities,Local Government & Public Services,DEVON & SOMERSET FIRE & RESCUE SERV,,Large,,424872976,5000349278,,Doubling of Small Business Rates Relief,EX3 0NW,"20,906.00",Yes
Communities & Local Government,DCLG,18/10/2016,Current (non AEF) Grants to Local Authorities,Local Government & Public Services,DEVON & SOMERSET FIRE & RESCUE SERV,,Large,,424872976,5000349280,,Long Term Empty Property Relief,EX3 0NW,281,Yes
Communities & Local Government,DCLG,18/10/2016,Current (non AEF) Grants to Local Authorities,Local Government & Public Services,DEVON COUNTY CNCL,,,,213754018,5000347990,,Business Rates Multiplier Cap,EX2 4QJ,"113,678.00",Yes
Communities & Local Government,DCLG,18/10/2016,Current (non AEF) Grants to Local Authorities,Local Government & Public Services,DEVON COUNTY CNCL,,,,213754018,5000347993,,Doubling of Small Business Rates Relief,EX2 4QJ,"102,147.00",Yes
Communities & Local Government,DCLG,18/10/2016,Current (non AEF) Grants to Local Authorities,Local Government & Public Services,DEVON COUNTY CNCL,,,,213754018,5000347996,,New Empty Property Relief,EX2 4QJ,462,Yes
Communities & Local Government,DCLG,18/10/2016,Current (non AEF) Grants to Local Authorities,Local Government & Public Services,DEVON COUNTY CNCL,,,,213754018,5000347999,,Long Term Empty Property Relief,EX2 4QJ,454,Yes
Communities & Local Government,DCLG,18/10/2016,Current (non AEF) Grants to Local Authorities,Local Government & Public Services,DEVON COUNTY CNCL,,,,213754018,5000348002,,Extended Transitional Relief for Small and Medium,EX2 4QJ,"1,280.00",Yes
Communities & Local Government,DCLG,18/10/2016,Current (non AEF) Grants to Local Authorities,Local Government & Public Services,DONCASTER MBC,,,,,5000348011,,Business Rates Multiplier Cap,DN1 3QA,"90,460.00",Yes
Communities & Local Government,DCLG,18/10/2016,Current (non AEF) Grants to Local Authorities,Local Government & Public Services,DONCASTER MBC,,,,,5000348014,,New Empty Property Relief,DN1 3QA,"1,691.00",Yes
Communities & Local Government,DCLG,18/10/2016,Current (non AEF) Grants to Local Authorities,Local Government & Public Services,DONCASTER MBC,,,,,5000348016,,Long Term Empty Property Relief,DN1 3QA,"1,734.00",Yes
Communities & Local Government,DCLG,18/10/2016,Current (non AEF) Grants to Local Authorities,Local Government & Public Services,DONCASTER MBC,,,,,5000348019,,Extended Transitional Relief for Small and Medium,DN1 3QA,824,Yes
Communities & Local Government,DCLG,18/10/2016,Current (non AEF) Grants to Local Authorities,Local Government & Public Services,DONCASTER MBC,,,,,5000348022,,Small Business Rates Relief on Second Properties,DN1 3QA,"1,128.00",Yes
Communities & Local Government,DCLG,18/10/2016,Current (non AEF) Grants to Local Authorities,Local Government & Public Services,DONCASTER MBC,,,,,5000348024,,Doubling of Small Business Rates Relief,DN1 3QA,"126,968.00",Yes
Communities & Local Government,DCLG,18/10/2016,Current (non AEF) Grants to Local Authorities,Local Government & Public Services,DORSET & WILTSHIRE FIRE & RESCUE AU,,Large,,,5000349560,,Doubling of Small Business Rates Relief,SP1 3NR,"14,051.00",Yes
Communities & Local Government,DCLG,18/10/2016,Current (non AEF) Grants to Local Authorities,Local Government & Public Services,DORSET & WILTSHIRE FIRE & RESCUE AU,,Large,,,5000349564,,Business Rates Multiplier Cap,SP1 3NR,"11,487.00",Yes
Communities & Local Government,DCLG,18/10/2016,Current (non AEF) Grants to Local Authorities,Local Government & Public Services,DORSET COUNTY CNCL,,,,225431279,5000348027,,Business Rates Multiplier Cap,DT1 1XJ,"43,745.00",Yes
Communities & Local Government,DCLG,18/10/2016,Current (non AEF) Grants to Local Authorities,Local Government & Public Services,DORSET COUNTY CNCL,,,,225431279,5000348030,,New Empty Property Relief,DT1 1XJ,410,Yes
Communities & Local Government,DCLG,18/10/2016,Current (non AEF) Grants to Local Authorities,Local Government & Public Services,DORSET COUNTY CNCL,,,,225431279,5000348033,,Extended Transitional Relief for Small and Medium,DT1 1XJ,295,Yes
Communities & Local Government,DCLG,18/10/2016,Current (non AEF) Grants to Local Authorities,Local Government & Public Services,DORSET COUNTY CNCL,,,,225431279,5000348037,,Doubling of Small Business Rates Relief,DT1 1XJ,"48,027.00",Yes
Communities & Local Government,DCLG,18/10/2016,Current (non AEF) Grants to Local Authorities,Local Government & Public Services,DORSET COUNTY CNCL,,,,225431279,5000348040,,Long Term Empty Property Relief,DT1 1XJ,313,Yes
Communities & Local Government,DCLG,18/10/2016,Current (non AEF) Grants to Local Authorities,Local Government & Public Services,DOVER DC,,,,,5000348227,,Long Term Empty Property Relief,CT16 3PD,710,Yes
Communities & Local Government,DCLG,18/10/2016,Current (non AEF) Grants to Local Authorities,Local Government & Public Services,DOVER DC,,,,,5000348233,,Business Rates Multiplier Cap,CT16 3PD,"5,067.00",Yes
Communities & Local Government,DCLG,18/10/2016,Current (non AEF) Grants to Local Authorities,Local Government & Public Services,DOVER DC,,,,,5000348236,,Doubling of Small Business Rates Relief,CT16 3PD,"43,799.00",Yes
Communities & Local Government,DCLG,18/10/2016,Current (non AEF) Grants to Local Authorities,Local Government & Public Services,DOVER DC,,,,,5000348239,,Extended Transitional Relief for Small and Medium,CT16 3PD,372,Yes
Communities & Local Government,DCLG,18/10/2016,Current (non AEF) Grants to Local Authorities,Local Government & Public Services,DUDLEY MBC,,,,,5000348046,,Business Rates Multiplier Cap,DY1 1HF,"73,520.00",Yes
Communities & Local Government,DCLG,18/10/2016,Current (non AEF) Grants to Local Authorities,Local Government & Public Services,DUDLEY MBC,,,,,5000348050,,Small Business Rates Relief on Second Properties,DY1 1HF,681,Yes
Communities & Local Government,DCLG,18/10/2016,Current (non AEF) Grants to Local Authorities,Local Government & Public Services,DUDLEY MBC,,,,,5000348053,,Doubling of Small Business Rates Relief,DY1 1HF,"153,342.00",Yes
Communities & Local Government,DCLG,18/10/2016,Current (non AEF) Grants to Local Authorities,Local Government & Public Services,DUDLEY MBC,,,,,5000348056,,Long Term Empty Property Relief,DY1 1HF,"2,795.00",Yes
Communities & Local Government,DCLG,18/10/2016,Current (non AEF) Grants to Local Authorities,Local Government & Public Services,DUDLEY MBC,,,,,5000348059,,New Empty Property Relief,DY1 1HF,"4,142.00",Yes
Communities & Local Government,DCLG,18/10/2016,Current (non AEF) Grants to Local Authorities,Local Government & Public Services,DUDLEY MBC,,,,,5000348062,,Extended Transitional Relief for Small and Medium,DY1 1HF,281,Yes
Communities & Local Government,DCLG,18/10/2016,Current (non AEF) Grants to Local Authorities,Local Government & Public Services,DURHAM COUNTY COUNCIL,,,,224004882,5000349538,,Long Term Empty Property Relief,DH1 5UE,"1,392.00",Yes
Communities & Local Government,DCLG,18/10/2016,Current (non AEF) Grants to Local Authorities,Local Government & Public Services,DURHAM COUNTY COUNCIL,,,,224004882,5000349540,,Small Business Rates Relief on Second Properties,DH1 5UE,617,Yes
Communities & Local Government,DCLG,18/10/2016,Current (non AEF) Grants to Local Authorities,Local Government & Public Services,DURHAM COUNTY COUNCIL,,,,224004882,5000349542,,Extended Transitional Relief for Small and Medium,DH1 5UE,421,Yes
Communities & Local Government,DCLG,18/10/2016,Current (non AEF) Grants to Local Authorities,Local Government & Public Services,DURHAM COUNTY COUNCIL,,,,224004882,5000349544,,Business Rates Multiplier Cap,DH1 5UE,"139,605.00",Yes
Communities & Local Government,DCLG,18/10/2016,Current (non AEF) Grants to Local Authorities,Local Government & Public Services,DURHAM COUNTY COUNCIL,,,,224004882,5000349546,,Doubling of Small Business Rates Relief,DH1 5UE,"202,659.00",Yes
Communities & Local Government,DCLG,18/10/2016,Current (non AEF) Grants to Local Authorities,Local Government & Public Services,EALING LB,,,,,5000348065,,Business Rates Multiplier Cap,W5 2HL,"87,273.00",Yes
Communities & Local Government,DCLG,18/10/2016,Current (non AEF) Grants to Local Authorities,Local Government & Public Services,EALING LB,,,,,5000348068,,New Empty Property Relief,W5 2HL,"13,321.00",Yes
Communities & Local Government,DCLG,18/10/2016,Current (non AEF) Grants to Local Authorities,Local Government & Public Services,EALING LB,,,,,5000348071,,Small Business Rates Relief on Second Properties,W5 2HL,396,Yes
Communities & Local Government,DCLG,18/10/2016,Current (non AEF) Grants to Local Authorities,Local Government & Public Services,EALING LB,,,,,5000348074,,Doubling of Small Business Rates Relief,W5 2HL,"59,632.00",Yes
Communities & Local Government,DCLG,18/10/2016,Current (non AEF) Grants to Local Authorities,Local Government & Public Services,EALING LB,,,,,5000348077,,Long Term Empty Property Relief,W5 2HL,"1,813.00",Yes
Communities & Local Government,DCLG,18/10/2016,Current (non AEF) Grants to Local Authorities,Local Government & Public Services,EAST CAMBRIDGESHIRE DC,,,,236472023,5000348242,,Business Rates Multiplier Cap,CB7 4PL,"3,592.00",Yes
Communities & Local Government,DCLG,18/10/2016,Current (non AEF) Grants to Local Authorities,Local Government & Public Services,EAST CAMBRIDGESHIRE DC,,,,236472023,5000348245,,Doubling of Small Business Rates Relief,CB7 4PL,"27,311.00",Yes
Communities & Local Government,DCLG,18/10/2016,Current (non AEF) Grants to Local Authorities,Local Government & Public Services,EAST DEVON DC,,,,,5000348254,,Business Rates Multiplier Cap,EX10 8HL,"3,747.00",Yes
Communities & Local Government,DCLG,18/10/2016,Current (non AEF) Grants to Local Authorities,Local Government & Public Services,EAST DEVON DC,,,,,5000348257,,Doubling of Small Business Rates Relief,EX10 8HL,"73,760.00",Yes
Communities & Local Government,DCLG,18/10/2016,Current (non AEF) Grants to Local Authorities,Local Government & Public Services,EAST DEVON DC,,,,,5000348263,,Extended Transitional Relief for Small and Medium,EX10 8HL,"1,167.00",Yes
Communities & Local Government,DCLG,18/10/2016,Current (non AEF) Grants to Local Authorities,Local Government & Public Services,EAST DORSET DC,,,,228470456,5000348080,,Business Rates Multiplier Cap,BH21 4HN,"1,834.00",Yes
Communities & Local Government,DCLG,18/10/2016,Current (non AEF) Grants to Local Authorities,Local Government & Public Services,EAST DORSET DC,,,,228470456,5000348083,,Doubling of Small Business Rates Relief,BH21 4HN,"35,225.00",Yes
Communities & Local Government,DCLG,18/10/2016,Current (non AEF) Grants to Local Authorities,Local Government & Public Services,EAST HAMPSHIRE DC,,,,,5000348269,,Doubling of Small Business Rates Relief,GU31 4EX,"43,097.00",Yes
Communities & Local Government,DCLG,18/10/2016,Current (non AEF) Grants to Local Authorities,Local Government & Public Services,EAST HAMPSHIRE DC,,,,,5000348272,,Long Term Empty Property Relief,GU31 4EX,507,Yes
Communities & Local Government,DCLG,18/10/2016,Current (non AEF) Grants to Local Authorities,Local Government & Public Services,EAST HAMPSHIRE DC,,,,,5000348278,,Business Rates Multiplier Cap,GU31 4EX,"2,418.00",Yes
Communities & Local Government,DCLG,18/10/2016,Current (non AEF) Grants to Local Authorities,Local Government & Public Services,EAST HAMPSHIRE DC,,,,,5000348281,,Small Business Rates Relief on Second Properties,GU31 4EX,944,Yes
Communities & Local Government,DCLG,18/10/2016,Current (non AEF) Grants to Local Authorities,Local Government & Public Services,EAST HERTFORDSHIRE DC,,,,236176954,5000348287,,Extended Transitional Relief for Small and Medium,SG13 8EQ,"1,756.00",Yes
Communities & Local Government,DCLG,18/10/2016,Current (non AEF) Grants to Local Authorities,Local Government & Public Services,EAST HERTFORDSHIRE DC,,,,236176954,5000348290,,Business Rates Multiplier Cap,SG13 8EQ,"2,665.00",Yes
Communities & Local Government,DCLG,18/10/2016,Current (non AEF) Grants to Local Authorities,Local Government & Public Services,EAST HERTFORDSHIRE DC,,,,236176954,5000348293,,Doubling of Small Business Rates Relief,SG13 8EQ,"45,014.00",Yes
Communities & Local Government,DCLG,18/10/2016,Current (non AEF) Grants to Local Authorities,Local Government & Public Services,EAST HERTFORDSHIRE DC,,,,236176954,5000348297,,New Empty Property Relief,SG13 8EQ,"1,160.00",Yes
Communities & Local Government,DCLG,18/10/2016,Current (non AEF) Grants to Local Authorities,Local Government & Public Services,EAST HERTFORDSHIRE DC,,,,236176954,5000348300,,Long Term Empty Property Relief,SG13 8EQ,467,Yes
Communities & Local Government,DCLG,18/10/2016,Current (non AEF) Grants to Local Authorities,Local Government & Public Services,EAST LINDSEY DC,,,,,5000348309,,Extended Transitional Relief for Small and Medium,LN11 8UP,254,Yes
Communities & Local Government,DCLG,18/10/2016,Current (non AEF) Grants to Local Authorities,Local Government & Public Services,EAST LINDSEY DC,,,,,5000348312,,Small Business Rates Relief on Second Properties,LN11 8UP,382,Yes
Communities & Local Government,DCLG,18/10/2016,Current (non AEF) Grants to Local Authorities,Local Government & Public Services,EAST LINDSEY DC,,,,,5000348315,,Business Rates Multiplier Cap,LN11 8UP,"7,634.00",Yes
Communities & Local Government,DCLG,18/10/2016,Current (non AEF) Grants to Local Authorities,Local Government & Public Services,EAST LINDSEY DC,,,,,5000348318,,Doubling of Small Business Rates Relief,LN11 8UP,"80,565.00",Yes
Communities & Local Government,DCLG,18/10/2016,Current (non AEF) Grants to Local Authorities,Local Government & Public Services,EAST NORTHAMPTONSHIRE COUNCIL,,,,227475290,5000348321,,Small Business Rates Relief on Second Properties,NN14 4LZ,410,Yes
Communities & Local Government,DCLG,18/10/2016,Current (non AEF) Grants to Local Authorities,Local Government & Public Services,EAST NORTHAMPTONSHIRE COUNCIL,,,,227475290,5000348326,,Doubling of Small Business Rates Relief,NN14 4LZ,"32,526.00",Yes
Communities & Local Government,DCLG,18/10/2016,Current (non AEF) Grants to Local Authorities,Local Government & Public Services,EAST NORTHAMPTONSHIRE COUNCIL,,,,227475290,5000348329,,Business Rates Multiplier Cap,NN14 4LZ,"4,623.00",Yes
Communities & Local Government,DCLG,18/10/2016,Current (non AEF) Grants to Local Authorities,Local Government & Public Services,EAST RIDING OF YORKS (HSG),,,,423159987,5000348332,,Doubling of Small Business Rates Relief,HU17 9BA,"166,274.00",Yes
Communities & Local Government,DCLG,18/10/2016,Current (non AEF) Grants to Local Authorities,Local Government & Public Services,EAST RIDING OF YORKS (HSG),,,,423159987,5000348335,,Extended Transitional Relief for Small and Medium,HU17 9BA,597,Yes
Communities & Local Government,DCLG,18/10/2016,Current (non AEF) Grants to Local Authorities,Local Government & Public Services,EAST RIDING OF YORKS (HSG),,,,423159987,5000348338,,Business Rates Multiplier Cap,HU17 9BA,"73,549.00",Yes
Communities & Local Government,DCLG,18/10/2016,Current (non AEF) Grants to Local Authorities,Local Government & Public Services,EAST STAFFORDSHIRE BC,,,,226778033,5000348344,,Business Rates Multiplier Cap,DE14 2EB,"3,619.00",Yes
Communities & Local Government,DCLG,18/10/2016,Current (non AEF) Grants to Local Authorities,Local Government & Public Services,EAST STAFFORDSHIRE BC,,,,226778033,5000348348,,Doubling of Small Business Rates Relief,DE14 2EB,"48,251.00",Yes
Communities & Local Government,DCLG,18/10/2016,Current (non AEF) Grants to Local Authorities,Local Government & Public Services,EAST SUSSEX COUNTY CNCL,,,,,5000348095,,Doubling of Small Business Rates Relief,BN7 1SF,"56,758.00",Yes
Communities & Local Government,DCLG,18/10/2016,Current (non AEF) Grants to Local Authorities,Local Government & Public Services,EAST SUSSEX COUNTY CNCL,,,,,5000348098,,Long Term Empty Property Relief,BN7 1SF,442,Yes
Communities & Local Government,DCLG,18/10/2016,Current (non AEF) Grants to Local Authorities,Local Government & Public Services,EAST SUSSEX COUNTY CNCL,,,,,5000348101,,Business Rates Multiplier Cap,BN7 1SF,"83,205.00",Yes
Communities & Local Government,DCLG,18/10/2016,Current (non AEF) Grants to Local Authorities,Local Government & Public Services,EAST SUSSEX COUNTY CNCL,,,,,5000348104,,New Empty Property Relief,BN7 1SF,814,Yes
Communities & Local Government,DCLG,18/10/2016,Current (non AEF) Grants to Local Authorities,Local Government & Public Services,EAST SUSSEX COUNTY CNCL,,,,,5000348107,,Extended Transitional Relief for Small and Medium,BN7 1SF,363,Yes
Communities & Local Government,DCLG,18/10/2016,Current (non AEF) Grants to Local Authorities,Local Government & Public Services,EAST SUSSEX FIRE AUTHORITY,,Large,,,5000349402,,Business Rates Multiplier Cap,BN21 1EU,"8,645.00",Yes
Communities & Local Government,DCLG,18/10/2016,Current (non AEF) Grants to Local Authorities,Local Government & Public Services,EAST SUSSEX FIRE AUTHORITY,,Large,,,5000349404,,Doubling of Small Business Rates Relief,BN21 1EU,"9,134.00",Yes
Communities & Local Government,DCLG,18/10/2016,Current (non AEF) Grants to Local Authorities,Local Government & Public Services,EASTBOURNE BC,,,,229896428,5000348117,,Business Rates Multiplier Cap,BN21 4TW,"4,646.00",Yes
Communities & Local Government,DCLG,18/10/2016,Current (non AEF) Grants to Local Authorities,Local Government & Public Services,EASTBOURNE BC,,,,229896428,5000348120,,Doubling of Small Business Rates Relief,BN21 4TW,"35,171.00",Yes
Communities & Local Government,DCLG,18/10/2016,Current (non AEF) Grants to Local Authorities,Local Government & Public Services,EASTBOURNE BC,,,,229896428,5000348123,,Long Term Empty Property Relief,BN21 4TW,"1,638.00",Yes
